Workbook

Sheet Main
B10: 2018-12-04
B12: Sheet No. | C12: Template Name | D12: Summary
B13: 1 | C13: Future Intra | D13: For Intraday trading in F&O segment
B14: 2 | C14: Cash Intra | D14: For Intraday trading in cash market segment
B15: 3 | C15: Mid-cap Intra | D15: For Intraday trading in Mid-cap stocks
B16: 4 | C16: Bulk Deals | D16: Reveals Bulk Deals carried on NSE & BSE
B17: 5 | C17: Call Tracker

Sheet Future Intra
M5: Back to Main Page
A6: FOR INTRA DAY TRADING | L6: =Main!B10 -> 2018-12-04
A9: Sr.no | B9: Sector | C9: Scrip | D9: CLOSE RATE | E9: Pivot Point | F9: Supports | I9: Resistances
B10: Sector | D10: Point | E10: Point | F10: S1 | G10: S2 | H10: S3 | I10: R1 | J10: R2 | K10: R3 | L10: HIGH | M10: LOW | N10: OI | O10: % Change in OI
A11: 1 | B11: Index | C11: BANKNIFTY | D11: 26960.40 | E11: 26969.77 | F11: 26874.03 | G11: 26787.67 | H11: 26691.93 | I11: 27056.13 | J11: 27151.87 | K11: 27238.23 | L11: 27065.5 | M11: 26883.4 | N11: 1731840 | O11: -1.94%
A12: 2 | B12: Index | C12: NIFTY | D12: 10924.00 | E12: 10923.10 | F12: 10872.20 | G12: 10820.40 | H12: 10769.50 | I12: 10974.90 | J12: 11025.80 | K12: 11077.60 | L12: 10974 | M12: 10871.3 | N12: 20250900 | O12: 2.12%
A13: 3 | B13: Index | C13: NIFTYIT | D13: 14816.00 | E13: 14780.00 | F13: 14719.00 | G13: 14622.00 | H13: 14561.00 | I13: 14877.00 | J13: 14938.00 | K13: 15035.00 | L13: 14841 | M13: 14683 | N13: 13300 | O13: 15.65%
A14: 4 | B14: Index | C14: NIFTYMID50 | D14: 4900.00 | E14: 4899.67 | F14: 4899.33 | G14: 4898.67 | H14: 4898.33 | I14: 4900.33 | J14: 4900.67 | K14: 4901.33 | L14: 4900 | M14: 4899 | N14: 591690 | O14: 0.04%
A15: 5 | B15: Cement | C15: ACC | D15: 1521.85 | E15: 1514.75 | F15: 1494.65 | G15: 1467.45 | H15: 1447.35 | I15: 1541.95 | J15: 1562.05 | K15: 1589.25 | L15: 1534.85 | M15: 1487.55 | N15: 1446800 | O15: 0.95%
A16: 6 | B16: Others | C16: ADANIENT | D16: 167.15 | E16: 166.72 | F16: 164.18 | G16: 161.22 | H16: 158.68 | I16: 169.68 | J16: 172.22 | K16: 175.18 | L16: 169.25 | M16: 163.75 | N16: 39472000 | O16: 0.22%
A17: 7 | B17: Others | C17: ADANIPORTS | D17: 376.40 | E17: 374.42 | F17: 368.08 | G17: 359.77 | H17: 353.43 | I17: 382.73 | J17: 389.07 | K17: 397.38 | L17: 380.75 | M17: 366.1 | N17: 18220000 | O17: 4.95%
A18: 8 | B18: Power | C18: ADANIPOWER | D18: 58.05 | E18: 57.52 | F18: 56.53 | G18: 55.02 | H18: 54.03 | I18: 59.03 | J18: 60.02 | K18: 61.53 | L18: 58.5 | M18: 56 | N18: 160640000 | O18: 3.84%
A19: 9 | B19: Pharma | C19: AJANTPHARM | D19: 1157.10 | E19: 1163.62 | F19: 1144.73 | G19: 1132.37 | H19: 1113.48 | I19: 1175.98 | J19: 1194.87 | K19: 1207.23 | L19: 1182.5 | M19: 1151.25 | N19: 601000 | O19: -6.82%
A20: 10 | B20: Banking | C20: ALBK | D20: 49.00 | E20: 48.78 | F20: 48.02 | G20: 47.03 | H20: 46.27 | I20: 49.77 | J20: 50.53 | K20: 51.52 | L20: 49.55 | M20: 47.8 | N20: 16478000 | O20: 2.60%
A21: 11 | B21: Automobile | C21: AMARAJABAT | D21: 719.10 | E21: 718.10 | F21: 712.50 | G21: 705.90 | H21: 700.30 | I21: 724.70 | J21: 730.30 | K21: 736.90 | L21: 723.7 | M21: 711.5 | N21: 1603700 | O21: -1.25%
A22: 12 | B22: Cement | C22: AMBUJACEM | D22: 220.90 | E22: 220.75 | F22: 218.15 | G22: 215.40 | H22: 212.80 | I22: 223.50 | J22: 226.10 | K22: 228.85 | L22: 223.35 | M22: 218 | N22: 15320000 | O22: 0.16%
A23: 13 | B23: Others | C23: APOLLOHOSP | D23: 1291.55 | E23: 1296.53 | F23: 1263.17 | G23: 1234.78 | H23: 1201.42 | I23: 1324.92 | J23: 1358.28 | K23: 1386.67 | L23: 1329.9 | M23: 1268.15 | N23: 1062500 | O23: -8.48%
A24: 14 | B24: Automobile | C24: APOLLOTYRE | D24: 235.85 | E24: 236.97 | F24: 232.93 | G24: 230.02 | H24: 225.98 | I24: 239.88 | J24: 243.92 | K24: 246.83 | L24: 241 | M24: 234.05 | N24: 9540000 | O24: -0.34%
A25: 15 | B25: Textile | C25: ARVIND | D25: 102.70 | E25: 103.37 | F25: 101.33 | G25: 99.97 | H25: 97.93 | I25: 104.73 | J25: 106.77 | K25: 108.13 | L25: 105.4 | M25: 102 | N25: 5576000 | O25: 9.03%
A26: 16 | B26: Automobile | C26: ASHOKLEY | D26: 107.45 | E26: 108.68 | F26: 104.87 | G26: 102.28 | H26: 98.47 | I26: 111.27 | J26: 115.08 | K26: 117.67 | L26: 112.5 | M26: 106.1 | N26: 63284000 | O26: 12.01%
A27: 17 | B27: FMCG | C27: ASIANPAINT | D27: 1347.20 | E27: 1349.60 | F27: 1336.90 | G27: 1326.60 | H27: 1313.90 | I27: 1359.90 | J27: 1372.60 | K27: 1382.90 | L27: 1362.3 | M27: 1339.3 | N27: 4222200 | O27: 2.12%
A28: 18 | B28: Pharma | C28: AUROPHARMA | D28: 804.80 | E28: 807.53 | F28: 797.27 | G28: 789.73 | H28: 779.47 | I28: 815.07 | J28: 825.33 | K28: 832.87 | L28: 817.8 | M28: 800 | N28: 17346000 | O28: -0.07%
A29: 19 | B29: Banking | C29: AXISBANK | D29: 628.10 | E29: 631.12 | F29: 621.38 | G29: 614.67 | H29: 604.93 | I29: 637.83 | J29: 647.57 | K29: 654.28 | L29: 640.85 | M29: 624.4 | N29: 36732000 | O29: 1.00%
A30: 20 | B30: Automobile | C30: BAJAJ-AUTO | D30: 2745.75 | E30: 2745.93 | F30: 2722.87 | G30: 2699.98 | H30: 2676.92 | I30: 2768.82 | J30: 2791.88 | K30: 2814.77 | L30: 2769 | M30: 2723.05 | N30: 2193250 | O30: -2.01%
A31: 21 | B31: Others | C31: BAJAJFINSV | D31: 6009.60 | E31: 6027.18 | F31: 5964.42 | G31: 5919.23 | H31: 5856.47 | I31: 6072.37 | J31: 6135.13 | K31: 6180.32 | L31: 6089.95 | M31: 5982 | N31: 602000 | O31: -0.74%
A32: 22 | B32: Finance | C32: BAJFINANCE | D32: 2521.20 | E32: 2525.97 | F32: 2492.93 | G32: 2464.67 | H32: 2431.63 | I32: 2554.23 | J32: 2587.27 | K32: 2615.53 | L32: 2559 | M32: 2497.7 | N32: 6112500 | O32: 0.35%
A33: 23 | B33: Others | C33: BALKRISIND | D33: 947.40 | E33: 953.83 | F33: 930.67 | G33: 913.93 | H33: 890.77 | I33: 970.57 | J33: 993.73 | K33: 1010.47 | L33: 977 | M33: 937.1 | N33: 2660800 | O33: 2.15%
A34: 24 | B34: Banking | C34: BANKBARODA | D34: 107.35 | E34: 107.03 | F34: 105.37 | G34: 103.38 | H34: 101.72 | I34: 109.02 | J34: 110.68 | K34: 112.67 | L34: 108.7 | M34: 105.05 | N34: 71864000 | O34: 0.60%
A35: 25 | B35: Banking | C35: BANKINDIA | D35: 89.05 | E35: 87.82 | F35: 85.88 | G35: 82.72 | H35: 80.78 | I35: 90.98 | J35: 92.92 | K35: 96.08 | L35: 89.75 | M35: 84.65 | N35: 22314000 | O35: -1.25%
A36: 26 | B36: FMCG | C36: BATAINDIA | D36: 1058.00 | E36: 1055.23 | F36: 1046.07 | G36: 1034.13 | H36: 1024.97 | I36: 1067.17 | J36: 1076.33 | K36: 1088.27 | L36: 1064.4 | M36: 1043.3 | N36: 1849650 | O36: 1.11%
A37: 27 | B37: Capital_Goods | C37: BEL | D37: 85.20 | E37: 84.33 | F37: 82.67 | G37: 80.13 | H37: 78.47 | I37: 86.87 | J37: 88.53 | K37: 91.07 | L37: 86 | M37: 81.8 | N37: 41074800 | O37: 4.56%
A38: 28 | B38: Infrastructure | C38: BEML | D38: 751.10 | E38: 752.82 | F38: 743.28 | G38: 735.47 | H38: 725.93 | I38: 760.63 | J38: 770.17 | K38: 777.98 | L38: 762.35 | M38: 745 | N38: 1122000 | O38: 9.82%
A39: 29 | B39: Others | C39: BERGEPAINT | D39: 322.75 | E39: 322.60 | F39: 319.70 | G39: 316.65 | H39: 313.75 | I39: 325.65 | J39: 328.55 | K39: 331.60 | L39: 325.5 | M39: 319.55 | N39: 1980000 | O39: 2.97%
A40: 30 | B40: Finance | C40: BHARATFIN | D40: 1043.50 | E40: 1039.92 | F40: 1032.33 | G40: 1021.17 | H40: 1013.58 | I40: 1051.08 | J40: 1058.67 | K40: 1069.83 | L40: 1047.5 | M40: 1028.75 | N40: 6081500 | O40: -2.54%
A41: 31 | B41: Automobile | C41: BHARATFORG | D41: 566.90 | E41: 566.03 | F41: 560.07 | G41: 553.23 | H41: 547.27 | I41: 572.87 | J41: 578.83 | K41: 585.67 | L41: 572 | M41: 559.2 | N41: 9207600 | O41: 6.93%
A42: 32 | B42: Telecom | C42: BHARTIARTL | D42: 321.15 | E42: 319.17 | F42: 315.73 | G42: 310.32 | H42: 306.88 | I42: 324.58 | J42: 328.02 | K42: 333.43 | L42: 322.6 | M42: 313.75 | N42: 38641000 | O42: 0.92%
A43: 33 | B43: Capital_Goods | C43: BHEL | D43: 71.15 | E43: 70.13 | F43: 68.62 | G43: 66.08 | H43: 64.57 | I43: 72.67 | J43: 74.18 | K43: 76.72 | L43: 71.65 | M43: 67.6 | N43: 54502500 | O43: 0.83%
A44: 34 | B44: Pharma | C44: BIOCON | D44: 619.20 | E44: 622.38 | F44: 612.67 | G44: 606.13 | H44: 596.42 | I44: 628.92 | J44: 638.63 | K44: 645.17 | L44: 632.1 | M44: 615.85 | N44: 6028200 | O44: 0.86%
A45: 35 | B45: Automobile | C45: BOSCHLTD | D45: 19271.70 | E45: 19218.75 | F45: 19042.50 | G45: 18813.30 | H45: 18637.05 | I45: 19447.95 | J45: 19624.20 | K45: 19853.40 | L45: 19395 | M45: 18989.55 | N45: 145890 | O45: 0.10%
A46: 36 | B46: Oil_Gas | C46: BPCL | D46: 324.20 | E46: 322.18 | F46: 317.47 | G46: 310.73 | H46: 306.02 | I46: 328.92 | J46: 333.63 | K46: 340.37 | L46: 326.9 | M46: 315.45 | N46: 11466000 | O46: -2.14%
A47: 37 | B47: FMCG | C47: BRITANNIA | D47: 3109.90 | E47: 3125.33 | F47: 3072.27 | G47: 3034.63 | H47: 2981.57 | I47: 3162.97 | J47: 3216.03 | K47: 3253.67 | L47: 3178.4 | M47: 3087.7 | N47: 2791400 | O47: 0.65%
A48: 38 | B48: Pharma | C48: CADILAHC | D48: 359.30 | E48: 361.23 | F48: 353.92 | G48: 348.53 | H48: 341.22 | I48: 366.62 | J48: 373.93 | K48: 379.32 | L48: 368.55 | M48: 355.85 | N48: 8427200 | O48: -0.06%
A49: 39 | B49: Banking | C49: CANBK | D49: 259.30 | E49: 259.35 | F49: 255.20 | G49: 251.10 | H49: 246.95 | I49: 263.45 | J49: 267.60 | K49: 271.70 | L49: 263.5 | M49: 255.25 | N49: 11708000 | O49: 2.04%
A50: 40 | B50: Others | C50: CANFINHOME | D50: 268.65 | E50: 268.93 | F50: 264.92 | G50: 261.18 | H50: 257.17 | I50: 272.67 | J50: 276.68 | K50: 280.42 | L50: 272.95 | M50: 265.2 | N50: 4109850 | O50: -0.41%
A51: 41 | B51: Finance | C51: CAPF | D51: 525.65 | E51: 525.20 | F51: 520.90 | G51: 516.15 | H51: 511.85 | I51: 529.95 | J51: 534.25 | K51: 539.00 | L51: 529.5 | M51: 520.45 | N51: 6434600 | O51: -0.10%
A52: 42 | B52: Oil_Gas | C52: CASTROLIND | D52: 153.70 | E52: 152.83 | F52: 151.12 | G52: 148.53 | H52: 146.82 | I52: 155.42 | J52: 157.13 | K52: 159.72 | L52: 154.55 | M52: 150.25 | N52: 6441200 | O52: -4.06%
A53: 43 | B53: Automobile | C53: CEATLTD | D53: 1267.60 | E53: 1264.25 | F53: 1249.80 | G53: 1232.00 | H53: 1217.55 | I53: 1282.05 | J53: 1296.50 | K53: 1314.30 | L53: 1278.7 | M53: 1246.45 | N53: 838650 | O53: -2.57%
A54: 44 | B54: Textile | C54: CENTURYTEX | D54: 913.35 | E54: 918.03 | F54: 905.57 | G54: 897.78 | H54: 885.32 | I54: 925.82 | J54: 938.28 | K54: 946.07 | L54: 930.5 | M54: 910.25 | N54: 4439850 | O54: -0.95%
A55: 45 | B55: Power | C55: CESC | D55: 701.35 | E55: 704.25 | F55: 689.60 | G55: 677.85 | H55: 663.20 | I55: 716.00 | J55: 730.65 | K55: 742.40 | L55: 718.9 | M55: 692.5 | N55: 1277100 | O55: -2.07%
A56: 46 | B56: Power | C56: CGPOWER | D56: 41.30 | E56: 40.98 | F56: 39.07 | G56: 36.83 | H56: 34.92 | I56: 43.22 | J56: 45.13 | K56: 47.37 | L56: 42.9 | M56: 38.75 | N56: 45624000 | O56: 0.42%
A57: 47 | B57: Others | C57: CHENNPETRO | D57: 276.30 | E57: 274.55 | F57: 270.75 | G57: 265.20 | H57: 261.40 | I57: 280.10 | J57: 283.90 | K57: 289.45 | L57: 278.35 | M57: 269 | N57: 1009800 | O57: -2.74%
A58: 48 | B58: Others | C58: CHOLAFIN | D58: 1305.15 | E58: 1309.27 | F58: 1293.53 | G58: 1281.92 | H58: 1266.18 | I58: 1320.88 | J58: 1336.62 | K58: 1348.23 | L58: 1325 | M58: 1297.65 | N58: 495500 | O58: 3.77%
A59: 49 | B59: Pharma | C59: CIPLA | D59: 536.75 | E59: 538.87 | F59: 533.08 | G59: 529.42 | H59: 523.63 | I59: 542.53 | J59: 548.32 | K59: 551.98 | L59: 544.65 | M59: 535.2 | N59: 8287000 | O59: -2.68%
A60: 50 | B60: Others | C60: COALINDIA | D60: 247.10 | E60: 246.50 | F60: 243.60 | G60: 240.10 | H60: 237.20 | I60: 250.00 | J60: 252.90 | K60: 256.40 | L60: 249.4 | M60: 243 | N60: 46248400 | O60: 7.39%
A61: 51 | B61: FMCG | C61: COLPAL | D61: 1267.55 | E61: 1256.73 | F61: 1237.52 | G61: 1207.48 | H61: 1188.27 | I61: 1286.77 | J61: 1305.98 | K61: 1336.02 | L61: 1275.95 | M61: 1226.7 | N61: 1280300 | O61: 7.59%
A62: 52 | B62: Others | C62: CONCOR | D62: 682.10 | E62: 678.98 | F62: 671.32 | G62: 660.53 | H62: 652.87 | I62: 689.77 | J62: 697.43 | K62: 708.22 | L62: 686.65 | M62: 668.2 | N62: 3011250 | O62: 1.65%
A63: 53 | B63: Capital_Goods | C63: CUMMINSIND | D63: 811.95 | E63: 807.40 | F63: 798.55 | G63: 785.15 | H63: 776.30 | I63: 820.80 | J63: 829.65 | K63: 843.05 | L63: 816.25 | M63: 794 | N63: 1358700 | O63: 2.10%
A64: 54 | B64: FMCG | C64: DABUR | D64: 415.15 | E64: 414.57 | F64: 410.43 | G64: 405.72 | H64: 401.58 | I64: 419.28 | J64: 423.42 | K64: 428.13 | L64: 418.7 | M64: 409.85 | N64: 11726250 | O64: 1.50%
A65: 55 | B65: Banking | C65: DCBBANK | D65: 162.20 | E65: 160.77 | F65: 158.83 | G65: 155.47 | H65: 153.53 | I65: 164.13 | J65: 166.07 | K65: 169.43 | L65: 162.7 | M65: 157.4 | N65: 4387500 | O65: -2.01%
A66: 56 | B66: Finance | C66: DHFL | D66: 216.95 | E66: 215.78 | F66: 212.27 | G66: 207.58 | H66: 204.07 | I66: 220.47 | J66: 223.98 | K66: 228.67 | L66: 219.3 | M66: 211.1 | N66: 22671000 | O66: 0.61%
A67: 57 | B67: Media | C67: DISHTV | D67: 37.25 | E67: 38.02 | F67: 36.23 | G67: 35.22 | H67: 33.43 | I67: 39.03 | J67: 40.82 | K67: 41.83 | L67: 39.8 | M67: 37 | N67: 42752000 | O67: 2.53%
A68: 58 | B68: Pharma | C68: DIVISLAB | D68: 1458.95 | E68: 1452.12 | F68: 1430.98 | G68: 1403.02 | H68: 1381.88 | I68: 1480.08 | J68: 1501.22 | K68: 1529.18 | L68: 1473.25 | M68: 1424.15 | N68: 4036000 | O68: -1.55%
A69: 59 | B69: Realty | C69: DLF | D69: 181.45 | E69: 180.18 | F69: 177.67 | G69: 173.88 | H69: 171.37 | I69: 183.97 | J69: 186.48 | K69: 190.27 | L69: 182.7 | M69: 176.4 | N69: 25117700 | O69: -1.34%
A70: 60 | B70: Pharma | C70: DRREDDY | D70: 2681.70 | E70: 2695.90 | F70: 2649.80 | G70: 2617.90 | H70: 2571.80 | I70: 2727.80 | J70: 2773.90 | K70: 2805.80 | L70: 2742 | M70: 2664 | N70: 3307000 | O70: 1.28%
A71: 61 | B71: Automobile | C71: EICHERMOT | D71: 23582.35 | E71: 23500.07 | F71: 23050.13 | G71: 22517.92 | H71: 22067.98 | I71: 24032.28 | J71: 24482.22 | K71: 25014.43 | L71: 23950 | M71: 22967.85 | N71: 262650 | O71: 0.10%
A72: 62 | B72: Infrastructure | C72: ENGINERSIN | D72: 116.90 | E72: 117.05 | F72: 116.10 | G72: 115.30 | H72: 114.35 | I72: 117.85 | J72: 118.80 | K72: 119.60 | L72: 118 | M72: 116.25 | N72: 5805500 | O72: 3.34%
A73: 63 | B73: Finance | C73: EQUITAS | D73: 113.30 | E73: 111.73 | F73: 108.62 | G73: 103.93 | H73: 100.82 | I73: 116.42 | J73: 119.53 | K73: 124.22 | L73: 114.85 | M73: 107.05 | N73: 10132000 | O73: -4.56%
A74: 64 | B74: Automobile | C74: ESCORTS | D74: 708.50 | E74: 714.82 | F74: 696.63 | G74: 684.77 | H74: 666.58 | I74: 726.68 | J74: 744.87 | K74: 756.73 | L74: 733 | M74: 702.95 | N74: 5254700 | O74: -2.85%
A75: 65 | B75: Automobile | C75: EXIDEIND | D75: 261.40 | E75: 262.55 | F75: 259.40 | G75: 257.40 | H75: 254.25 | I75: 264.55 | J75: 267.70 | K75: 269.70 | L75: 265.7 | M75: 260.55 | N75: 5776000 | O75: -4.18%
A76: 66 | B76: Banking | C76: FEDERALBNK | D76: 84.75 | E76: 85.48 | F76: 83.42 | G76: 82.08 | H76: 80.02 | I76: 86.82 | J76: 88.88 | K76: 90.22 | L76: 87.55 | M76: 84.15 | N76: 52555000 | O76: 4.00%
A77: 67 | B77: Oil_Gas | C77: GAIL | D77: 355.30 | E77: 350.70 | F77: 344.85 | G77: 334.40 | H77: 328.55 | I77: 361.15 | J77: 367.00 | K77: 377.45 | L77: 356.55 | M77: 340.25 | N77: 18452973 | O77: -4.83%
A78: 68 | B78: Pharma | C78: GLENMARK | D78: 623.55 | E78: 636.22 | F78: 604.43 | G78: 585.32 | H78: 553.53 | I78: 655.33 | J78: 687.12 | K78: 706.23 | L78: 668 | M78: 617.1 | N78: 4509000 | O78: 8.10%
A79: 69 | B79: Infrastructure | C79: GMRINFRA | D79: 16.55 | E79: 16.40 | F79: 16.15 | G79: 15.75 | H79: 15.50 | I79: 16.80 | J79: 17.05 | K79: 17.45 | L79: 16.65 | M79: 16 | N79: 173295000 | O79: 1.72%
A80: 70 | B80: Others | C80: GODFRYPHLP | D80: 926.50 | E80: 928.72 | F80: 918.78 | G80: 911.07 | H80: 901.13 | I80: 936.43 | J80: 946.37 | K80: 954.08 | L80: 938.65 | M80: 921 | N80: 526400 | O80: -0.66%
A81: 71 | B81: FMCG | C81: GODREJCP | D81: 773.35 | E81: 772.07 | F81: 758.13 | G81: 742.92 | H81: 728.98 | I81: 787.28 | J81: 801.22 | K81: 816.43 | L81: 786 | M81: 756.85 | N81: 5494800 | O81: -0.95%
A82: 72 | B82: FMCG | C82: GODREJIND | D82: 549.50 | E82: 548.83 | F82: 543.67 | G82: 537.83 | H82: 532.67 | I82: 554.67 | J82: 559.83 | K82: 565.67 | L82: 554 | M82: 543 | N82: 1575000 | O82: 2.64%
A83: 73 | B83: Cement | C83: GRASIM | D83: 869.10 | E83: 871.88 | F83: 859.37 | G83: 849.63 | H83: 837.12 | I83: 881.62 | J83: 894.13 | K83: 903.87 | L83: 884.4 | M83: 862.15 | N83: 7618500 | O83: 0.49%
A84: 74 | B84: Others | C84: GSFC | D84: 108.90 | E84: 107.85 | F84: 106.20 | G84: 103.50 | H84: 101.85 | I84: 110.55 | J84: 112.20 | K84: 114.90 | L84: 109.5 | M84: 105.15 | N84: 16542700 | O84: 0.63%
A85: 75 | B85: Others | C85: HAVELLS | D85: 695.70 | E85: 692.38 | F85: 686.42 | G85: 677.13 | H85: 671.17 | I85: 701.67 | J85: 707.63 | K85: 716.92 | L85: 698.35 | M85: 683.1 | N85: 5029000 | O85: 1.15%
A86: 76 | B86: Technology | C86: HCLTECH | D86: 1024.05 | E86: 1021.33 | F86: 1012.12 | G86: 1000.18 | H86: 990.97 | I86: 1033.27 | J86: 1042.48 | K86: 1054.42 | L86: 1030.55 | M86: 1009.4 | N86: 8445500 | O86: 3.67%
A87: 77 | B87: Finance | C87: HDFC | D87: 1984.00 | E87: 1988.43 | F87: 1957.32 | G87: 1930.63 | H87: 1899.52 | I87: 2015.12 | J87: 2046.23 | K87: 2072.92 | L87: 2019.55 | M87: 1961.75 | N87: 25118500 | O87: 1.15%
A88: 78 | B88: Banking | C88: HDFCBANK | D88: 2120.65 | E88: 2127.70 | F88: 2107.95 | G88: 2095.25 | H88: 2075.50 | I88: 2140.40 | J88: 2160.15 | K88: 2172.85 | L88: 2147.45 | M88: 2115 | N88: 12818250 | O88: -1.12%
A89: 79 | B89: Automobile | C89: HEROMOTOCO | D89: 3038.20 | E89: 3032.07 | F89: 3006.13 | G89: 2974.07 | H89: 2948.13 | I89: 3064.13 | J89: 3090.07 | K89: 3122.13 | L89: 3058 | M89: 3000 | N89: 1215000 | O89: -4.01%
A90: 80 | B90: Technology | C90: HEXAWARE | D90: 327.60 | E90: 325.57 | F90: 320.83 | G90: 314.07 | H90: 309.33 | I90: 332.33 | J90: 337.07 | K90: 343.83 | L90: 330.3 | M90: 318.8 | N90: 4488000 | O90: -4.41%
A91: 81 | B91: Metals | C91: HINDALCO | D91: 233.25 | E91: 233.87 | F91: 230.43 | G91: 227.62 | H91: 224.18 | I91: 236.68 | J91: 240.12 | K91: 242.93 | L91: 237.3 | M91: 231.05 | N91: 32350500 | O91: 0.01%
A92: 82 | B92: Oil_Gas | C92: HINDPETRO | D92: 225.90 | E92: 226.45 | F92: 223.35 | G92: 220.80 | H92: 217.70 | I92: 229.00 | J92: 232.10 | K92: 234.65 | L92: 229.55 | M92: 223.9 | N92: 19843425 | O92: 1.74%
A93: 83 | B93: FMCG | C93: HINDUNILVR | D93: 1830.10 | E93: 1807.87 | F93: 1774.73 | G93: 1719.37 | H93: 1686.23 | I93: 1863.23 | J93: 1896.37 | K93: 1951.73 | L93: 1841 | M93: 1752.5 | N93: 9276000 | O93: 12.24%
A94: 84 | B94: Metals | C94: HINDZINC | D94: 272.85 | E94: 271.68 | F94: 269.77 | G94: 266.68 | H94: 264.77 | I94: 274.77 | J94: 276.68 | K94: 279.77 | L94: 273.6 | M94: 268.6 | N94: 5840000 | O94: -0.22%
A95: 85 | B95: Finance | C95: IBULHSGFIN | D95: 784.40 | E95: 766.85 | F95: 744.20 | G95: 704.00 | H95: 681.35 | I95: 807.05 | J95: 829.70 | K95: 869.90 | L95: 789.5 | M95: 726.65 | N95: 22446000 | O95: -6.68%
A96: 86 | B96: Banking | C96: ICICIBANK | D96: 357.10 | E96: 356.55 | F96: 353.65 | G96: 350.20 | H96: 347.30 | I96: 360.00 | J96: 362.90 | K96: 366.35 | L96: 359.45 | M96: 353.1 | N96: 90862750 | O96: 0.54%
A97: 87 | B97: Others | C97: ICICIPRULI | D97: 322.70 | E97: 323.73 | F97: 319.97 | G97: 317.23 | H97: 313.47 | I97: 326.47 | J97: 330.23 | K97: 332.97 | L97: 327.5 | M97: 321 | N97: 4108600 | O97: 3.23%
A98: 88 | B98: Banking | C98: IDBI | D98: 59.65 | E98: 59.68 | F98: 59.22 | G98: 58.78 | H98: 58.32 | I98: 60.12 | J98: 60.58 | K98: 61.02 | L98: 60.15 | M98: 59.25 | N98: 35660000 | O98: 6.42%
A99: 89 | B99: Telecom | C99: IDEA | D99: 35.80 | E99: 35.93 | F99: 35.07 | G99: 34.33 | H99: 33.47 | I99: 36.67 | J99: 37.53 | K99: 38.27 | L99: 36.8 | M99: 35.2 | N99: 137356000 | O99: -1.72%
A100: 90 | B100: Finance | C100: IDFC | D100: 41.20 | E100: 41.20 | F100: 40.60 | G100: 40.00 | H100: 39.40 | I100: 41.80 | J100: 42.40 | K100: 43.00 | L100: 41.8 | M100: 40.6 | N100: 104385600 | O100: -0.93%
A101: 91 | B101: Banking | C101: IDFCBANK | D101: 38.35 | E101: 38.33 | F101: 38.02 | G101: 37.68 | H101: 37.37 | I101: 38.67 | J101: 38.98 | K101: 39.32 | L101: 38.65 | M101: 38 | N101: 132737000 | O101: 2.50%
A102: 92 | B102: Finance | C102: IFCI | D102: 13.80 | E102: 13.77 | F102: 13.58 | G102: 13.37 | H102: 13.18 | I102: 13.98 | J102: 14.17 | K102: 14.38 | L102: 13.95 | M102: 13.55 | N102: 46715000 | O102: -1.41%
A103: 93 | B103: Oil_Gas | C103: IGL | D103: 263.25 | E103: 262.67 | F103: 260.83 | G103: 258.42 | H103: 256.58 | I103: 265.08 | J103: 266.92 | K103: 269.33 | L103: 264.5 | M103: 260.25 | N103: 4801500 | O103: 19.34%
A104: 94 | B104: Cement | C104: INDIACEM | D104: 97.75 | E104: 96.57 | F104: 94.53 | G104: 91.32 | H104: 89.28 | I104: 99.78 | J104: 101.82 | K104: 105.03 | L104: 98.6 | M104: 93.35 | N104: 16847000 | O104: 1.83%
A105: 95 | B105: Banking | C105: INDIANB | D105: 230.60 | E105: 230.27 | F105: 226.33 | G105: 222.07 | H105: 218.13 | I105: 234.53 | J105: 238.47 | K105: 242.73 | L105: 234.2 | M105: 226 | N105: 4858000 | O105: 0.87%
A106: 96 | B106: Others | C106: INDIGO | D106: 985.40 | E106: 1005.07 | F106: 955.13 | G106: 924.87 | H106: 874.93 | I106: 1035.33 | J106: 1085.27 | K106: 1115.53 | L106: 1055 | M106: 974.8 | N106: 3082200 | O106: 10.93%
A107: 97 | B107: Banking | C107: INDUSINDBK | D107: 1663.15 | E107: 1657.70 | F107: 1646.40 | G107: 1629.65 | H107: 1618.35 | I107: 1674.45 | J107: 1685.75 | K107: 1702.50 | L107: 1669 | M107: 1640.95 | N107: 4898100 | O107: -2.40%
A108: 98 | B108: Technology | C108: INFIBEAM | D108: 47.95 | E108: 46.98 | F108: 44.82 | G108: 41.68 | H108: 39.52 | I108: 50.12 | J108: 52.28 | K108: 55.42 | L108: 49.15 | M108: 43.85 | N108: 14180000 | O108: -2.58%
A109: 99 | B109: Telecom | C109: INFRATEL | D109: 257.30 | E109: 258.58 | F109: 253.42 | G109: 249.53 | H109: 244.37 | I109: 262.47 | J109: 267.63 | K109: 271.52 | L109: 263.75 | M109: 254.7 | N109: 8331900 | O109: 2.19%
A110: 100 | B110: Technology | C110: INFY | D110: 673.80 | E110: 674.28 | F110: 668.07 | G110: 662.33 | H110: 656.12 | I110: 680.02 | J110: 686.23 | K110: 691.97 | L110: 680.5 | M110: 668.55 | N110: 42712800 | O110: 3.56%
A111: 101 | B111: Oil_Gas | C111: IOC | D111: 132.00 | E111: 131.95 | F111: 130.70 | G111: 129.40 | H111: 128.15 | I111: 133.25 | J111: 134.50 | K111: 135.80 | L111: 133.2 | M111: 130.65 | N111: 86742000 | O111: 5.17%
A112: 102 | B112: Infrastructure | C112: IRB | D112: 149.25 | E112: 150.13 | F112: 147.32 | G112: 145.38 | H112: 142.57 | I112: 152.07 | J112: 154.88 | K112: 156.82 | L112: 152.95 | M112: 148.2 | N112: 9054800 | O112: -3.29%
A113: 103 | B113: FMCG | C113: ITC | D113: 284.60 | E113: 286.40 | F113: 282.40 | G113: 280.20 | H113: 276.20 | I113: 288.60 | J113: 292.60 | K113: 294.80 | L113: 290.4 | M113: 284.2 | N113: 71738400 | O113: 2.73%
A114: 104 | B114: Others | C114: JETAIRWAYS | D114: 300.85 | E114: 302.73 | F114: 295.47 | G114: 290.08 | H114: 282.82 | I114: 308.12 | J114: 315.38 | K114: 320.77 | L114: 310 | M114: 297.35 | N114: 4466200 | O114: 3.01%
A115: 105 | B115: Metals | C115: JINDALSTEL | D115: 161.85 | E115: 161.40 | F115: 158.70 | G115: 155.55 | H115: 152.85 | I115: 164.55 | J115: 167.25 | K115: 170.40 | L115: 164.1 | M115: 158.25 | N115: 25404750 | O115: -7.86%
A116: 106 | B116: Others | C116: JISLJALEQS | D116: 67.00 | E116: 66.65 | F116: 65.85 | G116: 64.70 | H116: 63.90 | I116: 67.80 | J116: 68.60 | K116: 69.75 | L116: 67.45 | M116: 65.5 | N116: 32769000 | O116: 0.11%
A117: 107 | B117: Realty | C117: JPASSOCIAT | D117: 6.95 | E117: 6.90 | F117: 6.70 | G117: 6.45 | H117: 6.25 | I117: 7.15 | J117: 7.35 | K117: 7.60 | L117: 7.1 | M117: 6.65 | N117: 113365000 | O117: 3.44%
A118: 108 | B118: Metals | C118: JSWSTEEL | D118: 316.55 | E118: 319.08 | F118: 312.67 | G118: 308.78 | H118: 302.37 | I118: 322.97 | J118: 329.38 | K118: 333.27 | L118: 325.5 | M118: 315.2 | N118: 47901000 | O118: 0.21%
A119: 109 | B119: Others | C119: JUBLFOOD | D119: 1327.00 | E119: 1310.50 | F119: 1272.10 | G119: 1217.20 | H119: 1178.80 | I119: 1365.40 | J119: 1403.80 | K119: 1458.70 | L119: 1348.9 | M119: 1255.6 | N119: 2346500 | O119: 2.24%
A120: 110 | B120: Others | C120: JUSTDIAL | D120: 490.95 | E120: 492.68 | F120: 482.42 | G120: 473.88 | H120: 463.62 | I120: 501.22 | J120: 511.48 | K120: 520.02 | L120: 502.95 | M120: 484.15 | N120: 1888600 | O120: -0.37%
A121: 111 | B121: Others | C121: KAJARIACER | D121: 440.55 | E121: 445.52 | F121: 428.53 | G121: 416.52 | H121: 399.53 | I121: 457.53 | J121: 474.52 | K121: 486.53 | L121: 462.5 | M121: 433.5 | N121: 2236000 | O121: -3.13%
A122: 112 | B122: Banking | C122: KOTAKBANK | D122: 1230.15 | E122: 1231.73 | F122: 1220.47 | G122: 1210.78 | H122: 1199.52 | I122: 1241.42 | J122: 1252.68 | K122: 1262.37 | L122: 1243 | M122: 1222.05 | N122: 11368800 | O122: -0.41%
A123: 113 | B123: Technology | C123: KPIT | D123: 212.00 | E123: 210.47 | F123: 207.03 | G123: 202.07 | H123: 198.63 | I123: 215.43 | J123: 218.87 | K123: 223.83 | L123: 213.9 | M123: 205.5 | N123: 6135750 | O123: 1.41%
A124: 114 | B124: Others | C124: KSCL | D124: 532.45 | E124: 531.25 | F124: 523.65 | G124: 514.85 | H124: 507.25 | I124: 540.05 | J124: 547.65 | K124: 556.45 | L124: 538.85 | M124: 522.45 | N124: 1020000 | O124: 9.68%
A125: 115 | B125: Banking | C125: KTKBANK | D125: 105.50 | E125: 104.87 | F125: 103.53 | G125: 101.57 | H125: 100.23 | I125: 106.83 | J125: 108.17 | K125: 110.13 | L125: 106.2 | M125: 102.9 | N125: 15223400 | O125: 2.30%
A126: 116 | B126: Finance | C126: L&TFH | D126: 144.25 | E126: 144.38 | F126: 143.27 | G126: 142.28 | H126: 141.17 | I126: 145.37 | J126: 146.48 | K126: 147.47 | L126: 145.5 | M126: 143.4 | N126: 19449000 | O126: -7.13%
A127: 117 | B127: Finance | C127: LICHSGFIN | D127: 448.15 | E127: 454.55 | F127: 439.10 | G127: 430.05 | H127: 414.60 | I127: 463.60 | J127: 479.05 | K127: 488.10 | L127: 470 | M127: 445.5 | N127: 9480900 | O127: 9.28%
A128: 118 | B128: Capital_Goods | C128: LT | D128: 1431.20 | E128: 1429.78 | F128: 1416.47 | G128: 1401.73 | H128: 1388.42 | I128: 1444.52 | J128: 1457.83 | K128: 1472.57 | L128: 1443.1 | M128: 1415.05 | N128: 8969625 | O128: 2.20%
A129: 119 | B129: Pharma | C129: LUPIN | D129: 901.10 | E129: 892.52 | F129: 881.23 | G129: 861.37 | H129: 850.08 | I129: 912.38 | J129: 923.67 | K129: 943.53 | L129: 903.8 | M129: 872.65 | N129: 7992600 | O129: -0.91%
A130: 120 | B130: Automobile | C130: M&M | D130: 763.15 | E130: 773.78 | F130: 747.57 | G130: 731.98 | H130: 705.77 | I130: 789.37 | J130: 815.58 | K130: 831.17 | L130: 800 | M130: 758.2 | N130: 13334000 | O130: 2.56%
A131: 121 | B131: Finance | C131: M&MFIN | D131: 444.45 | E131: 446.27 | F131: 437.53 | G131: 430.62 | H131: 421.88 | I131: 453.18 | J131: 461.92 | K131: 468.83 | L131: 455 | M131: 439.35 | N131: 9260000 | O131: 0.07%
A132: 122 | B132: Others | C132: MANAPPURAM | D132: 85.30 | E132: 85.30 | F132: 84.30 | G132: 83.30 | H132: 82.30 | I132: 86.30 | J132: 87.30 | K132: 88.30 | L132: 86.3 | M132: 84.3 | N132: 11586000 | O132: 0.73%
A133: 123 | B133: FMCG | C133: MARICO | D133: 362.20 | E133: 361.48 | F133: 356.92 | G133: 351.63 | H133: 347.07 | I133: 366.77 | J133: 371.33 | K133: 376.62 | L133: 366.05 | M133: 356.2 | N133: 8993400 | O133: 3.56%
A134: 124 | B134: Automobile | C134: MARUTI | D134: 7788.15 | E134: 7742.85 | F134: 7685.90 | G134: 7583.65 | H134: 7526.70 | I134: 7845.10 | J134: 7902.05 | K134: 8004.30 | L134: 7799.8 | M134: 7640.6 | N134: 2022600 | O134: -0.13%
A135: 125 | B135: FMCG | C135: MCDOWELL-N | D135: 670.75 | E135: 670.50 | F135: 662.00 | G135: 653.25 | H135: 644.75 | I135: 679.25 | J135: 687.75 | K135: 696.50 | L135: 679 | M135: 661.75 | N135: 9076250 | O135: -2.05%
A136: 126 | B136: Others | C136: MCX | D136: 730.95 | E136: 733.32 | F136: 721.63 | G136: 712.32 | H136: 700.63 | I136: 742.63 | J136: 754.32 | K136: 763.63 | L136: 745 | M136: 724 | N136: 2586500 | O136: -1.34%
A137: 127 | B137: Finance | C137: MFSL | D137: 440.00 | E137: 444.12 | F137: 433.08 | G137: 426.17 | H137: 415.13 | I137: 451.03 | J137: 462.07 | K137: 468.98 | L137: 455.15 | M137: 437.2 | N137: 2150400 | O137: 0.45%
A138: 128 | B138: Others | C138: MGL | D138: 848.45 | E138: 843.83 | F138: 837.67 | G138: 826.88 | H138: 820.72 | I138: 854.62 | J138: 860.78 | K138: 871.57 | L138: 850 | M138: 833.05 | N138: 1021200 | O138: -5.18%
A139: 129 | B139: Technology | C139: MINDTREE | D139: 895.20 | E139: 886.37 | F139: 874.73 | G139: 854.27 | H139: 842.63 | I139: 906.83 | J139: 918.47 | K139: 938.93 | L139: 898 | M139: 865.9 | N139: 2325000 | O139: -7.69%
A140: 130 | B140: Automobile | C140: MOTHERSUMI | D140: 165.45 | E140: 162.48 | F140: 157.97 | G140: 150.48 | H140: 145.97 | I140: 169.97 | J140: 174.48 | K140: 181.97 | L140: 167 | M140: 155 | N140: 25843200 | O140: -3.85%
A141: 131 | B141: Automobile | C141: MRF | D141: 66871.35 | E141: 67201.87 | F141: 66369.48 | G141: 65867.62 | H141: 65035.23 | I141: 67703.73 | J141: 68536.12 | K141: 69037.98 | L141: 68034.25 | M141: 66700 | N141: 27140 | O141: 0.07%
A142: 132 | B142: Others | C142: MRPL | D142: 73.40 | E142: 73.48 | F142: 72.82 | G142: 72.23 | H142: 71.57 | I142: 74.07 | J142: 74.73 | K142: 75.32 | L142: 74.15 | M142: 72.9 | N142: 3261000 | O142: 0.00%
A143: 133 | B143: Finance | C143: MUTHOOTFIN | D143: 448.50 | E143: 451.97 | F143: 442.58 | G143: 436.67 | H143: 427.28 | I143: 457.88 | J143: 467.27 | K143: 473.18 | L143: 461.35 | M143: 446.05 | N143: 1569000 | O143: 2.95%
A144: 134 | B144: Others | C144: NATIONALUM | D144: 67.95 | E144: 67.97 | F144: 67.13 | G144: 66.32 | H144: 65.48 | I144: 68.78 | J144: 69.62 | K144: 70.43 | L144: 68.8 | M144: 67.15 | N144: 24024000 | O144: -0.33%
A145: 135 | B145: Others | C145: NBCC | D145: 53.95 | E145: 53.72 | F145: 53.03 | G145: 52.12 | H145: 51.43 | I145: 54.63 | J145: 55.32 | K145: 56.23 | L145: 54.4 | M145: 52.8 | N145: 34492000 | O145: 1.61%
A146: 136 | B146: Infrastructure | C146: NCC | D146: 87.85 | E146: 88.25 | F146: 86.00 | G146: 84.15 | H146: 81.90 | I146: 90.10 | J146: 92.35 | K146: 94.20 | L146: 90.5 | M146: 86.4 | N146: 49872000 | O146: 0.82%
A147: 137 | B147: Others | C147: NESTLEIND | D147: 10767.75 | E147: 10747.55 | F147: 10672.10 | G147: 10576.45 | H147: 10501.00 | I147: 10843.20 | J147: 10918.65 | K147: 11014.30 | L147: 10823 | M147: 10651.9 | N147: 253200 | O147: 2.14%
A148: 138 | B148: Power | C148: NHPC | D148: 26.60 | E148: 26.43 | F148: 26.07 | G148: 25.53 | H148: 25.17 | I148: 26.97 | J148: 27.33 | K148: 27.87 | L148: 26.8 | M148: 25.9 | N148: 16956000 | O148: 3.80%
A149: 139 | B149: Technology | C149: NIITTECH | D149: 1108.70 | E149: 1102.73 | F149: 1089.62 | G149: 1070.53 | H149: 1057.42 | I149: 1121.82 | J149: 1134.93 | K149: 1154.02 | L149: 1115.85 | M149: 1083.65 | N149: 1809000 | O149: 3.79%
A150: 140 | B150: Metals | C150: NMDC | D150: 96.85 | E150: 96.78 | F150: 95.77 | G150: 94.68 | H150: 93.67 | I150: 97.87 | J150: 98.88 | K150: 99.97 | L150: 97.8 | M150: 95.7 | N150: 20004000 | O150: 1.52%
A151: 141 | B151: Power | C151: NTPC | D151: 142.65 | E151: 141.60 | F151: 139.80 | G151: 136.95 | H151: 135.15 | I151: 144.45 | J151: 146.25 | K151: 149.10 | L151: 143.4 | M151: 138.75 | N151: 74648000 | O151: 7.15%
A152: 142 | B152: Technology | C152: OFSS | D152: 3449.10 | E152: 3432.88 | F152: 3407.72 | G152: 3366.33 | H152: 3341.17 | I152: 3474.27 | J152: 3499.43 | K152: 3540.82 | L152: 3458.05 | M152: 3391.5 | N152: 177300 | O152: -0.59%
A153: 143 | B153: Oil_Gas | C153: OIL | D153: 183.90 | E153: 182.53 | F153: 180.27 | G153: 176.63 | H153: 174.37 | I153: 186.17 | J153: 188.43 | K153: 192.07 | L153: 184.8 | M153: 178.9 | N153: 9731337 | O153: 8.65%
A154: 144 | B154: Oil_Gas | C154: ONGC | D154: 142.05 | E154: 141.43 | F154: 140.27 | G154: 138.48 | H154: 137.32 | I154: 143.22 | J154: 144.38 | K154: 146.17 | L154: 142.6 | M154: 139.65 | N154: 77010000 | O154: 3.88%
A155: 145 | B155: Banking | C155: ORIENTBANK | D155: 93.45 | E155: 92.50 | F155: 89.50 | G155: 85.55 | H155: 82.55 | I155: 96.45 | J155: 99.45 | K155: 103.40 | L155: 95.5 | M155: 88.55 | N155: 11911000 | O155: 13.03%
A156: 146 | B156: Textile | C156: PAGEIND | D156: 26470.10 | E156: 26623.40 | F156: 26086.70 | G156: 25703.30 | H156: 25166.60 | I156: 27006.80 | J156: 27543.50 | K156: 27926.90 | L156: 27160.1 | M156: 26240 | N156: 128925 | O156: -0.44%
A157: 147 | B157: Others | C157: PCJEWELLER | D157: 69.15 | E157: 68.85 | F157: 66.90 | G157: 64.65 | H157: 62.70 | I157: 71.10 | J157: 73.05 | K157: 75.30 | L157: 70.8 | M157: 66.6 | N157: 7325000 | O157: 3.67%
A158: 148 | B158: Pharma | C158: PEL | D158: 2209.70 | E158: 2210.82 | F158: 2174.13 | G158: 2138.57 | H158: 2101.88 | I158: 2246.38 | J158: 2283.07 | K158: 2318.63 | L158: 2247.5 | M158: 2175.25 | N158: 2840310 | O158: -0.38%
A159: 149 | B159: Oil_Gas | C159: PETRONET | D159: 214.10 | E159: 214.13 | F159: 212.52 | G159: 210.93 | H159: 209.32 | I159: 215.72 | J159: 217.33 | K159: 218.92 | L159: 215.75 | M159: 212.55 | N159: 12996000 | O159: 2.07%
A160: 150 | B160: Finance | C160: PFC | D160: 95.40 | E160: 92.27 | F160: 87.68 | G160: 79.97 | H160: 75.38 | I160: 99.98 | J160: 104.57 | K160: 112.28 | L160: 96.85 | M160: 84.55 | N160: 44583200 | O160: 8.48%
A161: 151 | B161: FMCG | C161: PIDILITIND | D161: 1156.55 | E161: 1157.05 | F161: 1144.30 | G161: 1132.05 | H161: 1119.30 | I161: 1169.30 | J161: 1182.05 | K161: 1194.30 | L161: 1169.8 | M161: 1144.8 | N161: 3378500 | O161: -0.21%
A162: 152 | B162: Banking | C162: PNB | D162: 71.80 | E162: 71.23 | F162: 70.07 | G162: 68.33 | H162: 67.17 | I162: 72.97 | J162: 74.13 | K162: 75.87 | L162: 72.4 | M162: 69.5 | N162: 104037500 | O162: -2.44%
A163: 153 | B163: Power | C163: POWERGRID | D163: 184.25 | E163: 184.27 | F163: 180.73 | G163: 177.22 | H163: 173.68 | I163: 187.78 | J163: 191.32 | K163: 194.83 | L163: 187.8 | M163: 180.75 | N163: 35048000 | O163: 0.63%
A164: 154 | B164: Power | C164: PTC | D164: 83.30 | E164: 82.70 | F164: 81.40 | G164: 79.50 | H164: 78.20 | I164: 84.60 | J164: 85.90 | K164: 87.80 | L164: 84 | M164: 80.8 | N164: 7560000 | O164: -0.32%
A165: 155 | B165: Others | C165: PVR | D165: 1521.65 | E165: 1499.13 | F165: 1471.27 | G165: 1420.88 | H165: 1393.02 | I165: 1549.52 | J165: 1577.38 | K165: 1627.77 | L165: 1527 | M165: 1448.75 | N165: 1312800 | O165: 7.11%
A166: 156 | B166: Cement | C166: RAMCOCEM | D166: 613.55 | E166: 611.07 | F166: 605.48 | G166: 597.42 | H166: 591.83 | I166: 619.13 | J166: 624.72 | K166: 632.78 | L166: 616.65 | M166: 603 | N166: 803200 | O166: 2.14%
A167: 157 | B167: Others | C167: RAYMOND | D167: 808.20 | E167: 808.73 | F167: 796.47 | G167: 784.73 | H167: 772.47 | I167: 820.47 | J167: 832.73 | K167: 844.47 | L167: 821 | M167: 797 | N167: 3762400 | O167: 5.40%
A168: 158 | B168: Banking | C168: RBLBANK | D168: 552.85 | E168: 553.92 | F168: 547.68 | G168: 542.52 | H168: 536.28 | I168: 559.08 | J168: 565.32 | K168: 570.48 | L168: 560.15 | M168: 548.75 | N168: 6936000 | O168: 4.09%
A169: 159 | B169: Telecom | C169: RCOM | D169: 16.70 | E169: 16.15 | F169: 15.30 | G169: 13.90 | H169: 13.05 | I169: 17.55 | J169: 18.40 | K169: 19.80 | L169: 17 | M169: 14.75 | N169: 76812000 | O169: 1.80%
A170: 160 | B170: Power | C170: RECLTD | D170: 105.30 | E170: 105.23 | F170: 100.67 | G170: 96.03 | H170: 91.47 | I170: 109.87 | J170: 114.43 | K170: 119.07 | L170: 109.8 | M170: 100.6 | N170: 40734000 | O170: -5.18%
A171: 161 | B171: Finance | C171: RELCAPITAL | D171: 233.35 | E171: 231.37 | F171: 226.98 | G171: 220.62 | H171: 216.23 | I171: 237.73 | J171: 242.12 | K171: 248.48 | L171: 235.75 | M171: 225 | N171: 11772000 | O171: -5.70%
A172: 162 | B172: Oil_Gas | C172: RELIANCE | D172: 1162.70 | E172: 1164.65 | F172: 1149.30 | G172: 1135.90 | H172: 1120.55 | I172: 1178.05 | J172: 1193.40 | K172: 1206.80 | L172: 1180 | M172: 1151.25 | N172: 41352000 | O172: 1.59%
A173: 163 | B173: Power | C173: RELINFRA | D173: 333.60 | E173: 334.00 | F173: 327.15 | G173: 320.70 | H173: 313.85 | I173: 340.45 | J173: 347.30 | K173: 353.75 | L173: 340.85 | M173: 327.55 | N173: 7477600 | O173: 6.16%
A174: 164 | B174: Others | C174: REPCOHOME | D174: 365.20 | E174: 367.08 | F174: 359.92 | G174: 354.63 | H174: 347.47 | I174: 372.37 | J174: 379.53 | K174: 384.82 | L174: 374.25 | M174: 361.8 | N174: 1360100 | O174: -4.02%
A175: 165 | B175: Power | C175: RPOWER | D175: 30.30 | E175: 30.43 | F175: 29.22 | G175: 28.13 | H175: 26.92 | I175: 31.52 | J175: 32.73 | K175: 33.82 | L175: 31.65 | M175: 29.35 | N175: 42125000 | O175: 0.45%
A176: 166 | B176: Metals | C176: SAIL | D176: 56.80 | E176: 56.78 | F176: 56.07 | G176: 55.33 | H176: 54.62 | I176: 57.52 | J176: 58.23 | K176: 58.97 | L176: 57.5 | M176: 56.05 | N176: 77664000 | O176: -1.25%
A177: 167 | B177: Banking | C177: SBIN | D177: 288.25 | E177: 287.00 | F177: 284.80 | G177: 281.35 | H177: 279.15 | I177: 290.45 | J177: 292.65 | K177: 296.10 | L177: 289.2 | M177: 283.55 | N177: 79839000 | O177: -2.30%
A178: 168 | B178: Cement | C178: SHREECEM | D178: 16836.75 | E178: 16727.02 | F178: 16564.03 | G178: 16291.32 | H178: 16128.33 | I178: 16999.73 | J178: 17162.72 | K178: 17435.43 | L178: 16890 | M178: 16454.3 | N178: 102450 | O178: 2.50%
A179: 169 | B179: Capital_Goods | C179: SIEMENS | D179: 944.95 | E179: 945.88 | F179: 931.32 | G179: 917.68 | H179: 903.12 | I179: 959.52 | J179: 974.08 | K179: 987.72 | L179: 960.45 | M179: 932.25 | N179: 2405700 | O179: -1.72%
A180: 170 | B180: Banking | C180: SOUTHBANK | D180: 16.90 | E180: 16.68 | F180: 16.42 | G180: 15.93 | H180: 15.67 | I180: 17.17 | J180: 17.43 | K180: 17.92 | L180: 16.95 | M180: 16.2 | N180: 103201074 | O180: 1.57%
A181: 171 | B181: Others | C181: SREINFRA | D181: 33.20 | E181: 32.78 | F181: 32.02 | G181: 30.83 | H181: 30.07 | I181: 33.97 | J181: 34.73 | K181: 35.92 | L181: 33.55 | M181: 31.6 | N181: 11999000 | O181: 0.98%
A182: 172 | B182: Textile | C182: SRF | D182: 2154.25 | E182: 2155.42 | F182: 2132.83 | G182: 2111.42 | H182: 2088.83 | I182: 2176.83 | J182: 2199.42 | K182: 2220.83 | L182: 2178 | M182: 2134 | N182: 521000 | O182: 0.68%
A183: 173 | B183: Finance | C183: SRTRANSFIN | D183: 1167.45 | E183: 1162.15 | F183: 1145.45 | G183: 1123.45 | H183: 1106.75 | I183: 1184.15 | J183: 1200.85 | K183: 1222.85 | L183: 1178.85 | M183: 1140.15 | N183: 4055400 | O183: 1.38%
A184: 174 | B184: Pharma | C184: STAR | D184: 477.80 | E184: 480.52 | F184: 471.03 | G184: 464.27 | H184: 454.78 | I184: 487.28 | J184: 496.77 | K184: 503.53 | L184: 490 | M184: 473.75 | N184: 3799400 | O184: 0.12%
A185: 175 | B185: Pharma | C185: SUNPHARMA | D185: 458.00 | E185: 454.70 | F185: 446.40 | G185: 434.80 | H185: 426.50 | I185: 466.30 | J185: 474.60 | K185: 486.20 | L185: 463 | M185: 443.1 | N185: 52494200 | O185: 35.27%
A186: 176 | B186: Media | C186: SUNTV | D186: 598.30 | E186: 596.72 | F186: 590.33 | G186: 582.37 | H186: 575.98 | I186: 604.68 | J186: 611.07 | K186: 619.03 | L186: 603.1 | M186: 588.75 | N186: 7486000 | O186: -0.13%
A187: 177 | B187: Power | C187: SUZLON | D187: 5.55 | E187: 5.50 | F187: 5.25 | G187: 4.95 | H187: 4.70 | I187: 5.80 | J187: 6.05 | K187: 6.35 | L187: 5.75 | M187: 5.2 | N187: 299762000 | O187: -0.20%
A188: 178 | B188: Banking | C188: SYNDIBANK | D188: 35.30 | E188: 35.23 | F188: 34.72 | G188: 34.13 | H188: 33.62 | I188: 35.82 | J188: 36.33 | K188: 36.92 | L188: 35.75 | M188: 34.65 | N188: 22761000 | O188: 0.26%
A189: 179 | B189: Fertilisers | C189: TATACHEM | D189: 698.55 | E189: 698.80 | F189: 692.70 | G189: 686.85 | H189: 680.75 | I189: 704.65 | J189: 710.75 | K189: 716.60 | L189: 704.9 | M189: 692.95 | N189: 2912250 | O189: -1.99%
A190: 180 | B190: Telecom | C190: TATACOMM | D190: 530.20 | E190: 534.22 | F190: 524.08 | G190: 517.97 | H190: 507.83 | I190: 540.33 | J190: 550.47 | K190: 556.58 | L190: 544.35 | M190: 528.1 | N190: 2523400 | O190: -2.41%
A191: 181 | B191: Technology | C191: TATAELXSI | D191: 1034.25 | E191: 1036.78 | F191: 1024.57 | G191: 1014.88 | H191: 1002.67 | I191: 1046.47 | J191: 1058.68 | K191: 1068.37 | L191: 1049 | M191: 1027.1 | N191: 1352000 | O191: -1.69%
A192: 182 | B192: FMCG | C192: TATAGLOBAL | D192: 215.90 | E192: 217.12 | F192: 214.28 | G192: 212.67 | H192: 209.83 | I192: 218.73 | J192: 221.57 | K192: 223.18 | L192: 219.95 | M192: 215.5 | N192: 10647000 | O192: 4.30%
A193: 183 | B193: Automobile | C193: TATAMOTORS | D193: 176.05 | E193: 174.48 | F193: 171.67 | G193: 167.28 | H193: 164.47 | I193: 178.87 | J193: 181.68 | K193: 186.07 | L193: 177.3 | M193: 170.1 | N193: 58088000 | O193: -0.37%
A194: 184 | B194: Automobile | C194: TATAMTRDVR | D194: 95.85 | E194: 95.08 | F194: 93.72 | G194: 91.58 | H194: 90.22 | I194: 97.22 | J194: 98.58 | K194: 100.72 | L194: 96.45 | M194: 92.95 | N194: 26886000 | O194: 1.36%
A195: 185 | B195: Power | C195: TATAPOWER | D195: 82.80 | E195: 81.17 | F195: 78.78 | G195: 74.77 | H195: 72.38 | I195: 85.18 | J195: 87.57 | K195: 91.58 | L195: 83.55 | M195: 77.15 | N195: 46188000 | O195: 11.81%
A196: 186 | B196: Metals | C196: TATASTEEL | D196: 538.95 | E196: 542.53 | F196: 532.82 | G196: 526.68 | H196: 516.97 | I196: 548.67 | J196: 558.38 | K196: 564.52 | L196: 552.25 | M196: 536.4 | N196: 32648031 | O196: -5.42%
A197: 187 | B197: Technology | C197: TCS | D197: 1993.80 | E197: 1989.92 | F197: 1980.93 | G197: 1968.07 | H197: 1959.08 | I197: 2002.78 | J197: 2011.77 | K197: 2024.63 | L197: 1998.9 | M197: 1977.05 | N197: 10884750 | O197: 1.91%
A198: 188 | B198: Technology | C198: TECHM | D198: 714.85 | E198: 712.87 | F198: 706.08 | G198: 697.32 | H198: 690.53 | I198: 721.63 | J198: 728.42 | K198: 737.18 | L198: 719.65 | M198: 704.1 | N198: 12164400 | O198: -0.36%
A199: 189 | B199: FMCG | C199: TITAN | D199: 941.10 | E199: 936.43 | F199: 928.97 | G199: 916.83 | H199: 909.37 | I199: 948.57 | J199: 956.03 | K199: 968.17 | L199: 943.9 | M199: 924.3 | N199: 12951750 | O199: 2.38%
A200: 190 | B200: Pharma | C200: TORNTPHARM | D200: 1756.90 | E200: 1765.23 | F200: 1737.67 | G200: 1718.43 | H200: 1690.87 | I200: 1784.47 | J200: 1812.03 | K200: 1831.27 | L200: 1792.8 | M200: 1746 | N200: 369500 | O200: -0.54%
A201: 191 | B201: Power | C201: TORNTPOWER | D201: 270.80 | E201: 271.75 | F201: 266.35 | G201: 261.90 | H201: 256.50 | I201: 276.20 | J201: 281.60 | K201: 286.05 | L201: 277.15 | M201: 267.3 | N201: 3006000 | O201: -4.57%
A202: 192 | B202: Media | C202: TV18BRDCST | D202: 36.55 | E202: 36.37 | F202: 35.93 | G202: 35.32 | H202: 34.88 | I202: 36.98 | J202: 37.42 | K202: 38.03 | L202: 36.8 | M202: 35.75 | N202: 46801000 | O202: 0.97%
A203: 193 | B203: Automobile | C203: TVSMOTOR | D203: 553.10 | E203: 553.50 | F203: 547.00 | G203: 540.90 | H203: 534.40 | I203: 559.60 | J203: 566.10 | K203: 572.20 | L203: 560 | M203: 547.4 | N203: 5986000 | O203: -3.15%
A204: 194 | B204: FMCG | C204: UBL | D204: 1244.20 | E204: 1245.93 | F204: 1235.57 | G204: 1226.93 | H204: 1216.57 | I204: 1254.57 | J204: 1264.93 | K204: 1273.57 | L204: 1256.3 | M204: 1237.3 | N204: 2089500 | O204: 1.88%
A205: 195 | B205: Finance | C205: UJJIVAN | D205: 219.90 | E205: 218.88 | F205: 216.32 | G205: 212.73 | H205: 210.17 | I205: 222.47 | J205: 225.03 | K205: 228.62 | L205: 221.45 | M205: 215.3 | N205: 3545600 | O205: 6.49%
A206: 196 | B206: Cement | C206: ULTRACEMCO | D206: 4070.50 | E206: 4072.63 | F206: 4026.27 | G206: 3982.03 | H206: 3935.67 | I206: 4116.87 | J206: 4163.23 | K206: 4207.47 | L206: 4119 | M206: 4028.4 | N206: 2114800 | O206: -0.01%
... 24 more rows

Sheet Cash Intra
M5: Back to Main Page
A6: FOR INTRA DAY TRADING | K6: =Main!B10 -> 2018-12-04
A8: Sr.no | B8: Scrip | C8: CLOSE RATE | D8: Pivot Point | E8: Supports | H8: Resistances
C9: Point | E9: S1 | F9: S2 | G9: S3 | H9: R1 | I9: R2 | J9: R3 | K9: HIGH | L9: LOW | M9: Total Trade Quanity in Lakhs
A10: 1 | B10: Nifty 50 | C10: 10883.75 | D10: 10890.10 | E10: 10839.00 | F10: 10794.25 | G10: 10743.15 | H10: 10934.85 | I10: 10985.95 | J10: 11030.70 | K10: 10941.2 | L10: 10845.35
A11: 2 | B11: Nifty Bank | C11: 26857.55 | D11: 26895.43 | E11: 26753.77 | F11: 26649.98 | G11: 26508.32 | H11: 26999.22 | I11: 27140.88 | J11: 27244.67 | K11: 27037.1 | L11: 26791.65
A12: 3 | B12: Nifty CPSE | C12: 2009.3 | D12: 1997.55 | E12: 1977.65 | F12: 1946.00 | G12: 1926.10 | H12: 2029.20 | I12: 2049.10 | J12: 2080.75 | K12: 2017.45 | L12: 1965.9
A13: 4 | B13: Nifty Infra | C13: 3120.1 | D13: 3111.98 | E13: 3097.77 | F13: 3075.43 | G13: 3061.22 | H13: 3134.32 | I13: 3148.53 | J13: 3170.87 | K13: 3126.2 | L13: 3089.65
A14: 5 | B14: Nifty IT | C14: 14740.4 | D14: 14720.65 | E14: 14650.50 | F14: 14560.60 | G14: 14490.45 | H14: 14810.55 | I14: 14880.70 | J14: 14970.60 | K14: 14790.8 | L14: 14630.75
A15: 6 | B15: Nifty PSE | C15: 3267.2 | D15: 3251.30 | E15: 3224.60 | F15: 3182.00 | G15: 3155.30 | H15: 3293.90 | I15: 3320.60 | J15: 3363.20 | K15: 3278 | L15: 3208.7
A16: 7 | B16: Nifty Midcap 50 | C16: 4815.9 | D16: 4812.18 | E16: 4783.07 | F16: 4750.23 | G16: 4721.12 | H16: 4845.02 | I16: 4874.13 | J16: 4906.97 | K16: 4841.3 | L16: 4779.35
A17: 8 | B17: ABB | C17: 1389.2 | D17: 1396.07 | E17: 1373.13 | F17: 1357.07 | G17: 1334.13 | H17: 1412.13 | I17: 1435.07 | J17: 1451.13 | K17: 1419 | L17: 1380 | M17: 0.34631
A18: 9 | B18: ACC | C18: 1516.8 | D18: 1510.30 | E18: 1490.60 | F18: 1464.40 | G18: 1444.70 | H18: 1536.50 | I18: 1556.20 | J18: 1582.40 | K18: 1530 | L18: 1484.1 | M18: 7.20915
A19: 10 | B19: AIAENG | C19: 1724.45 | D19: 1727.62 | E19: 1680.23 | F19: 1636.02 | G19: 1588.63 | H19: 1771.83 | I19: 1819.22 | J19: 1863.43 | K19: 1775 | L19: 1683.4 | M19: 0.43685
A20: 11 | B20: AUBANK | C20: 591.6 | D20: 589.20 | E20: 580.40 | F20: 569.20 | G20: 560.40 | H20: 600.40 | I20: 609.20 | J20: 620.40 | K20: 598 | L20: 578 | M20: 5.16498
A21: 12 | B21: ADANIENT | C21: 166.7 | D21: 166.23 | E21: 163.97 | F21: 161.23 | G21: 158.97 | H21: 168.97 | I21: 171.23 | J21: 173.97 | K21: 168.5 | L21: 163.5 | M21: 32.13684
A22: 13 | B22: ADANIPORTS | C22: 375.65 | D22: 373.52 | E22: 367.13 | F22: 358.62 | G22: 352.23 | H22: 382.03 | I22: 388.42 | J22: 396.93 | K22: 379.9 | L22: 365 | M22: 43.03979
A23: 14 | B23: ADANIPOWER | C23: 57.85 | D23: 57.30 | E23: 56.25 | F23: 54.65 | G23: 53.60 | H23: 58.90 | I23: 59.95 | J23: 61.55 | K23: 58.35 | L23: 55.7 | M23: 299.14058
A24: 15 | B24: ABFRL | C24: 185.4 | D24: 183.30 | E24: 180.20 | F24: 175.00 | G24: 171.90 | H24: 188.50 | I24: 191.60 | J24: 196.80 | K24: 186.4 | L24: 178.1 | M24: 4.67426
A25: 16 | B25: AJANTPHARM | C25: 1155.6 | D25: 1163.53 | E25: 1142.07 | F25: 1128.53 | G25: 1107.07 | H25: 1177.07 | I25: 1198.53 | J25: 1212.07 | K25: 1185 | L25: 1150 | M25: 3.1723
A26: 17 | B26: ALKEM | C26: 1902.65 | D26: 1898.22 | E26: 1876.43 | F26: 1850.22 | G26: 1828.43 | H26: 1924.43 | I26: 1946.22 | J26: 1972.43 | K26: 1920 | L26: 1872 | M26: 0.59256
A27: 18 | B27: AMARAJABAT | C27: 715.45 | D27: 715.40 | E27: 709.80 | F27: 704.15 | G27: 698.55 | H27: 721.05 | I27: 726.65 | J27: 732.30 | K27: 721 | L27: 709.75 | M27: 5.24249
A28: 19 | B28: AMBUJACEM | C28: 220 | D28: 220.13 | E28: 217.47 | F28: 214.93 | G28: 212.27 | H28: 222.67 | I28: 225.33 | J28: 227.87 | K28: 222.8 | L28: 217.6 | M28: 28.23065
A29: 20 | B29: APOLLOHOSP | C29: 1292.2 | D29: 1294.50 | E29: 1259.15 | F29: 1226.10 | G29: 1190.75 | H29: 1327.55 | I29: 1362.90 | J29: 1395.95 | K29: 1329.85 | L29: 1261.45 | M29: 14.75095
A30: 21 | B30: APOLLOTYRE | C30: 234.95 | D30: 236.93 | E30: 231.52 | F30: 228.08 | G30: 222.67 | H30: 240.37 | I30: 245.78 | J30: 249.22 | K30: 242.35 | L30: 233.5 | M30: 22.85274
A31: 22 | B31: ARVIND | C31: 102.1 | D31: 102.87 | E31: 100.73 | F31: 99.37 | G31: 97.23 | H31: 104.23 | I31: 106.37 | J31: 107.73 | K31: 105 | L31: 101.5 | M31: 64.08976
A32: 23 | B32: ASHOKLEY | C32: 107.15 | D32: 108.53 | E32: 104.62 | F32: 102.08 | G32: 98.17 | H32: 111.07 | I32: 114.98 | J32: 117.52 | K32: 112.45 | L32: 106 | M32: 388.77711
A33: 24 | B33: ASIANPAINT | C33: 1338.7 | D33: 1344.25 | E33: 1329.50 | F33: 1320.30 | G33: 1305.55 | H33: 1353.45 | I33: 1368.20 | J33: 1377.40 | K33: 1359 | L33: 1335.05 | M33: 7.10748
A34: 25 | B34: AUROPHARMA | C34: 804.85 | D34: 806.75 | E34: 797.50 | F34: 790.15 | G34: 780.90 | H34: 814.10 | I34: 823.35 | J34: 830.70 | K34: 816 | L34: 799.4 | M34: 25.34907
A35: 26 | B35: DMART | C35: 1477.45 | D35: 1486.45 | E35: 1464.00 | F35: 1450.55 | G35: 1428.10 | H35: 1499.90 | I35: 1522.35 | J35: 1535.80 | K35: 1508.9 | L35: 1473 | M35: 3.49961
A36: 27 | B36: AXISBANK | C36: 624.8 | D36: 626.47 | E36: 619.93 | F36: 615.07 | G36: 608.53 | H36: 631.33 | I36: 637.87 | J36: 642.73 | K36: 633 | L36: 621.6 | M36: 59.1425
A37: 28 | B37: BAJAJ-AUTO | C37: 2736 | D37: 2738.32 | E37: 2711.68 | F37: 2687.37 | G37: 2660.73 | H37: 2762.63 | I37: 2789.27 | J37: 2813.58 | K37: 2764.95 | L37: 2714 | M37: 3.8606
A38: 29 | B38: BAJFINANCE | C38: 2508.65 | D38: 2518.32 | E38: 2481.08 | F38: 2453.52 | G38: 2416.28 | H38: 2545.88 | I38: 2583.12 | J38: 2610.68 | K38: 2555.55 | L38: 2490.75 | M38: 11.15592
A39: 30 | B39: BAJAJFINSV | C39: 5999.3 | D39: 6020.90 | E39: 5953.45 | F39: 5907.60 | G39: 5840.15 | H39: 6066.75 | I39: 6134.20 | J39: 6180.05 | K39: 6088.35 | L39: 5975.05 | M39: 1.59769
A40: 31 | B40: BALKRISIND | C40: 943.7 | D40: 963.88 | E40: 916.82 | F40: 889.93 | G40: 842.87 | H40: 990.77 | I40: 1037.83 | J40: 1064.72 | K40: 1010.95 | L40: 937 | M40: 7.99882
A41: 32 | B41: BANKBARODA | C41: 106.95 | D41: 106.68 | E41: 105.17 | F41: 103.38 | G41: 101.87 | H41: 108.47 | I41: 109.98 | J41: 111.77 | K41: 108.2 | L41: 104.9 | M41: 140.92602
A42: 33 | B42: BANKINDIA | C42: 88.65 | D42: 87.50 | E42: 85.70 | F42: 82.75 | G42: 80.95 | H42: 90.45 | I42: 92.25 | J42: 95.20 | K42: 89.3 | L42: 84.55 | M42: 95.15981
A43: 34 | B43: BATAINDIA | C43: 1063.8 | D43: 1059.87 | E43: 1050.23 | F43: 1036.67 | G43: 1027.03 | H43: 1073.43 | I43: 1083.07 | J43: 1096.63 | K43: 1069.5 | L43: 1046.3 | M43: 17.16616
A44: 35 | B44: BERGEPAINT | C44: 322.85 | D44: 322.25 | E44: 319.60 | F44: 316.35 | G44: 313.70 | H44: 325.50 | I44: 328.15 | J44: 331.40 | K44: 324.9 | L44: 319 | M44: 9.69815
A45: 36 | B45: BEL | C45: 85.2 | D45: 84.68 | E45: 82.92 | F45: 80.63 | G45: 78.87 | H45: 86.97 | I45: 88.73 | J45: 91.02 | K45: 86.45 | L45: 82.4 | M45: 102.41635
A46: 37 | B46: BHARATFIN | C46: 1042.15 | D46: 1038.33 | E46: 1030.67 | F46: 1019.18 | G46: 1011.52 | H46: 1049.82 | I46: 1057.48 | J46: 1068.97 | K46: 1046 | L46: 1026.85 | M46: 20.74127
A47: 38 | B47: BHARATFORG | C47: 563.75 | D47: 563.35 | E47: 556.90 | F47: 550.05 | G47: 543.60 | H47: 570.20 | I47: 576.65 | J47: 583.50 | K47: 569.8 | L47: 556.5 | M47: 14.23254
A48: 39 | B48: BHEL | C48: 70.85 | D48: 69.85 | E48: 68.40 | F48: 65.95 | G48: 64.50 | H48: 72.30 | I48: 73.75 | J48: 76.20 | K48: 71.3 | L48: 67.4 | M48: 161.29731
A49: 40 | B49: BPCL | C49: 323.95 | D49: 322.85 | E49: 318.75 | F49: 313.55 | G49: 309.45 | H49: 328.05 | I49: 332.15 | J49: 337.35 | K49: 326.95 | L49: 317.65 | M49: 45.79421
A50: 41 | B50: BHARTIARTL | C50: 319.75 | D50: 318.42 | E50: 315.83 | F50: 311.92 | G50: 309.33 | H50: 322.33 | I50: 324.92 | J50: 328.83 | K50: 321 | L50: 314.5 | M50: 30.36001
A51: 42 | B51: INFRATEL | C51: 256 | D51: 256.63 | E51: 253.32 | F51: 250.63 | G51: 247.32 | H51: 259.32 | I51: 262.63 | J51: 265.32 | K51: 259.95 | L51: 253.95 | M51: 20.81914
A52: 43 | B52: BIOCON | C52: 616.2 | D52: 621.25 | E52: 609.95 | F52: 603.70 | G52: 592.40 | H52: 627.50 | I52: 638.80 | J52: 645.05 | K52: 632.55 | L52: 615 | M52: 19.93303
A53: 44 | B53: BOSCHLTD | C53: 19204 | D53: 19197.63 | E53: 19006.37 | F53: 18808.73 | G53: 18617.47 | H53: 19395.27 | I53: 19586.53 | J53: 19784.17 | K53: 19388.9 | L53: 19000 | M53: 0.22537
A54: 45 | B54: BRITANNIA | C54: 3094.5 | D54: 3121.58 | E54: 3054.27 | F54: 3014.03 | G54: 2946.72 | H54: 3161.82 | I54: 3229.13 | J54: 3269.37 | K54: 3188.9 | L54: 3081.35 | M54: 3.11813
A55: 46 | B55: CRISIL | C55: 1499.65 | D55: 1498.88 | E55: 1488.77 | F55: 1477.88 | G55: 1467.77 | H55: 1509.77 | I55: 1519.88 | J55: 1530.77 | K55: 1509 | L55: 1488 | M55: 0.0824
A56: 47 | B56: CADILAHC | C56: 356.8 | D56: 359.78 | E56: 350.57 | F56: 344.33 | G56: 335.12 | H56: 366.02 | I56: 375.23 | J56: 381.47 | K56: 369 | L56: 353.55 | M56: 14.32872
A57: 48 | B57: CANBK | C57: 257.95 | D57: 258.20 | E57: 254.50 | F57: 251.05 | G57: 247.35 | H57: 261.65 | I57: 265.35 | J57: 268.80 | K57: 261.9 | L57: 254.75 | M57: 69.25635
A58: 49 | B58: CASTROLIND | C58: 153.45 | D58: 152.58 | E58: 150.87 | F58: 148.28 | G58: 146.57 | H58: 155.17 | I58: 156.88 | J58: 159.47 | K58: 154.3 | L58: 150 | M58: 9.28686
A59: 50 | B59: CENTRALBK | C59: 29.15 | D59: 29.18 | E59: 28.97 | F59: 28.78 | G59: 28.57 | H59: 29.37 | I59: 29.58 | J59: 29.77 | K59: 29.4 | L59: 29 | M59: 1.97862
A60: 51 | B60: CENTURYTEX | C60: 908.35 | D60: 914.67 | E60: 898.88 | F60: 889.42 | G60: 873.63 | H60: 924.13 | I60: 939.92 | J60: 949.38 | K60: 930.45 | L60: 905.2 | M60: 6.17997
A61: 52 | B61: CHOLAFIN | C61: 1314.3 | D61: 1315.02 | E61: 1302.28 | F61: 1290.27 | G61: 1277.53 | H61: 1327.03 | I61: 1339.77 | J61: 1351.78 | K61: 1327.75 | L61: 1303 | M61: 2.43243
A62: 53 | B62: CIPLA | C62: 535.8 | D62: 538.43 | E62: 531.47 | F62: 527.13 | G62: 520.17 | H62: 542.77 | I62: 549.73 | J62: 554.07 | K62: 545.4 | L62: 534.1 | M62: 20.33213
A63: 54 | B63: COALINDIA | C63: 249 | D63: 248.72 | E63: 245.63 | F63: 242.27 | G63: 239.18 | H63: 252.08 | I63: 255.17 | J63: 258.53 | K63: 251.8 | L63: 245.35 | M63: 66.76768
A64: 55 | B64: COLPAL | C64: 1273.15 | D64: 1260.40 | E64: 1237.80 | F64: 1202.45 | G64: 1179.85 | H64: 1295.75 | I64: 1318.35 | J64: 1353.70 | K64: 1283 | L64: 1225.05 | M64: 7.91203
A65: 56 | B65: CONCOR | C65: 680.15 | D65: 677.05 | E65: 669.10 | F65: 658.05 | G65: 650.10 | H65: 688.10 | I65: 696.05 | J65: 707.10 | K65: 685 | L65: 666 | M65: 4.1643
A66: 57 | B66: COROMANDEL | C66: 417.1 | D66: 414.58 | E66: 404.42 | F66: 391.73 | G66: 381.57 | H66: 427.27 | I66: 437.43 | J66: 450.12 | K66: 424.75 | L66: 401.9 | M66: 2.08551
A67: 58 | B67: CROMPTON | C67: 220.05 | D67: 220.02 | E67: 216.08 | F67: 212.12 | G67: 208.18 | H67: 223.98 | I67: 227.92 | J67: 231.88 | K67: 223.95 | L67: 216.05 | M67: 3.01285
A68: 59 | B68: CUMMINSIND | C68: 808.85 | D68: 804.35 | E68: 795.80 | F68: 782.75 | G68: 774.20 | H68: 817.40 | I68: 825.95 | J68: 839.00 | K68: 812.9 | L68: 791.3 | M68: 2.2015
A69: 60 | B69: DLF | C69: 180.45 | D69: 179.48 | E69: 177.17 | F69: 173.88 | G69: 171.57 | H69: 182.77 | I69: 185.08 | J69: 188.37 | K69: 181.8 | L69: 176.2 | M69: 37.00585
A70: 61 | B70: DABUR | C70: 412.95 | D70: 412.80 | E70: 407.80 | F70: 402.65 | G70: 397.65 | H70: 417.95 | I70: 422.95 | J70: 428.10 | K70: 417.8 | L70: 407.65 | M70: 14.89299
A71: 63 | B71: DALMIABHA
A72: 64 | B72: DHFL | C72: 217.7 | D72: 216.72 | E72: 213.63 | F72: 209.57 | G72: 206.48 | H72: 220.78 | I72: 223.87 | J72: 227.93 | K72: 219.8 | L72: 212.65 | M72: 105.13054
A73: 65 | B73: DISHTV | C73: 37.1 | D73: 37.93 | E73: 35.97 | F73: 34.83 | G73: 32.87 | H73: 39.07 | I73: 41.03 | J73: 42.17 | K73: 39.9 | L73: 36.8 | M73: 85.50749
A74: 66 | B74: DIVISLAB | C74: 1456.75 | D74: 1448.90 | E74: 1427.90 | F74: 1399.05 | G74: 1378.05 | H74: 1477.75 | I74: 1498.75 | J74: 1527.60 | K74: 1469.9 | L74: 1420.05 | M74: 9.5205
A75: 67 | B75: LALPATHLAB | C75: 899.9 | D75: 892.32 | E75: 869.48 | F75: 839.07 | G75: 816.23 | H75: 922.73 | I75: 945.57 | J75: 975.98 | K75: 915.15 | L75: 861.9 | M75: 0.93542
A76: 68 | B76: DRREDDY | C76: 2667.9 | D76: 2687.65 | E76: 2632.70 | F76: 2597.50 | G76: 2542.55 | H76: 2722.85 | I76: 2777.80 | J76: 2813.00 | K76: 2742.6 | L76: 2652.45 | M76: 9.83834
A77: 69 | B77: EDELWEISS | C77: 178.15 | D77: 175.80 | E77: 173.45 | F77: 168.75 | G77: 166.40 | H77: 180.50 | I77: 182.85 | J77: 187.55 | K77: 178.15 | L77: 171.1 | M77: 19.12914
A78: 70 | B78: EICHERMOT | C78: 23567.3 | D78: 23472.77 | E78: 23047.53 | F78: 22527.77 | G78: 22102.53 | H78: 23992.53 | I78: 24417.77 | J78: 24937.53 | K78: 23898 | L78: 22953 | M78: 0.92778
A79: 71 | B79: EMAMILTD | C79: 434.4 | D79: 435.50 | E79: 430.90 | F79: 427.40 | G79: 422.80 | H79: 439.00 | I79: 443.60 | J79: 447.10 | K79: 440.1 | L79: 432 | M79: 1.36267
A80: 72 | B80: ENDURANCE | C80: 1120.25 | D80: 1117.93 | E80: 1105.87 | F80: 1091.48 | G80: 1079.42 | H80: 1132.32 | I80: 1144.38 | J80: 1158.77 | K80: 1130 | L80: 1103.55 | M80: 0.08911
A81: 73 | B81: ENGINERSIN | C81: 116.35 | D81: 116.95 | E81: 115.40 | F81: 114.45 | G81: 112.90 | H81: 117.90 | I81: 119.45 | J81: 120.40 | K81: 118.5 | L81: 116 | M81: 8.39016
A82: 74 | B82: EXIDEIND | C82: 260.35 | D82: 261.63 | E82: 257.92 | F82: 255.48 | G82: 251.77 | H82: 264.07 | I82: 267.78 | J82: 270.22 | K82: 265.35 | L82: 259.2 | M82: 12.06051
A83: 75 | B83: FEDERALBNK | C83: 84.4 | D83: 85.03 | E83: 82.92 | F83: 81.43 | G83: 79.32 | H83: 86.52 | I83: 88.63 | J83: 90.12 | K83: 87.15 | L83: 83.55 | M83: 129.3629
A84: 76 | B84: GAIL | C84: 355.65 | D84: 350.85 | E84: 344.30 | F84: 332.95 | G84: 326.40 | H84: 362.20 | I84: 368.75 | J84: 380.10 | K84: 357.4 | L84: 339.5 | M84: 61.73643
A85: 77 | B85: GMRINFRA | C85: 16.4 | D85: 16.32 | E85: 16.08 | F85: 15.77 | G85: 15.53 | H85: 16.63 | I85: 16.87 | J85: 17.18 | K85: 16.55 | L85: 16 | M85: 135.07202
A86: 78 | B86: GSKCONS | C86: 7547.4 | D86: 7444.80 | E86: 7179.60 | F86: 6811.80 | G86: 6546.60 | H86: 7812.60 | I86: 8077.80 | J86: 8445.60 | K86: 7710 | L86: 7077 | M86: 3.43293
A87: 79 | B87: GLAXO | C87: 1381 | D87: 1378.27 | E87: 1341.03 | F87: 1301.07 | G87: 1263.83 | H87: 1418.23 | I87: 1455.47 | J87: 1495.43 | K87: 1415.5 | L87: 1338.3 | M87: 0.26552
A88: 80 | B88: GLENMARK | C88: 621.7 | D88: 635.57 | E88: 603.38 | F88: 585.07 | G88: 552.88 | H88: 653.88 | I88: 686.07 | J88: 704.38 | K88: 667.75 | L88: 617.25 | M88: 21.78887
A89: 81 | B89: GODREJCP | C89: 771.4 | D89: 770.37 | E89: 755.13 | F89: 738.87 | G89: 723.63 | H89: 786.63 | I89: 801.87 | J89: 818.13 | K89: 785.6 | L89: 754.1 | M89: 26.34832
A90: 82 | B90: GODREJIND | C90: 548.1 | D90: 548.20 | E90: 541.80 | F90: 535.50 | G90: 529.10 | H90: 554.50 | I90: 560.90 | J90: 567.20 | K90: 554.6 | L90: 541.9 | M90: 4.75982
A91: 83 | B91: GRUH | C91: 299.75 | D91: 298.83 | E91: 296.72 | F91: 293.68 | G91: 291.57 | H91: 301.87 | I91: 303.98 | J91: 307.02 | K91: 300.95 | L91: 295.8 | M91: 2.18227
A92: 84 | B92: GPPL | C92: 95.55 | D92: 95.52 | E92: 95.03 | F92: 94.52 | G92: 94.03 | H92: 96.03 | I92: 96.52 | J92: 97.03 | K92: 96 | L92: 95 | M92: 0.34104
A93: 85 | B93: GSPL | C93: 187.95 | D93: 187.40 | E93: 185.30 | F93: 182.65 | G93: 180.55 | H93: 190.05 | I93: 192.15 | J93: 194.80 | K93: 189.5 | L93: 184.75 | M93: 3.23717
A94: 86 | B94: HCLTECH | C94: 1018.2 | D94: 1016.20 | E94: 1006.70 | F94: 995.20 | G94: 985.70 | H94: 1027.70 | I94: 1037.20 | J94: 1048.70 | K94: 1025.7 | L94: 1004.7 | M94: 14.54449
A95: 87 | B95: HDFCBANK | C95: 2113.3 | D95: 2120.73 | E95: 2099.47 | F95: 2085.63 | G95: 2064.37 | H95: 2134.57 | I95: 2155.83 | J95: 2169.67 | K95: 2142 | L95: 2106.9 | M95: 26.99964
A96: 88 | B96: HAVELLS | C96: 692.1 | D96: 690.35 | E96: 683.70 | F96: 675.30 | G96: 668.65 | H96: 698.75 | I96: 705.40 | J96: 713.80 | K96: 697 | L96: 681.95 | M96: 8.02841
A97: 89 | B97: HEROMOTOCO | C97: 3039.9 | D97: 3035.43 | E97: 3003.52 | F97: 2967.13 | G97: 2935.22 | H97: 3071.82 | I97: 3103.73 | J97: 3140.12 | K97: 3067.35 | L97: 2999.05 | M97: 6.27118
A98: 90 | B98: HEXAWARE | C98: 327.1 | D98: 325.22 | E98: 320.63 | F98: 314.17 | G98: 309.58 | H98: 331.68 | I98: 336.27 | J98: 342.73 | K98: 329.8 | L98: 318.75 | M98: 15.37371
A99: 91 | B99: HINDALCO | C99: 233.05 | D99: 234.25 | E99: 230.60 | F99: 228.15 | G99: 224.50 | H99: 236.70 | I99: 240.35 | J99: 242.80 | K99: 237.9 | L99: 231.8 | M99: 108.02517
A100: 92 | B100: HINDPETRO | C100: 224.9 | D100: 225.83 | E100: 221.87 | F100: 218.83 | G100: 214.87 | H100: 228.87 | I100: 232.83 | J100: 235.87 | K100: 229.8 | L100: 222.8 | M100: 82.33734
A101: 93 | B101: HINDUNILVR | C101: 1825.6 | D101: 1803.98 | E101: 1769.67 | F101: 1713.73 | G101: 1679.42 | H101: 1859.92 | I101: 1894.23 | J101: 1950.17 | K101: 1838.3 | L101: 1748.05 | M101: 43.10053
A102: 94 | B102: HINDZINC | C102: 272.7 | D102: 271.48 | E102: 269.47 | F102: 266.23 | G102: 264.22 | H102: 274.72 | I102: 276.73 | J102: 279.97 | K102: 273.5 | L102: 268.25 | M102: 6.96075
A103: 95 | B103: HUDCO | C103: 43 | D103: 43.03 | E103: 42.57 | F103: 42.13 | G103: 41.67 | H103: 43.47 | I103: 43.93 | J103: 44.37 | K103: 43.5 | L103: 42.6 | M103: 4.09454
A104: 96 | B104: HDFC | C104: 1980.75 | D104: 1984.25 | E104: 1951.50 | F104: 1922.25 | G104: 1889.50 | H104: 2013.50 | I104: 2046.25 | J104: 2075.50 | K104: 2017 | L104: 1955 | M104: 32.49616
A105: 97 | B105: ITC | C105: 282.95 | D105: 285.00 | E105: 280.50 | F105: 278.05 | G105: 273.55 | H105: 287.45 | I105: 291.95 | J105: 294.40 | K105: 289.5 | L105: 282.55 | M105: 85.65591
A106: 98 | B106: ICICIBANK | C106: 355.5 | D106: 355.50 | E106: 352.10 | F106: 348.70 | G106: 345.30 | H106: 358.90 | I106: 362.30 | J106: 365.70 | K106: 358.9 | L106: 352.1 | M106: 234.2727
A107: 99 | B107: ICICIPRULI | C107: 321.65 | D107: 322.83 | E107: 318.42 | F107: 315.18 | G107: 310.77 | H107: 326.07 | I107: 330.48 | J107: 333.72 | K107: 327.25 | L107: 319.6 | M107: 2.82782
A108: 100 | B108: IDBI | C108: 59.4 | D108: 59.48 | E108: 59.02 | F108: 58.63 | G108: 58.17 | H108: 59.87 | I108: 60.33 | J108: 60.72 | K108: 59.95 | L108: 59.1 | M108: 26.89921
A109: 101 | B109: IDFCBANK | C109: 38.35 | D109: 38.38 | E109: 37.97 | F109: 37.58 | G109: 37.17 | H109: 38.77 | I109: 39.18 | J109: 39.57 | K109: 38.8 | L109: 38 | M109: 64.33641
A110: 102 | B110: IDFC | C110: 40.9 | D110: 41.07 | E110: 40.38 | F110: 39.87 | G110: 39.18 | H110: 41.58 | I110: 42.27 | J110: 42.78 | K110: 41.75 | L110: 40.55 | M110: 17.60204
A111: 103 | B111: IRB | C111: 149.05 | D111: 150.03 | E111: 147.17 | F111: 145.28 | G111: 142.42 | H111: 151.92 | I111: 154.78 | J111: 156.67 | K111: 152.9 | L111: 148.15 | M111: 19.02059
A112: 104 | B112: IDEA | C112: 35.65 | D112: 35.78 | E112: 34.97 | F112: 34.28 | G112: 33.47 | H112: 36.47 | I112: 37.28 | J112: 37.97 | K112: 36.6 | L112: 35.1 | M112: 297.28807
A113: 105 | B113: IBULHSGFIN | C113: 783.05 | D113: 765.62 | E113: 742.43 | F113: 701.82 | G113: 678.63 | H113: 806.23 | I113: 829.42 | J113: 870.03 | K113: 788.8 | L113: 725 | M113: 132.72896
A114: 106 | B114: INDIANB | C114: 229.55 | D114: 229.23 | E114: 225.52 | F114: 221.48 | G114: 217.77 | H114: 233.27 | I114: 236.98 | J114: 241.02 | K114: 232.95 | L114: 225.2 | M114: 12.34194
A115: 107 | B115: INDHOTEL | C115: 141.95 | D115: 142.63 | E115: 140.32 | F115: 138.68 | G115: 136.37 | H115: 144.27 | I115: 146.58 | J115: 148.22 | K115: 144.95 | L115: 141 | M115: 4.35043
A116: 108 | B116: IOC | C116: 132.8 | D116: 133.17 | E116: 132.03 | F116: 131.27 | G116: 130.13 | H116: 133.93 | I116: 135.07 | J116: 135.83 | K116: 134.3 | L116: 132.4 | M116: 111.01159
A117: 109 | B117: IGL | C117: 261.95 | D117: 261.57 | E117: 259.53 | F117: 257.12 | G117: 255.08 | H117: 263.98 | I117: 266.02 | J117: 268.43 | K117: 263.6 | L117: 259.15 | M117: 31.85682
A118: 110 | B118: INDUSINDBK | C118: 1656.3 | D118: 1651.48 | E118: 1641.12 | F118: 1625.93 | G118: 1615.57 | H118: 1666.67 | I118: 1677.03 | J118: 1692.22 | K118: 1661.85 | L118: 1636.3 | M118: 15.09308
A119: 111 | B119: NAUKRI | C119: 1611.2 | D119: 1600.25 | E119: 1565.50 | F119: 1519.80 | G119: 1485.05 | H119: 1645.95 | I119: 1680.70 | J119: 1726.40 | K119: 1635 | L119: 1554.55 | M119: 3.10499
A120: 112 | B120: INFY | C120: 670.35 | D120: 671.77 | E120: 664.53 | F120: 658.72 | G120: 651.48 | H120: 677.58 | I120: 684.82 | J120: 690.63 | K120: 679 | L120: 665.95 | M120: 82.6089
A121: 113 | B121: INDIGO | C121: 982.8 | D121: 1003.75 | E121: 951.20 | F121: 919.60 | G121: 867.05 | H121: 1035.35 | I121: 1087.90 | J121: 1119.50 | K121: 1056.3 | L121: 972.15 | M121: 17.10577
A122: 114 | B122: IPCALAB | C122: 804.5 | D122: 802.17 | E122: 794.33 | F122: 784.17 | G122: 776.33 | H122: 812.33 | I122: 820.17 | J122: 830.33 | K122: 810 | L122: 792 | M122: 4.41189
A123: 115 | B123: JSWENERGY | C123: 69.5 | D123: 69.23 | E123: 68.07 | F123: 66.63 | G123: 65.47 | H123: 70.67 | I123: 71.83 | J123: 73.27 | K123: 70.4 | L123: 67.8 | M123: 8.16558
A124: 116 | B124: JSWSTEEL | C124: 314.9 | D124: 317.80 | E124: 310.60 | F124: 306.30 | G124: 299.10 | H124: 322.10 | I124: 329.30 | J124: 333.60 | K124: 325 | L124: 313.5 | M124: 65.49046
A125: 117 | B125: JINDALSTEL | C125: 161.95 | D125: 161.52 | E125: 158.63 | F125: 155.32 | G125: 152.43 | H125: 164.83 | I125: 167.72 | J125: 171.03 | K125: 164.4 | L125: 158.2 | M125: 182.526
A126: 118 | B126: JUBLFOOD | C126: 1329.95 | D126: 1313.00 | E126: 1271.00 | F126: 1212.05 | G126: 1170.05 | H126: 1371.95 | I126: 1413.95 | J126: 1472.90 | K126: 1355 | L126: 1254.05 | M126: 38.76048
A127: 119 | B127: JUBILANT | C127: 799.75 | D127: 786.62 | E127: 771.23 | F127: 742.72 | G127: 727.33 | H127: 815.13 | I127: 830.52 | J127: 859.03 | K127: 802 | L127: 758.1 | M127: 7.14189
A128: 120 | B128: KARURVYSYA | C128: 79.15 | D128: 78.97 | E128: 78.28 | F128: 77.42 | G128: 76.73 | H128: 79.83 | I128: 80.52 | J128: 81.38 | K128: 79.65 | L128: 78.1 | M128: 5.78703
A129: 121 | B129: KOTAKBANK | C129: 1226.1 | D129: 1229.50 | E129: 1215.00 | F129: 1203.90 | G129: 1189.40 | H129: 1240.60 | I129: 1255.10 | J129: 1266.20 | K129: 1244 | L129: 1218.4 | M129: 18.17913
A130: 122 | B130: L&TFH | C130: 144.2 | D130: 144.18 | E130: 143.02 | F130: 141.83 | G130: 140.67 | H130: 145.37 | I130: 146.53 | J130: 147.72 | K130: 145.35 | L130: 143 | M130: 51.81402
A131: 123 | B131: LICHSGFIN | C131: 446.3 | D131: 453.28 | E131: 437.62 | F131: 428.93 | G131: 413.27 | H131: 461.97 | I131: 477.63 | J131: 486.32 | K131: 468.95 | L131: 444.6 | M131: 26.7279
A132: 124 | B132: LT | C132: 1427.5 | D132: 1426.48 | E132: 1413.02 | F132: 1398.53 | G132: 1385.07 | H132: 1440.97 | I132: 1454.43 | J132: 1468.92 | K132: 1439.95 | L132: 1412 | M132: 11.15862
A133: 125 | B133: LUPIN | C133: 901.3 | D133: 892.18 | E133: 879.37 | F133: 857.43 | G133: 844.62 | H133: 914.12 | I133: 926.93 | J133: 948.87 | K133: 905 | L133: 870.25 | M133: 23.78359
A134: 126 | B134: MRF | C134: 66692.85 | D134: 67083.28 | E134: 66217.57 | F134: 65742.28 | G134: 64876.57 | H134: 67558.57 | I134: 68424.28 | J134: 68899.57 | K134: 67949 | L134: 66608 | M134: 0.05041
A135: 127 | B135: MGL | C135: 850.1 | D135: 846.87 | E135: 839.78 | F135: 829.47 | G135: 822.38 | H135: 857.18 | I135: 864.27 | J135: 874.58 | K135: 853.95 | L135: 836.55 | M135: 3.00989
A136: 128 | B136: M&MFIN | C136: 442.45 | D136: 445.40 | E136: 435.30 | F136: 428.15 | G136: 418.05 | H136: 452.55 | I136: 462.65 | J136: 469.80 | K136: 455.5 | L136: 438.25 | M136: 10.33627
A137: 129 | B137: M&M | C137: 761.05 | D137: 772.82 | E137: 744.83 | F137: 728.62 | G137: 700.63 | H137: 789.03 | I137: 817.02 | J137: 833.23 | K137: 800.8 | L137: 756.6 | M137: 58.39713
A138: 130 | B138: MANAPPURAM | C138: 85.15 | D138: 85.32 | E138: 84.08 | F138: 83.02 | G138: 81.78 | H138: 86.38 | I138: 87.62 | J138: 88.68 | K138: 86.55 | L138: 84.25 | M138: 15.59462
A139: 131 | B139: MRPL | C139: 73.25 | D139: 73.35 | E139: 72.70 | F139: 72.15 | G139: 71.50 | H139: 73.90 | I139: 74.55 | J139: 75.10 | K139: 74 | L139: 72.8 | M139: 7.40519
A140: 132 | B140: MARICO | C140: 360.15 | D140: 360.88 | E140: 356.27 | F140: 352.38 | G140: 347.77 | H140: 364.77 | I140: 369.38 | J140: 373.27 | K140: 365.5 | L140: 357 | M140: 18.52845
A141: 133 | B141: MARUTI | C141: 7779.95 | D141: 7736.68 | E141: 7673.37 | F141: 7566.78 | G141: 7503.47 | H141: 7843.27 | I141: 7906.58 | J141: 8013.17 | K141: 7800 | L141: 7630.1 | M141: 7.72869
A142: 134 | B142: MFSL | C142: 438.05 | D142: 441.63 | E142: 432.27 | F142: 426.48 | G142: 417.12 | H142: 447.42 | I142: 456.78 | J142: 462.57 | K142: 451 | L142: 435.85 | M142: 2.92467
A143: 135 | B143: MINDTREE | C143: 893.45 | D143: 885.33 | E143: 873.12 | F143: 852.78 | G143: 840.57 | H143: 905.67 | I143: 917.88 | J143: 938.22 | K143: 897.55 | L143: 865 | M143: 12.87294
A144: 136 | B144: MOTHERSUMI | C144: 165.3 | D144: 162.10 | E144: 157.40 | F144: 149.50 | G144: 144.80 | H144: 170.00 | I144: 174.70 | J144: 182.60 | K144: 166.8 | L144: 154.2 | M144: 107.27887
A145: 137 | B145: MPHASIS | C145: 998.45 | D145: 1001.90 | E145: 985.65 | F145: 972.85 | G145: 956.60 | H145: 1014.70 | I145: 1030.95 | J145: 1043.75 | K145: 1018.15 | L145: 989.1 | M145: 3.90997
A146: 138 | B146: MUTHOOTFIN | C146: 448.3 | D146: 451.95 | E146: 442.40 | F146: 436.50 | G146: 426.95 | H146: 457.85 | I146: 467.40 | J146: 473.30 | K146: 461.5 | L146: 446.05 | M146: 2.84847
A147: 139 | B147: NATCOPHARM | C147: 711.85 | D147: 714.85 | E147: 705.00 | F147: 698.15 | G147: 688.30 | H147: 721.70 | I147: 731.55 | J147: 738.40 | K147: 724.7 | L147: 708 | M147: 2.8601
A148: 140 | B148: NBCC | C148: 53.7 | D148: 53.67 | E148: 53.03 | F148: 52.37 | G148: 51.73 | H148: 54.33 | I148: 54.97 | J148: 55.63 | K148: 54.3 | L148: 53 | M148: 62.20059
A149: 141 | B149: NHPC | C149: 26.4 | D149: 26.28 | E149: 25.87 | F149: 25.33 | G149: 24.92 | H149: 26.82 | I149: 27.23 | J149: 27.77 | K149: 26.7 | L149: 25.75 | M149: 33.38817
A150: 142 | B150: NMDC | C150: 96.75 | D150: 96.62 | E150: 95.83 | F150: 94.92 | G150: 94.13 | H150: 97.53 | I150: 98.32 | J150: 99.23 | K150: 97.4 | L150: 95.7 | M150: 22.21623
A151: 143 | B151: NTPC | C151: 144.9 | D151: 143.52 | E151: 141.38 | F151: 137.87 | G151: 135.73 | H151: 147.03 | I151: 149.17 | J151: 152.68 | K151: 145.65 | L151: 140 | M151: 100.10868
A152: 144 | B152: NATIONALUM | C152: 67.7 | D152: 67.78 | E152: 66.77 | F152: 65.83 | G152: 64.82 | H152: 68.72 | I152: 69.73 | J152: 70.67 | K152: 68.8 | L152: 66.85 | M152: 77.51907
A153: 145 | B153: OBEROIRLTY | C153: 472 | D153: 466.60 | E153: 455.30 | F153: 438.60 | G153: 427.30 | H153: 483.30 | I153: 494.60 | J153: 511.30 | K153: 477.9 | L153: 449.9 | M153: 12.50723
A154: 146 | B154: ONGC | C154: 142.5 | D154: 141.90 | E154: 140.80 | F154: 139.10 | G154: 138.00 | H154: 143.60 | I154: 144.70 | J154: 146.40 | K154: 143 | L154: 140.2 | M154: 83.71191
A155: 147 | B155: OIL | C155: 188.9 | D155: 186.93 | E155: 183.97 | F155: 179.03 | G155: 176.07 | H155: 191.87 | I155: 194.83 | J155: 199.77 | K155: 189.9 | L155: 182 | M155: 28.10112
A156: 148 | B156: OFSS | C156: 3431.85 | D156: 3422.85 | E156: 3389.85 | F156: 3347.85 | G156: 3314.85 | H156: 3464.85 | I156: 3497.85 | J156: 3539.85 | K156: 3455.85 | L156: 3380.85 | M156: 0.53038
A157: 149 | B157: PCJEWELLER | C157: 69.05 | D157: 69.03 | E157: 67.32 | F157: 65.58 | G157: 63.87 | H157: 70.77 | I157: 72.48 | J157: 74.22 | K157: 70.75 | L157: 67.3 | M157: 120.17361
A158: 150 | B158: PIIND | C158: 812.15 | D158: 814.47 | E158: 802.68 | F158: 793.22 | G158: 781.43 | H158: 823.93 | I158: 835.72 | J158: 845.18 | K158: 826.25 | L158: 805 | M158: 0.6674
A159: 151 | B159: PNBHOUSING | C159: 931.25 | D159: 922.00 | E159: 901.35 | F159: 871.45 | G159: 850.80 | H159: 951.90 | I159: 972.55 | J159: 1002.45 | K159: 942.65 | L159: 892.1 | M159: 2.95992
A160: 152 | B160: PAGEIND | C160: 26498.75 | D160: 26700.48 | E160: 26058.42 | F160: 25618.08 | G160: 24976.02 | H160: 27140.82 | I160: 27782.88 | J160: 28223.22 | K160: 27342.55 | L160: 26260.15 | M160: 0.33565
A161: 153 | B161: PETRONET | C161: 213 | D161: 213.42 | E161: 211.58 | F161: 210.17 | G161: 208.33 | H161: 214.83 | I161: 216.67 | J161: 218.08 | K161: 215.25 | L161: 212 | M161: 16.77578
A162: 154 | B162: PIDILITIND | C162: 1151.8 | D162: 1154.40 | E162: 1139.80 | F162: 1127.80 | G162: 1113.20 | H162: 1166.40 | I162: 1181.00 | J162: 1193.00 | K162: 1169 | L162: 1142.4 | M162: 3.66895
A163: 155 | B163: PEL | C163: 2199.6 | D163: 2201.67 | E163: 2168.33 | F163: 2137.07 | G163: 2103.73 | H163: 2232.93 | I163: 2266.27 | J163: 2297.53 | K163: 2235 | L163: 2170.4 | M163: 3.69114
A164: 156 | B164: PFC | C164: 97.15 | D164: 93.82 | E164: 89.13 | F164: 81.12 | G164: 76.43 | H164: 101.83 | I164: 106.52 | J164: 114.53 | K164: 98.5 | L164: 85.8 | M164: 399.46967
A165: 157 | B165: POWERGRID | C165: 183.8 | D165: 184.47 | E165: 180.43 | F165: 177.07 | G165: 173.03 | H165: 187.83 | I165: 191.87 | J165: 195.23 | K165: 188.5 | L165: 181.1 | M165: 62.48048
A166: 158 | B166: PRESTIGE | C166: 210.1 | D166: 214.32 | E166: 203.78 | F166: 197.47 | G166: 186.93 | H166: 220.63 | I166: 231.17 | J166: 237.48 | K166: 224.85 | L166: 208 | M166: 3.11211
A167: 159 | B167: PGHH | C167: 9600.55 | D167: 9576.52 | E167: 9503.03 | F167: 9405.52 | G167: 9332.03 | H167: 9674.03 | I167: 9747.52 | J167: 9845.03 | K167: 9650 | L167: 9479 | M167: 0.09161
A168: 160 | B168: PNB | C168: 71.45 | D168: 70.97 | E168: 69.93 | F168: 68.42 | G168: 67.38 | H168: 72.48 | I168: 73.52 | J168: 75.03 | K168: 72 | L168: 69.45 | M168: 155.79155
A169: 161 | B169: RBLBANK | C169: 556.2 | D169: 557.00 | E169: 552.00 | F169: 547.80 | G169: 542.80 | H169: 561.20 | I169: 566.20 | J169: 570.40 | K169: 562 | L169: 552.8 | M169: 9.20819
A170: 162 | B170: RAJESHEXPO | C170: 570.9 | D170: 571.57 | E170: 570.13 | F170: 569.37 | G170: 567.93 | H170: 572.33 | I170: 573.77 | J170: 574.53 | K170: 573 | L170: 570.8 | M170: 2.35846
A171: 163 | B171: RELCAPITAL | C171: 232.05 | D171: 230.35 | E171: 226.45 | F171: 220.85 | G171: 216.95 | H171: 235.95 | I171: 239.85 | J171: 245.45 | K171: 234.25 | L171: 224.75 | M171: 77.7566
A172: 164 | B172: RCOM | C172: 16.6 | D172: 16.05 | E172: 15.25 | F172: 13.90 | G172: 13.10 | H172: 17.40 | I172: 18.20 | J172: 19.55 | K172: 16.85 | L172: 14.7 | M172: 2649.30325
A173: 165 | B173: RELIANCE | C173: 1156.45 | D173: 1159.95 | E173: 1145.00 | F173: 1133.55 | G173: 1118.60 | H173: 1171.40 | I173: 1186.35 | J173: 1197.80 | K173: 1174.9 | L173: 1148.5 | M173: 55.69578
A174: 166 | B174: RELINFRA | C174: 331.9 | D174: 332.37 | E174: 325.63 | F174: 319.37 | G174: 312.63 | H174: 338.63 | I174: 345.37 | J174: 351.63 | K174: 339.1 | L174: 326.1 | M174: 40.51303
A175: 167 | B175: RPOWER | C175: 30.1 | D175: 30.27 | E175: 28.98 | F175: 27.87 | G175: 26.58 | H175: 31.38 | I175: 32.67 | J175: 33.78 | K175: 31.55 | L175: 29.15 | M175: 166.476
A176: 168 | B176: RECLTD | C176: 105.65 | D176: 105.33 | E176: 100.82 | F176: 95.98 | G176: 91.47 | H176: 110.17 | I176: 114.68 | J176: 119.52 | K176: 109.85 | L176: 100.5 | M176: 209.52231
A177: 169 | B177: SRF | C177: 2144.3 | D177: 2150.45 | E177: 2126.90 | F177: 2109.50 | G177: 2085.95 | H177: 2167.85 | I177: 2191.40 | J177: 2208.80 | K177: 2174 | L177: 2133.05 | M177: 1.70703
A178: 170 | B178: SHREECEM | C178: 16793.3 | D178: 16659.07 | E178: 16468.13 | F178: 16142.97 | G178: 15952.03 | H178: 16984.23 | I178: 17175.17 | J178: 17500.33 | K178: 16850 | L178: 16333.9 | M178: 0.22955
A179: 171 | B179: SRTRANSFIN | C179: 1163.05 | D179: 1159.27 | E179: 1142.03 | F179: 1121.02 | G179: 1103.78 | H179: 1180.28 | I179: 1197.52 | J179: 1218.53 | K179: 1176.5 | L179: 1138.25 | M179: 9.19096
A180: 172 | B180: SIEMENS | C180: 942.2 | D180: 944.23 | E180: 928.97 | F180: 915.73 | G180: 900.47 | H180: 957.47 | I180: 972.73 | J180: 985.97 | K180: 959.5 | L180: 931 | M180: 4.88764
A181: 173 | B181: SBIN | C181: 286.8 | D181: 285.98 | E181: 284.07 | F181: 281.33 | G181: 279.42 | H181: 288.72 | I181: 290.63 | J181: 293.37 | K181: 287.9 | L181: 283.25 | M181: 157.72176
A182: 174 | B182: SAIL | C182: 56.7 | D182: 56.70 | E182: 56.10 | F182: 55.50 | G182: 54.90 | H182: 57.30 | I182: 57.90 | J182: 58.50 | K182: 57.3 | L182: 56.1 | M182: 100.11251
A183: 175 | B183: SPARC | C183: 248.5 | D183: 249.68 | E183: 243.82 | F183: 239.13 | G183: 233.27 | H183: 254.37 | I183: 260.23 | J183: 264.92 | K183: 255.55 | L183: 245 | M183: 5.48911
A184: 176 | B184: SUNPHARMA | C184: 455.4 | D184: 452.52 | E184: 444.03 | F184: 432.67 | G184: 424.18 | H184: 463.88 | I184: 472.37 | J184: 483.73 | K184: 461 | L184: 441.15 | M184: 614.92013
A185: 177 | B185: SUNTV | C185: 595.15 | D185: 595.22 | E185: 589.23 | F185: 583.32 | G185: 577.33 | H185: 601.13 | I185: 607.12 | J185: 613.03 | K185: 601.2 | L185: 589.3 | M185: 12.16634
A186: 178 | B186: SUZLON | C186: 5.55 | D186: 5.47 | E186: 5.23 | F186: 4.92 | G186: 4.68 | H186: 5.78 | I186: 6.02 | J186: 6.33 | K186: 5.7 | L186: 5.15 | M186: 569.78432
A187: 179 | B187: SYNDIBANK | C187: 35.1 | D187: 35.07 | E187: 34.58 | F187: 34.07 | G187: 33.58 | H187: 35.58 | I187: 36.07 | J187: 36.58 | K187: 35.55 | L187: 34.55 | M187: 17.7641
A188: 180 | B188: SYNGENE | C188: 546.05 | D188: 548.15 | E188: 541.90 | F188: 537.75 | G188: 531.50 | H188: 552.30 | I188: 558.55 | J188: 562.70 | K188: 554.4 | L188: 544 | M188: 1.26899
A189: 181 | B189: TV18BRDCST | C189: 36.35 | D189: 36.25 | E189: 35.85 | F189: 35.35 | G189: 34.95 | H189: 36.75 | I189: 37.15 | J189: 37.65 | K189: 36.65 | L189: 35.75 | M189: 24.65647
A190: 182 | B190: TVSMOTOR | C190: 550.6 | D190: 551.70 | E190: 545.90 | F190: 541.20 | G190: 535.40 | H190: 556.40 | I190: 562.20 | J190: 566.90 | K190: 557.5 | L190: 547 | M190: 21.29752
A191: 183 | B191: TATACHEM | C191: 696.75 | D191: 697.00 | E191: 690.95 | F191: 685.15 | G191: 679.10 | H191: 702.80 | I191: 708.85 | J191: 714.65 | K191: 703.05 | L191: 691.2 | M191: 3.33425
A192: 184 | B192: TATACOMM | C192: 527.85 | D192: 532.88 | E192: 520.37 | F192: 512.88 | G192: 500.37 | H192: 540.37 | I192: 552.88 | J192: 560.37 | K192: 545.4 | L192: 525.4 | M192: 3.92231
A193: 185 | B193: TCS | C193: 1982.4 | D193: 1980.23 | E193: 1970.47 | F193: 1958.53 | G193: 1948.77 | H193: 1992.17 | I193: 2001.93 | J193: 2013.87 | K193: 1990 | L193: 1968.3 | M193: 16.10576
A194: 186 | B194: TATAGLOBAL | C194: 214.75 | D194: 216.08 | E194: 212.97 | F194: 211.18 | G194: 208.07 | H194: 217.87 | I194: 220.98 | J194: 222.77 | K194: 219.2 | L194: 214.3 | M194: 10.99033
A195: 187 | B195: TATAMTRDVR | C195: 95.3 | D195: 94.75 | E195: 93.25 | F195: 91.20 | G195: 89.70 | H195: 96.80 | I195: 98.30 | J195: 100.35 | K195: 96.25 | L195: 92.7 | M195: 30.66836
A196: 188 | B196: TATAMOTORS | C196: 175.45 | D196: 173.97 | E196: 171.48 | F196: 167.52 | G196: 165.03 | H196: 177.93 | I196: 180.42 | J196: 184.38 | K196: 176.45 | L196: 170 | M196: 140.68885
A197: 189 | B197: TATAPOWER | C197: 82.55 | D197: 80.82 | E197: 78.48 | F197: 74.42 | G197: 72.08 | H197: 84.88 | I197: 87.22 | J197: 91.28 | K197: 83.15 | L197: 76.75 | M197: 292.13251
A198: 190 | B198: TATASTEEL | C198: 538.1 | D198: 542.18 | E198: 531.67 | F198: 525.23 | G198: 514.72 | H198: 548.62 | I198: 559.13 | J198: 565.57 | K198: 552.7 | L198: 535.75 | M198: 120.92365
A199: 191 | B199: TECHM | C199: 712.7 | D199: 711.35 | E199: 705.05 | F199: 697.40 | G199: 691.10 | H199: 719.00 | I199: 725.30 | J199: 732.95 | K199: 717.65 | L199: 703.7 | M199: 24.10009
A200: 192 | B200: RAMCOCEM | C200: 609.95 | D200: 607.68 | E200: 601.42 | F200: 592.88 | G200: 586.62 | H200: 616.22 | I200: 622.48 | J200: 631.02 | K200: 613.95 | L200: 599.15 | M200: 2.09536
A201: 193 | B201: TITAN | C201: 936.25 | D201: 932.18 | E201: 924.57 | F201: 912.88 | G201: 905.27 | H201: 943.87 | I201: 951.48 | J201: 963.17 | K201: 939.8 | L201: 920.5 | M201: 20.44427
A202: 194 | B202: TORNTPHARM | C202: 1753.1 | D202: 1765.83 | E202: 1729.77 | F202: 1706.43 | G202: 1670.37 | H202: 1789.17 | I202: 1825.23 | J202: 1848.57 | K202: 1801.9 | L202: 1742.5 | M202: 4.14965
A203: 195 | B203: TORNTPOWER | C203: 270.85 | D203: 271.73 | E203: 266.52 | F203: 262.18 | G203: 256.97 | H203: 276.07 | I203: 281.28 | J203: 285.62 | K203: 276.95 | L203: 267.4 | M203: 18.50457
A204: 196 | B204: UPL | C204: 732.6 | D204: 740.93 | E204: 719.87 | F204: 707.13 | G204: 686.07 | H204: 753.67 | I204: 774.73 | J204: 787.47 | K204: 762 | L204: 728.2 | M204: 28.4633
A205: 197 | B205: ULTRACEMCO | C205: 4047 | D205: 4053.97 | E205: 4007.93 | F205: 3968.87 | G205: 3922.83 | H205: 4093.03 | I205: 4139.07 | J205: 4178.13 | K205: 4100 | L205: 4014.9 | M205: 3.56511
... 30 more rows

Sheet MidCap Intra
L5: Back To Main Page
A6: FOR INTRA DAY TRADING | K6: =Main!B10 -> 2018-12-04
A9: Sr.no | B9: Scrip | C9: CLOSE RATE | D9: Pivot Point | E9: Supports | H9: Resistances
C10: Point | E10: S1 | F10: S2 | G10: S3 | H10: R1 | I10: R2 | J10: R3 | K10: HIGH | L10: LOW | M10: Total Trade Quanity in Lakhs
A11: 1 | B11: 3MINDIA | C11: 21902.15 | D11: 21940.72 | E11: 21591.43 | F11: 21280.72 | G11: 20931.43 | H11: 22251.43 | I11: 22600.72 | J11: 22911.43 | K11: 22290 | L11: 21630 | M11: 0.01536
A12: 2 | B12: 8KMILES | C12: 193 | D12: 193.00 | E12: 193.00 | F12: 193.00 | G12: 193.00 | H12: 193.00 | I12: 193.00 | J12: 193.00 | K12: 193 | L12: 193 | M12: 0.26096
A13: 3 | B13: AARTIIND | C13: 1456.6 | D13: 1441.23 | E13: 1420.47 | F13: 1384.33 | G13: 1363.57 | H13: 1477.37 | I13: 1498.13 | J13: 1534.27 | K13: 1462 | L13: 1405.1 | M13: 0.82083
A14: 4 | B14: ABAN | C14: 75.6 | D14: 75.73 | E14: 74.07 | F14: 72.53 | G14: 70.87 | H14: 77.27 | I14: 78.93 | J14: 80.47 | K14: 77.4 | L14: 74.2 | M14: 4.74329
A15: 5 | B15: ABB | C15: 1389.2 | D15: 1396.07 | E15: 1373.13 | F15: 1357.07 | G15: 1334.13 | H15: 1412.13 | I15: 1435.07 | J15: 1451.13 | K15: 1419 | L15: 1380 | M15: 0.34631
A16: 6 | B16: ABCAPITAL | C16: 101.9 | D16: 103.03 | E16: 100.17 | F16: 98.43 | G16: 95.57 | H16: 104.77 | I16: 107.63 | J16: 109.37 | K16: 105.9 | L16: 101.3 | M16: 14.44966
A17: 7 | B17: ABFRL | C17: 185.4 | D17: 183.30 | E17: 180.20 | F17: 175.00 | G17: 171.90 | H17: 188.50 | I17: 191.60 | J17: 196.80 | K17: 186.4 | L17: 178.1 | M17: 4.67426
A18: 8 | B18: ACC | C18: 1516.8 | D18: 1510.30 | E18: 1490.60 | F18: 1464.40 | G18: 1444.70 | H18: 1536.50 | I18: 1556.20 | J18: 1582.40 | K18: 1530 | L18: 1484.1 | M18: 7.20915
A19: 9 | B19: ADANIPORTS | C19: 375.65 | D19: 373.52 | E19: 367.13 | F19: 358.62 | G19: 352.23 | H19: 382.03 | I19: 388.42 | J19: 396.93 | K19: 379.9 | L19: 365 | M19: 43.03979
A20: 10 | B20: ADANIPOWER | C20: 57.85 | D20: 57.30 | E20: 56.25 | F20: 54.65 | G20: 53.60 | H20: 58.90 | I20: 59.95 | J20: 61.55 | K20: 58.35 | L20: 55.7 | M20: 299.14058
A21: 11 | B21: ADANITRANS | C21: 218.45 | D21: 220.85 | E21: 213.70 | F21: 208.95 | G21: 201.80 | H21: 225.60 | I21: 232.75 | J21: 237.50 | K21: 228 | L21: 216.1 | M21: 4.41042
A22: 12 | B22: ADVENZYMES | C22: 183.95 | D22: 184.60 | E22: 182.40 | F22: 180.85 | G22: 178.65 | H22: 186.15 | I22: 188.35 | J22: 189.90 | K22: 186.8 | L22: 183.05 | M22: 0.23637
A23: 13 | B23: AEGISCHEM | C23: 209.8 | D23: 210.08 | E23: 207.17 | F23: 204.53 | G23: 201.62 | H23: 212.72 | I23: 215.63 | J23: 218.27 | K23: 213 | L23: 207.45 | M23: 0.87568
A24: 14 | B24: AIAENG | C24: 1724.45 | D24: 1727.62 | E24: 1680.23 | F24: 1636.02 | G24: 1588.63 | H24: 1771.83 | I24: 1819.22 | J24: 1863.43 | K24: 1775 | L24: 1683.4 | M24: 0.43685
A25: 15 | B25: AJANTPHARM | C25: 1155.6 | D25: 1163.53 | E25: 1142.07 | F25: 1128.53 | G25: 1107.07 | H25: 1177.07 | I25: 1198.53 | J25: 1212.07 | K25: 1185 | L25: 1150 | M25: 3.1723
A26: 16 | B26: AKZOINDIA | C26: 1589.6 | D26: 1585.88 | E26: 1576.77 | F26: 1563.93 | G26: 1554.82 | H26: 1598.72 | I26: 1607.83 | J26: 1620.67 | K26: 1595 | L26: 1573.05 | M26: 0.18307
A27: 17 | B27: ALBK | C27: 48.85 | D27: 48.63 | E27: 47.97 | F27: 47.08 | G27: 46.42 | H27: 49.52 | I27: 50.18 | J27: 51.07 | K27: 49.3 | L27: 47.75 | M27: 46.254
A28: 18 | B28: ALKEM | C28: 1902.65 | D28: 1898.22 | E28: 1876.43 | F28: 1850.22 | G28: 1828.43 | H28: 1924.43 | I28: 1946.22 | J28: 1972.43 | K28: 1920 | L28: 1872 | M28: 0.59256
A29: 19 | B29: ALLCARGO | C29: 106.25 | D29: 105.98 | E29: 105.27 | F29: 104.28 | G29: 103.57 | H29: 106.97 | I29: 107.68 | J29: 108.67 | K29: 106.7 | L29: 105 | M29: 1.21083
A30: 20 | B30: AMARAJABAT | C30: 715.45 | D30: 715.40 | E30: 709.80 | F30: 704.15 | G30: 698.55 | H30: 721.05 | I30: 726.65 | J30: 732.30 | K30: 721 | L30: 709.75 | M30: 5.24249
A31: 21 | B31: AMBUJACEM | C31: 220 | D31: 220.13 | E31: 217.47 | F31: 214.93 | G31: 212.27 | H31: 222.67 | I31: 225.33 | J31: 227.87 | K31: 222.8 | L31: 217.6 | M31: 28.23065
A32: 22 | B32: ANDHRABANK | C32: 28.45 | D32: 28.53 | E32: 28.27 | F32: 28.08 | G32: 27.82 | H32: 28.72 | I32: 28.98 | J32: 29.17 | K32: 28.8 | L32: 28.35 | M32: 4.90118
A33: 23 | B33: APLAPOLLO | C33: 1300.15 | D33: 1299.05 | E33: 1288.10 | F33: 1276.05 | G33: 1265.10 | H33: 1311.10 | I33: 1322.05 | J33: 1334.10 | K33: 1310 | L33: 1287 | M33: 0.45928
A34: 24 | B34: APLLTD | C34: 616.2 | D34: 622.90 | E34: 607.80 | F34: 599.40 | G34: 584.30 | H34: 631.30 | I34: 646.40 | J34: 654.80 | K34: 638 | L34: 614.5 | M34: 0.79701
A35: 25 | B35: APOLLOHOSP | C35: 1292.2 | D35: 1294.50 | E35: 1259.15 | F35: 1226.10 | G35: 1190.75 | H35: 1327.55 | I35: 1362.90 | J35: 1395.95 | K35: 1329.85 | L35: 1261.45 | M35: 14.75095
A36: 26 | B36: APOLLOTYRE | C36: 234.95 | D36: 236.93 | E36: 231.52 | F36: 228.08 | G36: 222.67 | H36: 240.37 | I36: 245.78 | J36: 249.22 | K36: 242.35 | L36: 233.5 | M36: 22.85274
A37: 27 | B37: ARVIND | C37: 102.1 | D37: 102.87 | E37: 100.73 | F37: 99.37 | G37: 97.23 | H37: 104.23 | I37: 106.37 | J37: 107.73 | K37: 105 | L37: 101.5 | M37: 64.08976
A38: 28 | B38: ASAHIINDIA | C38: 261.95 | D38: 262.85 | E38: 258.15 | F38: 254.35 | G38: 249.65 | H38: 266.65 | I38: 271.35 | J38: 275.15 | K38: 267.55 | L38: 259.05 | M38: 0.0566
A39: 29 | B39: ASHOKA | C39: 128.65 | D39: 129.68 | E39: 127.02 | F39: 125.38 | G39: 122.72 | H39: 131.32 | I39: 133.98 | J39: 135.62 | K39: 132.35 | L39: 128.05 | M39: 0.44303
A40: 30 | B40: ASHOKLEY | C40: 107.15 | D40: 108.53 | E40: 104.62 | F40: 102.08 | G40: 98.17 | H40: 111.07 | I40: 114.98 | J40: 117.52 | K40: 112.45 | L40: 106 | M40: 388.77711
A41: 31 | B41: ASIANPAINT | C41: 1338.7 | D41: 1344.25 | E41: 1329.50 | F41: 1320.30 | G41: 1305.55 | H41: 1353.45 | I41: 1368.20 | J41: 1377.40 | K41: 1359 | L41: 1335.05 | M41: 7.10748
A42: 32 | B42: ASTRAL | C42: 1039.7 | D42: 1037.85 | E42: 1026.70 | F42: 1013.70 | G42: 1002.55 | H42: 1050.85 | I42: 1062.00 | J42: 1075.00 | K42: 1049 | L42: 1024.85 | M42: 0.20074
A43: 33 | B43: ATUL | C43: 3448.2 | D43: 3452.12 | E43: 3418.08 | F43: 3387.97 | G43: 3353.93 | H43: 3482.23 | I43: 3516.27 | J43: 3546.38 | K43: 3486.15 | L43: 3422 | M43: 0.07254
A44: 34 | B44: AUBANK | C44: 591.6 | D44: 589.20 | E44: 580.40 | F44: 569.20 | G44: 560.40 | H44: 600.40 | I44: 609.20 | J44: 620.40 | K44: 598 | L44: 578 | M44: 5.16498
A45: 35 | B45: AUROPHARMA | C45: 804.85 | D45: 806.75 | E45: 797.50 | F45: 790.15 | G45: 780.90 | H45: 814.10 | I45: 823.35 | J45: 830.70 | K45: 816 | L45: 799.4 | M45: 25.34907
A46: 36 | B46: AVANTIFEED | C46: 342.6 | D46: 344.73 | E46: 338.57 | F46: 334.53 | G46: 328.37 | H46: 348.77 | I46: 354.93 | J46: 358.97 | K46: 350.9 | L46: 340.7 | M46: 1.94605
A47: 37 | B47: AXISBANK | C47: 624.8 | D47: 626.47 | E47: 619.93 | F47: 615.07 | G47: 608.53 | H47: 631.33 | I47: 637.87 | J47: 642.73 | K47: 633 | L47: 621.6 | M47: 59.1425
A48: 38 | B48: BAJAJ-AUTO | C48: 2736 | D48: 2738.32 | E48: 2711.68 | F48: 2687.37 | G48: 2660.73 | H48: 2762.63 | I48: 2789.27 | J48: 2813.58 | K48: 2764.95 | L48: 2714 | M48: 3.8606
A49: 39 | B49: BAJAJCORP | C49: 357.35 | D49: 358.43 | E49: 350.92 | F49: 344.48 | G49: 336.97 | H49: 364.87 | I49: 372.38 | J49: 378.82 | K49: 365.95 | L49: 352 | M49: 0.2471
A50: 40 | B50: BAJAJELEC | C50: 473.4 | D50: 474.70 | E50: 470.70 | F50: 468.00 | G50: 464.00 | H50: 477.40 | I50: 481.40 | J50: 484.10 | K50: 478.7 | L50: 472 | M50: 0.92007
A51: 41 | B51: BAJAJFINSV | C51: 5999.3 | D51: 6020.90 | E51: 5953.45 | F51: 5907.60 | G51: 5840.15 | H51: 6066.75 | I51: 6134.20 | J51: 6180.05 | K51: 6088.35 | L51: 5975.05 | M51: 1.59769
A52: 42 | B52: BAJAJHIND | C52: 9.6 | D52: 9.68 | E52: 9.52 | F52: 9.43 | G52: 9.27 | H52: 9.77 | I52: 9.93 | J52: 10.02 | K52: 9.85 | L52: 9.6 | M52: 14.1276
A53: 43 | B53: BAJAJHLDNG | C53: 2992.8 | D53: 3000.93 | E53: 2967.87 | F53: 2942.93 | G53: 2909.87 | H53: 3025.87 | I53: 3058.93 | J53: 3083.87 | K53: 3034 | L53: 2976 | M53: 0.08007
A54: 44 | B54: BAJFINANCE | C54: 2508.65 | D54: 2518.32 | E54: 2481.08 | F54: 2453.52 | G54: 2416.28 | H54: 2545.88 | I54: 2583.12 | J54: 2610.68 | K54: 2555.55 | L54: 2490.75 | M54: 11.15592
A55: 45 | B55: BALKRISIND | C55: 943.7 | D55: 963.88 | E55: 916.82 | F55: 889.93 | G55: 842.87 | H55: 990.77 | I55: 1037.83 | J55: 1064.72 | K55: 1010.95 | L55: 937 | M55: 7.99882
A56: 46 | B56: BALLARPUR | C56: 5.65 | D56: 5.70 | E56: 5.55 | F56: 5.45 | G56: 5.30 | H56: 5.80 | I56: 5.95 | J56: 6.05 | K56: 5.85 | L56: 5.6 | M56: 4.89705
A57: 47 | B57: BALMLAWRIE | C57: 186.85 | D57: 187.67 | E57: 185.18 | F57: 183.52 | G57: 181.03 | H57: 189.33 | I57: 191.82 | J57: 193.48 | K57: 190.15 | L57: 186 | M57: 0.23236
A58: 48 | B58: BALRAMCHIN | C58: 101.65 | D58: 101.80 | E58: 100.05 | F58: 98.45 | G58: 96.70 | H58: 103.40 | I58: 105.15 | J58: 106.75 | K58: 103.55 | L58: 100.2 | M58: 24.07625
A59: 49 | B59: BANKBARODA | C59: 106.95 | D59: 106.68 | E59: 105.17 | F59: 103.38 | G59: 101.87 | H59: 108.47 | I59: 109.98 | J59: 111.77 | K59: 108.2 | L59: 104.9 | M59: 140.92602
A60: 50 | B60: BANKINDIA | C60: 88.65 | D60: 87.50 | E60: 85.70 | F60: 82.75 | G60: 80.95 | H60: 90.45 | I60: 92.25 | J60: 95.20 | K60: 89.3 | L60: 84.55 | M60: 95.15981
A61: 51 | B61: BASF | C61: 1578.75 | D61: 1580.97 | E61: 1550.78 | F61: 1522.82 | G61: 1492.63 | H61: 1608.93 | I61: 1639.12 | J61: 1667.08 | K61: 1611.15 | L61: 1553 | M61: 0.0406
A62: 52 | B62: BATAINDIA | C62: 1063.8 | D62: 1059.87 | E62: 1050.23 | F62: 1036.67 | G62: 1027.03 | H62: 1073.43 | I62: 1083.07 | J62: 1096.63 | K62: 1069.5 | L62: 1046.3 | M62: 17.16616
A63: 53 | B63: BBTC | C63: 1373.25 | D63: 1380.05 | E63: 1355.20 | F63: 1337.15 | G63: 1312.30 | H63: 1398.10 | I63: 1422.95 | J63: 1441.00 | K63: 1404.9 | L63: 1362 | M63: 1.13726
A64: 54 | B64: BEL | C64: 85.2 | D64: 84.68 | E64: 82.92 | F64: 80.63 | G64: 78.87 | H64: 86.97 | I64: 88.73 | J64: 91.02 | K64: 86.45 | L64: 82.4 | M64: 102.41635
A65: 55 | B65: BEML | C65: 747.6 | D65: 750.42 | E65: 739.48 | F65: 731.37 | G65: 720.43 | H65: 758.53 | I65: 769.47 | J65: 777.58 | K65: 761.35 | L65: 742.3 | M65: 6.19904
A66: 56 | B66: BERGEPAINT | C66: 322.85 | D66: 322.25 | E66: 319.60 | F66: 316.35 | G66: 313.70 | H66: 325.50 | I66: 328.15 | J66: 331.40 | K66: 324.9 | L66: 319 | M66: 9.69815
A67: 57 | B67: BFUTILITIE | C67: 214.75 | D67: 215.60 | E67: 212.20 | F67: 209.65 | G67: 206.25 | H67: 218.15 | I67: 221.55 | J67: 224.10 | K67: 219 | L67: 213.05 | M67: 2.68461
A68: 58 | B68: BGRENERGY | C68: 62.15 | D68: 61.92 | E68: 60.73 | F68: 59.32 | G68: 58.13 | H68: 63.33 | I68: 64.52 | J68: 65.93 | K68: 63.1 | L68: 60.5 | M68: 1.07295
A69: 59 | B69: BHARATFIN | C69: 1042.15 | D69: 1038.33 | E69: 1030.67 | F69: 1019.18 | G69: 1011.52 | H69: 1049.82 | I69: 1057.48 | J69: 1068.97 | K69: 1046 | L69: 1026.85 | M69: 20.74127
A70: 60 | B70: BHARATFORG | C70: 563.75 | D70: 563.35 | E70: 556.90 | F70: 550.05 | G70: 543.60 | H70: 570.20 | I70: 576.65 | J70: 583.50 | K70: 569.8 | L70: 556.5 | M70: 14.23254
A71: 61 | B71: BHARTIARTL | C71: 319.75 | D71: 318.42 | E71: 315.83 | F71: 311.92 | G71: 309.33 | H71: 322.33 | I71: 324.92 | J71: 328.83 | K71: 321 | L71: 314.5 | M71: 30.36001
A72: 62 | B72: BHEL | C72: 70.85 | D72: 69.85 | E72: 68.40 | F72: 65.95 | G72: 64.50 | H72: 72.30 | I72: 73.75 | J72: 76.20 | K72: 71.3 | L72: 67.4 | M72: 161.29731
A73: 63 | B73: BHUSANSTL | C73: 27.3 | D73: 27.42 | E73: 27.13 | F73: 26.97 | G73: 26.68 | H73: 27.58 | I73: 27.87 | J73: 28.03 | K73: 27.7 | L73: 27.25 | M73: 3.8048
A74: 64 | B74: BIOCON | C74: 616.2 | D74: 621.25 | E74: 609.95 | F74: 603.70 | G74: 592.40 | H74: 627.50 | I74: 638.80 | J74: 645.05 | K74: 632.55 | L74: 615 | M74: 19.93303
A75: 65 | B75: BIRLACORPN | C75: 629.5 | D75: 634.58 | E75: 612.22 | F75: 594.93 | G75: 572.57 | H75: 651.87 | I75: 674.23 | J75: 691.52 | K75: 656.95 | L75: 617.3 | M75: 0.31572
A76: 66 | B76: BLISSGVS | C76: 148.9 | D76: 149.03 | E76: 144.72 | F76: 140.53 | G76: 136.22 | H76: 153.22 | I76: 157.53 | J76: 161.72 | K76: 153.35 | L76: 144.85 | M76: 2.68364
A77: 67 | B77: BLUEDART | C77: 3117.25 | D77: 3116.15 | E77: 3101.10 | F77: 3084.95 | G77: 3069.90 | H77: 3132.30 | I77: 3147.35 | J77: 3163.50 | K77: 3131.2 | L77: 3100 | M77: 0.00807
A78: 68 | B78: BLUESTARCO | C78: 674.1 | D78: 676.45 | E78: 662.40 | F78: 650.70 | G78: 636.65 | H78: 688.15 | I78: 702.20 | J78: 713.90 | K78: 690.5 | L78: 664.75 | M78: 0.99439
A79: 69 | B79: BOMDYEING | C79: 97.6 | D79: 98.40 | E79: 95.75 | F79: 93.90 | G79: 91.25 | H79: 100.25 | I79: 102.90 | J79: 104.75 | K79: 101.05 | L79: 96.55 | M79: 10.44979
A80: 70 | B80: BOSCHLTD | C80: 19204 | D80: 19197.63 | E80: 19006.37 | F80: 18808.73 | G80: 18617.47 | H80: 19395.27 | I80: 19586.53 | J80: 19784.17 | K80: 19388.9 | L80: 19000 | M80: 0.22537
A81: 71 | B81: BPCL | C81: 323.95 | D81: 322.85 | E81: 318.75 | F81: 313.55 | G81: 309.45 | H81: 328.05 | I81: 332.15 | J81: 337.35 | K81: 326.95 | L81: 317.65 | M81: 45.79421
A82: 72 | B82: BRFL | C82: 9.95 | D82: 10.02 | E82: 9.48 | F82: 9.02 | G82: 8.48 | H82: 10.48 | I82: 11.02 | J82: 11.48 | K82: 10.55 | L82: 9.55 | M82: 6.37122
A83: 73 | B83: BRIGADE | C83: 199.3 | D83: 198.53 | E83: 192.82 | F83: 186.33 | G83: 180.62 | H83: 205.02 | I83: 210.73 | J83: 217.22 | K83: 204.25 | L83: 192.05 | M83: 0.20093
A84: 74 | B84: BRITANNIA | C84: 3094.5 | D84: 3121.58 | E84: 3054.27 | F84: 3014.03 | G84: 2946.72 | H84: 3161.82 | I84: 3229.13 | J84: 3269.37 | K84: 3188.9 | L84: 3081.35 | M84: 3.11813
A85: 75 | B85: BSE | C85: 601.25 | D85: 603.08 | E85: 598.32 | F85: 595.38 | G85: 590.62 | H85: 606.02 | I85: 610.78 | J85: 613.72 | K85: 607.85 | L85: 600.15 | M85: 0.41757
A86: 77 | B86: CADILAHC | C86: 356.8 | D86: 359.78 | E86: 350.57 | F86: 344.33 | G86: 335.12 | H86: 366.02 | I86: 375.23 | J86: 381.47 | K86: 369 | L86: 353.55 | M86: 14.32872
A87: 78 | B87: CANBK | C87: 257.95 | D87: 258.20 | E87: 254.50 | F87: 251.05 | G87: 247.35 | H87: 261.65 | I87: 265.35 | J87: 268.80 | K87: 261.9 | L87: 254.75 | M87: 69.25635
A88: 79 | B88: CANFINHOME | C88: 267.55 | D88: 268.25 | E88: 263.70 | F88: 259.85 | G88: 255.30 | H88: 272.10 | I88: 276.65 | J88: 280.50 | K88: 272.8 | L88: 264.4 | M88: 4.71044
A89: 80 | B89: CAPF | C89: 522.7 | D89: 523.03 | E89: 518.37 | F89: 514.03 | G89: 509.37 | H89: 527.37 | I89: 532.03 | J89: 536.37 | K89: 527.7 | L89: 518.7 | M89: 4.00602
A90: 81 | B90: CAPLIPOINT | C90: 406.75 | D90: 408.18 | E90: 399.67 | F90: 392.58 | G90: 384.07 | H90: 415.27 | I90: 423.78 | J90: 430.87 | K90: 416.7 | L90: 401.1 | M90: 0.21984
A91: 82 | B91: CARBORUNIV | C91: 350.4 | D91: 353.85 | E91: 344.85 | F91: 339.30 | G91: 330.30 | H91: 359.40 | I91: 368.40 | J91: 373.95 | K91: 362.85 | L91: 348.3 | M91: 0.54511
A92: 83 | B92: CARERATING | C92: 987.6 | D92: 981.53 | E92: 971.07 | F92: 954.53 | G92: 944.07 | H92: 998.07 | I92: 1008.53 | J92: 1025.07 | K92: 992 | L92: 965 | M92: 2.12808
A93: 84 | B93: CASTROLIND | C93: 153.45 | D93: 152.58 | E93: 150.87 | F93: 148.28 | G93: 146.57 | H93: 155.17 | I93: 156.88 | J93: 159.47 | K93: 154.3 | L93: 150 | M93: 9.28686
A94: 85 | B94: CCL | C94: 269.55 | D94: 267.22 | E94: 264.43 | F94: 259.32 | G94: 256.53 | H94: 272.33 | I94: 275.12 | J94: 280.23 | K94: 270 | L94: 262.1 | M94: 0.2882
A95: 86 | B95: CDSL | C95: 237.45 | D95: 236.88 | E95: 234.77 | F95: 232.08 | G95: 229.97 | H95: 239.57 | I95: 241.68 | J95: 244.37 | K95: 239 | L95: 234.2 | M95: 5.524
A96: 87 | B96: CEATLTD | C96: 1262.7 | D96: 1259.25 | E96: 1248.50 | F96: 1234.30 | G96: 1223.55 | H96: 1273.45 | I96: 1284.20 | J96: 1298.40 | K96: 1270 | L96: 1245.05 | M96: 4.18269
A97: 88 | B97: CENTRALBK | C97: 29.15 | D97: 29.18 | E97: 28.97 | F97: 28.78 | G97: 28.57 | H97: 29.37 | I97: 29.58 | J97: 29.77 | K97: 29.4 | L97: 29 | M97: 1.97862
A98: 89 | B98: CENTURYPLY | C98: 176.6 | D98: 174.60 | E98: 171.40 | F98: 166.20 | G98: 163.00 | H98: 179.80 | I98: 183.00 | J98: 188.20 | K98: 177.8 | L98: 169.4 | M98: 1.45458
A99: 90 | B99: CENTURYTEX | C99: 908.35 | D99: 914.67 | E99: 898.88 | F99: 889.42 | G99: 873.63 | H99: 924.13 | I99: 939.92 | J99: 949.38 | K99: 930.45 | L99: 905.2 | M99: 6.17997
A100: 91 | B100: CERA | C100: 2350.5 | D100: 2347.83 | E100: 2322.67 | F100: 2294.83 | G100: 2269.67 | H100: 2375.67 | I100: 2400.83 | J100: 2428.67 | K100: 2373 | L100: 2320 | M100: 0.0532
A101: 92 | B101: CGPOWER | C101: 41.1 | D101: 40.77 | E101: 38.88 | F101: 36.67 | G101: 34.78 | H101: 42.98 | I101: 44.87 | J101: 47.08 | K101: 42.65 | L101: 38.55 | M101: 106.43538
A102: 93 | B102: CHAMBLFERT | C102: 156.15 | D102: 155.73 | E102: 153.67 | F102: 151.18 | G102: 149.12 | H102: 158.22 | I102: 160.28 | J102: 162.77 | K102: 157.8 | L102: 153.25 | M102: 3.92254
A103: 94 | B103: CHENNPETRO | C103: 275.55 | D103: 273.70 | E103: 270.00 | F103: 264.45 | G103: 260.75 | H103: 279.25 | I103: 282.95 | J103: 288.50 | K103: 277.4 | L103: 268.15 | M103: 2.85517
A104: 95 | B104: CHOLAFIN | C104: 1314.3 | D104: 1315.02 | E104: 1302.28 | F104: 1290.27 | G104: 1277.53 | H104: 1327.03 | I104: 1339.77 | J104: 1351.78 | K104: 1327.75 | L104: 1303 | M104: 2.43243
A105: 96 | B105: CIPLA | C105: 535.8 | D105: 538.43 | E105: 531.47 | F105: 527.13 | G105: 520.17 | H105: 542.77 | I105: 549.73 | J105: 554.07 | K105: 545.4 | L105: 534.1 | M105: 20.33213
A106: 97 | B106: COALINDIA | C106: 249 | D106: 248.72 | E106: 245.63 | F106: 242.27 | G106: 239.18 | H106: 252.08 | I106: 255.17 | J106: 258.53 | K106: 251.8 | L106: 245.35 | M106: 66.76768
A107: 98 | B107: COCHINSHIP | C107: 373.25 | D107: 373.73 | E107: 369.52 | F107: 365.78 | G107: 361.57 | H107: 377.47 | I107: 381.68 | J107: 385.42 | K107: 377.95 | L107: 370 | M107: 0.71474
A108: 99 | B108: COFFEEDAY | C108: 263.75 | D108: 263.95 | E108: 262.20 | F108: 260.65 | G108: 258.90 | H108: 265.50 | I108: 267.25 | J108: 268.80 | K108: 265.7 | L108: 262.4 | M108: 0.37
A109: 100 | B109: COLPAL | C109: 1273.15 | D109: 1260.40 | E109: 1237.80 | F109: 1202.45 | G109: 1179.85 | H109: 1295.75 | I109: 1318.35 | J109: 1353.70 | K109: 1283 | L109: 1225.05 | M109: 7.91203
A110: 101 | B110: CONCOR | C110: 680.15 | D110: 677.05 | E110: 669.10 | F110: 658.05 | G110: 650.10 | H110: 688.10 | I110: 696.05 | J110: 707.10 | K110: 685 | L110: 666 | M110: 4.1643
A111: 102 | B111: COROMANDEL | C111: 417.1 | D111: 414.58 | E111: 404.42 | F111: 391.73 | G111: 381.57 | H111: 427.27 | I111: 437.43 | J111: 450.12 | K111: 424.75 | L111: 401.9 | M111: 2.08551
A112: 103 | B112: COX&KINGS | C112: 175.4 | D112: 174.75 | E112: 170.75 | F112: 166.10 | G112: 162.10 | H112: 179.40 | I112: 183.40 | J112: 188.05 | K112: 178.75 | L112: 170.1 | M112: 0.83574
A113: 104 | B113: CRISIL | C113: 1499.65 | D113: 1498.88 | E113: 1488.77 | F113: 1477.88 | G113: 1467.77 | H113: 1509.77 | I113: 1519.88 | J113: 1530.77 | K113: 1509 | L113: 1488 | M113: 0.0824
A114: 105 | B114: CROMPTON | C114: 220.05 | D114: 220.02 | E114: 216.08 | F114: 212.12 | G114: 208.18 | H114: 223.98 | I114: 227.92 | J114: 231.88 | K114: 223.95 | L114: 216.05 | M114: 3.01285
A115: 106 | B115: CUB | C115: 170.85 | D115: 171.98 | E115: 168.47 | F115: 166.08 | G115: 162.57 | H115: 174.37 | I115: 177.88 | J115: 180.27 | K115: 175.5 | L115: 169.6 | M115: 8.4111
A116: 107 | B116: CUMMINSIND | C116: 808.85 | D116: 804.35 | E116: 795.80 | F116: 782.75 | G116: 774.20 | H116: 817.40 | I116: 825.95 | J116: 839.00 | K116: 812.9 | L116: 791.3 | M116: 2.2015
A117: 108 | B117: CYIENT | C117: 610.5 | D117: 609.00 | E117: 599.00 | F117: 587.50 | G117: 577.50 | H117: 620.50 | I117: 630.50 | J117: 642.00 | K117: 619 | L117: 597.5 | M117: 3.07249
A118: 109 | B118: DABUR | C118: 412.95 | D118: 412.80 | E118: 407.80 | F118: 402.65 | G118: 397.65 | H118: 417.95 | I118: 422.95 | J118: 428.10 | K118: 417.8 | L118: 407.65 | M118: 14.89299
A119: 110 | B119: DBCORP | C119: 176.6 | D119: 176.78 | E119: 174.07 | F119: 171.53 | G119: 168.82 | H119: 179.32 | I119: 182.03 | J119: 184.57 | K119: 179.5 | L119: 174.25 | M119: 0.38283
A120: 111 | B120: DBL | C120: 467.05 | D120: 465.65 | E120: 461.40 | F120: 455.75 | G120: 451.50 | H120: 471.30 | I120: 475.55 | J120: 481.20 | K120: 469.9 | L120: 460 | M120: 1.31619
A121: 112 | B121: DBREALTY | C121: 25.2 | D121: 23.95 | E121: 22.55 | F121: 19.90 | G121: 18.50 | H121: 26.60 | I121: 28.00 | J121: 30.65 | K121: 25.35 | L121: 21.3 | M121: 23.22473
A122: 113 | B122: DCAL | C122: 233.75 | D122: 234.57 | E122: 230.18 | F122: 226.62 | G122: 222.23 | H122: 238.13 | I122: 242.52 | J122: 246.08 | K122: 238.95 | L122: 231 | M122: 0.61277
A123: 114 | B123: DCBBANK | C123: 161.45 | D123: 160.13 | E123: 157.82 | F123: 154.18 | G123: 151.87 | H123: 163.77 | I123: 166.08 | J123: 169.72 | K123: 162.45 | L123: 156.5 | M123: 12.39508
A124: 115 | B124: DCMSHRIRAM | C124: 358.5 | D124: 357.88 | E124: 351.47 | F124: 344.43 | G124: 338.02 | H124: 364.92 | I124: 371.33 | J124: 378.37 | K124: 364.3 | L124: 350.85 | M124: 0.46224
A125: 116 | B125: DEEPAKFERT | C125: 159.5 | D125: 160.42 | E125: 157.08 | F125: 154.67 | G125: 151.33 | H125: 162.83 | I125: 166.17 | J125: 168.58 | K125: 163.75 | L125: 158 | M125: 2.75746
A126: 117 | B126: DELTACORP | C126: 236.85 | D126: 237.97 | E126: 234.98 | F126: 233.12 | G126: 230.13 | H126: 239.83 | I126: 242.82 | J126: 244.68 | K126: 240.95 | L126: 236.1 | M126: 4.93535
A127: 118 | B127: DEN | C127: 69.4 | D127: 69.43 | E127: 69.12 | F127: 68.83 | G127: 68.52 | H127: 69.72 | I127: 70.03 | J127: 70.32 | K127: 69.75 | L127: 69.15 | M127: 0.20066
A128: 119 | B128: DENABANK | C128: 15.85 | D128: 15.92 | E128: 15.73 | F128: 15.62 | G128: 15.43 | H128: 16.03 | I128: 16.22 | J128: 16.33 | K128: 16.1 | L128: 15.8 | M128: 7.50799
A129: 120 | B129: DHFL | C129: 217.7 | D129: 216.72 | E129: 213.63 | F129: 209.57 | G129: 206.48 | H129: 220.78 | I129: 223.87 | J129: 227.93 | K129: 219.8 | L129: 212.65 | M129: 105.13054
A130: 121 | B130: DISHTV | C130: 37.1 | D130: 37.93 | E130: 35.97 | F130: 34.83 | G130: 32.87 | H130: 39.07 | I130: 41.03 | J130: 42.17 | K130: 39.9 | L130: 36.8 | M130: 85.50749
A131: 122 | B131: DIVISLAB | C131: 1456.75 | D131: 1448.90 | E131: 1427.90 | F131: 1399.05 | G131: 1378.05 | H131: 1477.75 | I131: 1498.75 | J131: 1527.60 | K131: 1469.9 | L131: 1420.05 | M131: 9.5205
A132: 123 | B132: DIXON | C132: 2051.2 | D132: 2056.32 | E132: 2034.63 | F132: 2018.07 | G132: 1996.38 | H132: 2072.88 | I132: 2094.57 | J132: 2111.13 | K132: 2078 | L132: 2039.75 | M132: 0.06875
A133: 124 | B133: DLF | C133: 180.45 | D133: 179.48 | E133: 177.17 | F133: 173.88 | G133: 171.57 | H133: 182.77 | I133: 185.08 | J133: 188.37 | K133: 181.8 | L133: 176.2 | M133: 37.00585
A134: 125 | B134: DMART | C134: 1477.45 | D134: 1486.45 | E134: 1464.00 | F134: 1450.55 | G134: 1428.10 | H134: 1499.90 | I134: 1522.35 | J134: 1535.80 | K134: 1508.9 | L134: 1473 | M134: 3.49961
A135: 126 | B135: DREDGECORP | C135: 356.55 | D135: 357.33 | E135: 351.67 | F135: 346.78 | G135: 341.12 | H135: 362.22 | I135: 367.88 | J135: 372.77 | K135: 363 | L135: 352.45 | M135: 0.72996
A136: 127 | B136: DRREDDY | C136: 2667.9 | D136: 2687.65 | E136: 2632.70 | F136: 2597.50 | G136: 2542.55 | H136: 2722.85 | I136: 2777.80 | J136: 2813.00 | K136: 2742.6 | L136: 2652.45 | M136: 9.83834
A137: 128 | B137: ECLERX | C137: 1015.5 | D137: 1022.82 | E137: 1006.68 | F137: 997.87 | G137: 981.73 | H137: 1031.63 | I137: 1047.77 | J137: 1056.58 | K137: 1038.95 | L137: 1014 | M137: 0.04856
A138: 129 | B138: EDELWEISS | C138: 178.15 | D138: 175.80 | E138: 173.45 | F138: 168.75 | G138: 166.40 | H138: 180.50 | I138: 182.85 | J138: 187.55 | K138: 178.15 | L138: 171.1 | M138: 19.12914
A139: 130 | B139: EICHERMOT | C139: 23567.3 | D139: 23472.77 | E139: 23047.53 | F139: 22527.77 | G139: 22102.53 | H139: 23992.53 | I139: 24417.77 | J139: 24937.53 | K139: 23898 | L139: 22953 | M139: 0.92778
A140: 131 | B140: EIDPARRY | C140: 215.2 | D140: 213.35 | E140: 209.95 | F140: 204.70 | G140: 201.30 | H140: 218.60 | I140: 222.00 | J140: 227.25 | K140: 216.75 | L140: 208.1 | M140: 1.42285
A141: 132 | B141: EIHOTEL | C141: 190.75 | D141: 192.23 | E141: 188.02 | F141: 185.28 | G141: 181.07 | H141: 194.97 | I141: 199.18 | J141: 201.92 | K141: 196.45 | L141: 189.5 | M141: 1.07999
A142: 133 | B142: EMAMILTD | C142: 434.4 | D142: 435.50 | E142: 430.90 | F142: 427.40 | G142: 422.80 | H142: 439.00 | I142: 443.60 | J142: 447.10 | K142: 440.1 | L142: 432 | M142: 1.36267
A143: 134 | B143: ENDURANCE | C143: 1120.25 | D143: 1117.93 | E143: 1105.87 | F143: 1091.48 | G143: 1079.42 | H143: 1132.32 | I143: 1144.38 | J143: 1158.77 | K143: 1130 | L143: 1103.55 | M143: 0.08911
A144: 135 | B144: ENGINERSIN | C144: 116.35 | D144: 116.95 | E144: 115.40 | F144: 114.45 | G144: 112.90 | H144: 117.90 | I144: 119.45 | J144: 120.40 | K144: 118.5 | L144: 116 | M144: 8.39016
A145: 136 | B145: EQUITAS | C145: 113.3 | D145: 111.63 | E145: 108.67 | F145: 104.03 | G145: 101.07 | H145: 116.27 | I145: 119.23 | J145: 123.87 | K145: 114.6 | L145: 107 | M145: 33.24035
A146: 137 | B146: ERIS | C146: 627.1 | D146: 628.37 | E146: 618.73 | F146: 610.37 | G146: 600.73 | H146: 636.73 | I146: 646.37 | J146: 654.73 | K146: 638 | L146: 620 | M146: 0.1106
A147: 138 | B147: EROSMEDIA | C147: 92.9 | D147: 93.82 | E147: 90.78 | F147: 88.67 | G147: 85.63 | H147: 95.93 | I147: 98.97 | J147: 101.08 | K147: 96.85 | L147: 91.7 | M147: 6.04226
A148: 139 | B148: ESCORTS | C148: 707.15 | D148: 709.93 | E148: 700.07 | F148: 692.98 | G148: 683.12 | H148: 717.02 | I148: 726.88 | J148: 733.97 | K148: 719.8 | L148: 702.85 | M148: 30.26259
A149: 140 | B149: EVEREADY | C149: 200.6 | D149: 199.83 | E149: 196.92 | F149: 193.23 | G149: 190.32 | H149: 203.52 | I149: 206.43 | J149: 210.12 | K149: 202.75 | L149: 196.15 | M149: 0.86831
A150: 141 | B150: EXIDEIND | C150: 260.35 | D150: 261.63 | E150: 257.92 | F150: 255.48 | G150: 251.77 | H150: 264.07 | I150: 267.78 | J150: 270.22 | K150: 265.35 | L150: 259.2 | M150: 12.06051
A151: 142 | B151: FCONSUMER | C151: 45.15 | D151: 45.47 | E151: 44.58 | F151: 44.02 | G151: 43.13 | H151: 46.03 | I151: 46.92 | J151: 47.48 | K151: 46.35 | L151: 44.9 | M151: 17.89264
A152: 143 | B152: FEDERALBNK | C152: 84.4 | D152: 85.03 | E152: 82.92 | F152: 81.43 | G152: 79.32 | H152: 86.52 | I152: 88.63 | J152: 90.12 | K152: 87.15 | L152: 83.55 | M152: 129.3629
A153: 144 | B153: FINCABLES | C153: 458 | D153: 459.13 | E153: 453.87 | F153: 449.73 | G153: 444.47 | H153: 463.27 | I153: 468.53 | J153: 472.67 | K153: 464.4 | L153: 455 | M153: 0.19946
A154: 145 | B154: FINPIPE | C154: 546.65 | D154: 547.23 | E154: 540.72 | F154: 534.78 | G154: 528.27 | H154: 553.17 | I154: 559.68 | J154: 565.62 | K154: 553.75 | L154: 541.3 | M154: 2.77267
A155: 146 | B155: FLFL | C155: 395.95 | D155: 401.00 | E155: 387.25 | F155: 378.55 | G155: 364.80 | H155: 409.70 | I155: 423.45 | J155: 432.15 | K155: 414.75 | L155: 392.3 | M155: 0.15357
A156: 147 | B156: FSL | C156: 52.75 | D156: 52.58 | E156: 51.57 | F156: 50.38 | G156: 49.37 | H156: 53.77 | I156: 54.78 | J156: 55.97 | K156: 53.6 | L156: 51.4 | M156: 26.78919
A157: 148 | B157: GAIL | C157: 355.65 | D157: 350.85 | E157: 344.30 | F157: 332.95 | G157: 326.40 | H157: 362.20 | I157: 368.75 | J157: 380.10 | K157: 357.4 | L157: 339.5 | M157: 61.73643
A158: 149 | B158: GATI | C158: 86.25 | D158: 86.62 | E158: 84.48 | F158: 82.72 | G158: 80.58 | H158: 88.38 | I158: 90.52 | J158: 92.28 | K158: 88.75 | L158: 84.85 | M158: 3.87256
A159: 150 | B159: GDL | C159: 142.65 | D159: 142.02 | E159: 140.13 | F159: 137.62 | G159: 135.73 | H159: 144.53 | I159: 146.42 | J159: 148.93 | K159: 143.9 | L159: 139.5 | M159: 0.35171
A160: 151 | B160: GEPIL | C160: 810.9 | D160: 813.77 | E160: 797.58 | F160: 784.27 | G160: 768.08 | H160: 827.08 | I160: 843.27 | J160: 856.58 | K160: 829.95 | L160: 800.45 | M160: 0.77728
A161: 152 | B161: GESHIP | C161: 286.3 | D161: 285.73 | E161: 283.57 | F161: 280.83 | G161: 278.67 | H161: 288.47 | I161: 290.63 | J161: 293.37 | K161: 287.9 | L161: 283 | M161: 1.24919
A162: 153 | B162: GET&D | C162: 233.05 | D162: 232.77 | E162: 231.03 | F162: 229.02 | G162: 227.28 | H162: 234.78 | I162: 236.52 | J162: 238.53 | K162: 234.5 | L162: 230.75 | M162: 0.16499
A163: 154 | B163: GHCL | C163: 224.15 | D163: 225.02 | E163: 220.68 | F163: 217.22 | G163: 212.88 | H163: 228.48 | I163: 232.82 | J163: 236.28 | K163: 229.35 | L163: 221.55 | M163: 0.43597
A164: 155 | B164: GICRE | C164: 276.75 | D164: 283.90 | E164: 268.15 | F164: 259.55 | G164: 243.80 | H164: 292.50 | I164: 308.25 | J164: 316.85 | K164: 299.65 | L164: 275.3 | M164: 6.07138
A165: 156 | B165: GILLETTE | C165: 6510.6 | D165: 6516.25 | E165: 6474.45 | F165: 6438.30 | G165: 6396.50 | H165: 6552.40 | I165: 6594.20 | J165: 6630.35 | K165: 6558.05 | L165: 6480.1 | M165: 0.0667
A166: 157 | B166: GLAXO | C166: 1381 | D166: 1378.27 | E166: 1341.03 | F166: 1301.07 | G166: 1263.83 | H166: 1418.23 | I166: 1455.47 | J166: 1495.43 | K166: 1415.5 | L166: 1338.3 | M166: 0.26552
A167: 158 | B167: GLENMARK | C167: 621.7 | D167: 635.57 | E167: 603.38 | F167: 585.07 | G167: 552.88 | H167: 653.88 | I167: 686.07 | J167: 704.38 | K167: 667.75 | L167: 617.25 | M167: 21.78887
A168: 159 | B168: GMDCLTD | C168: 86.3 | D168: 87.00 | E168: 85.10 | F168: 83.90 | G168: 82.00 | H168: 88.20 | I168: 90.10 | J168: 91.30 | K168: 88.9 | L168: 85.8 | M168: 1.03436
A169: 160 | B169: GMRINFRA | C169: 16.4 | D169: 16.32 | E169: 16.08 | F169: 15.77 | G169: 15.53 | H169: 16.63 | I169: 16.87 | J169: 17.18 | K169: 16.55 | L169: 16 | M169: 135.07202
A170: 161 | B170: GNFC | C170: 341.7 | D170: 343.58 | E170: 338.52 | F170: 335.33 | G170: 330.27 | H170: 346.77 | I170: 351.83 | J170: 355.02 | K170: 348.65 | L170: 340.4 | M170: 3.32132
A171: 162 | B171: GODFRYPHLP | C171: 922.6 | D171: 925.27 | E171: 914.53 | F171: 906.47 | G171: 895.73 | H171: 933.33 | I171: 944.07 | J171: 952.13 | K171: 936 | L171: 917.2 | M171: 2.32754
A172: 163 | B172: GODREJAGRO | C172: 506.4 | D172: 505.80 | E172: 495.60 | F172: 484.80 | G172: 474.60 | H172: 516.60 | I172: 526.80 | J172: 537.60 | K172: 516 | L172: 495 | M172: 4.40589
A173: 164 | B173: GODREJCP | C173: 771.4 | D173: 770.37 | E173: 755.13 | F173: 738.87 | G173: 723.63 | H173: 786.63 | I173: 801.87 | J173: 818.13 | K173: 785.6 | L173: 754.1 | M173: 26.34832
A174: 165 | B174: GODREJIND | C174: 548.1 | D174: 548.20 | E174: 541.80 | F174: 535.50 | G174: 529.10 | H174: 554.50 | I174: 560.90 | J174: 567.20 | K174: 554.6 | L174: 541.9 | M174: 4.75982
A175: 166 | B175: GODREJPROP | C175: 697.8 | D175: 687.60 | E175: 675.20 | F175: 652.60 | G175: 640.20 | H175: 710.20 | I175: 722.60 | J175: 745.20 | K175: 700 | L175: 665 | M175: 4.19844
A176: 167 | B176: GPPL | C176: 95.55 | D176: 95.52 | E176: 95.03 | F176: 94.52 | G176: 94.03 | H176: 96.03 | I176: 96.52 | J176: 97.03 | K176: 96 | L176: 95 | M176: 0.34104
A177: 168 | B177: GRANULES | C177: 86.95 | D177: 87.50 | E177: 86.00 | F177: 85.05 | G177: 83.55 | H177: 88.45 | I177: 89.95 | J177: 90.90 | K177: 89 | L177: 86.55 | M177: 12.47174
A178: 169 | B178: GRAPHITE | C178: 931.95 | D178: 934.32 | E178: 923.63 | F178: 915.32 | G178: 904.63 | H178: 942.63 | I178: 953.32 | J178: 961.63 | K178: 945 | L178: 926 | M178: 5.29663
A179: 170 | B179: GRASIM | C179: 864.55 | D179: 868.35 | E179: 853.70 | F179: 842.85 | G179: 828.20 | H179: 879.20 | I179: 893.85 | J179: 904.70 | K179: 883 | L179: 857.5 | M179: 10.39852
A180: 171 | B180: GREAVESCOT | C180: 127.35 | D180: 125.60 | E180: 123.20 | F180: 119.05 | G180: 116.65 | H180: 129.75 | I180: 132.15 | J180: 136.30 | K180: 128 | L180: 121.45 | M180: 2.86121
A181: 172 | B181: GREENPLY | C181: 134 | D181: 134.35 | E181: 131.65 | F181: 129.30 | G181: 126.60 | H181: 136.70 | I181: 139.40 | J181: 141.75 | K181: 137.05 | L181: 132 | M181: 0.9958
A182: 173 | B182: GRUH | C182: 299.75 | D182: 298.83 | E182: 296.72 | F182: 293.68 | G182: 291.57 | H182: 301.87 | I182: 303.98 | J182: 307.02 | K182: 300.95 | L182: 295.8 | M182: 2.18227
A183: 174 | B183: GSFC | C183: 108.15 | D183: 107.27 | E183: 105.88 | F183: 103.62 | G183: 102.23 | H183: 109.53 | I183: 110.92 | J183: 113.18 | K183: 108.65 | L183: 105 | M183: 13.81166
A184: 175 | B184: GSKCONS | C184: 7547.4 | D184: 7444.80 | E184: 7179.60 | F184: 6811.80 | G184: 6546.60 | H184: 7812.60 | I184: 8077.80 | J184: 8445.60 | K184: 7710 | L184: 7077 | M184: 3.43293
A185: 176 | B185: GSPL | C185: 187.95 | D185: 187.40 | E185: 185.30 | F185: 182.65 | G185: 180.55 | H185: 190.05 | I185: 192.15 | J185: 194.80 | K185: 189.5 | L185: 184.75 | M185: 3.23717
A186: 177 | B186: GUJALKALI | C186: 555.2 | D186: 558.05 | E186: 550.15 | F186: 545.10 | G186: 537.20 | H186: 563.10 | I186: 571.00 | J186: 576.05 | K186: 565.95 | L186: 553 | M186: 0.43094
A187: 178 | B187: GUJFLUORO | C187: 898.55 | D187: 888.55 | E187: 876.10 | F187: 853.65 | G187: 841.20 | H187: 911.00 | I187: 923.45 | J187: 945.90 | K187: 901 | L187: 866.1 | M187: 1.5018
A188: 179 | B188: GUJGASLTD | C188: 641.7 | D188: 640.95 | E188: 635.75 | F188: 629.80 | G188: 624.60 | H188: 646.90 | I188: 652.10 | J188: 658.05 | K188: 646.15 | L188: 635 | M188: 0.12344
A189: 180 | B189: GULFOILLUB | C189: 762 | D189: 760.37 | E189: 751.73 | F189: 741.47 | G189: 732.83 | H189: 770.63 | I189: 779.27 | J189: 789.53 | K189: 769 | L189: 750.1 | M189: 0.17957
A190: 181 | B190: GVKPIL | C190: 7.7 | D190: 7.65 | E190: 7.50 | F190: 7.30 | G190: 7.15 | H190: 7.85 | I190: 8.00 | J190: 8.20 | K190: 7.8 | L190: 7.45 | M190: 12.563
A191: 182 | B191: HATHWAY | C191: 30.55 | D191: 30.62 | E191: 30.48 | F191: 30.42 | G191: 30.28 | H191: 30.68 | I191: 30.82 | J191: 30.88 | K191: 30.75 | L191: 30.55 | M191: 2.3299
A192: 183 | B192: HATSUN | C192: 620 | D192: 618.35 | E192: 612.75 | F192: 605.50 | G192: 599.90 | H192: 625.60 | I192: 631.20 | J192: 638.45 | K192: 623.95 | L192: 611.1 | M192: 0.02127
A193: 184 | B193: HAVELLS | C193: 692.1 | D193: 690.35 | E193: 683.70 | F193: 675.30 | G193: 668.65 | H193: 698.75 | I193: 705.40 | J193: 713.80 | K193: 697 | L193: 681.95 | M193: 8.02841
A194: 185 | B194: HCC | C194: 11.45 | D194: 11.58 | E194: 11.27 | F194: 11.08 | G194: 10.77 | H194: 11.77 | I194: 12.08 | J194: 12.27 | K194: 11.9 | L194: 11.4 | M194: 54.23583
A195: 186 | B195: HCL-INSYS | C195: 25.05 | D195: 24.88 | E195: 24.57 | F195: 24.08 | G195: 23.77 | H195: 25.37 | I195: 25.68 | J195: 26.17 | K195: 25.2 | L195: 24.4 | M195: 14.10036
A196: 187 | B196: HCLTECH | C196: 1018.2 | D196: 1016.20 | E196: 1006.70 | F196: 995.20 | G196: 985.70 | H196: 1027.70 | I196: 1037.20 | J196: 1048.70 | K196: 1025.7 | L196: 1004.7 | M196: 14.54449
A197: 188 | B197: HDFC | C197: 1980.75 | D197: 1984.25 | E197: 1951.50 | F197: 1922.25 | G197: 1889.50 | H197: 2013.50 | I197: 2046.25 | J197: 2075.50 | K197: 2017 | L197: 1955 | M197: 32.49616
A198: 189 | B198: HDFCBANK | C198: 2113.3 | D198: 2120.73 | E198: 2099.47 | F198: 2085.63 | G198: 2064.37 | H198: 2134.57 | I198: 2155.83 | J198: 2169.67 | K198: 2142 | L198: 2106.9 | M198: 26.99964
A199: 190 | B199: HDIL | C199: 20.6 | D199: 20.72 | E199: 20.13 | F199: 19.67 | G199: 19.08 | H199: 21.18 | I199: 21.77 | J199: 22.23 | K199: 21.3 | L199: 20.25 | M199: 27.96008
A200: 191 | B200: HEG | C200: 4133.55 | D200: 4155.85 | E200: 4103.70 | F200: 4073.85 | G200: 4021.70 | H200: 4185.70 | I200: 4237.85 | J200: 4267.70 | K200: 4208 | L200: 4126 | M200: 0.86984
A201: 192 | B201: HEIDELBERG | C201: 151.85 | D201: 152.28 | E201: 149.67 | F201: 147.48 | G201: 144.87 | H201: 154.47 | I201: 157.08 | J201: 159.27 | K201: 154.9 | L201: 150.1 | M201: 1.17615
A202: 193 | B202: HERITGFOOD | C202: 501 | D202: 507.00 | E202: 489.00 | F202: 477.00 | G202: 459.00 | H202: 519.00 | I202: 537.00 | J202: 549.00 | K202: 525 | L202: 495 | M202: 0.27794
A203: 194 | B203: HEROMOTOCO | C203: 3039.9 | D203: 3035.43 | E203: 3003.52 | F203: 2967.13 | G203: 2935.22 | H203: 3071.82 | I203: 3103.73 | J203: 3140.12 | K203: 3067.35 | L203: 2999.05 | M203: 6.27118
A204: 195 | B204: HEXAWARE | C204: 327.1 | D204: 325.22 | E204: 320.63 | F204: 314.17 | G204: 309.58 | H204: 331.68 | I204: 336.27 | J204: 342.73 | K204: 329.8 | L204: 318.75 | M204: 15.37371
A205: 196 | B205: HFCL | C205: 18.7 | D205: 18.62 | E205: 18.13 | F205: 17.57 | G205: 17.08 | H205: 19.18 | I205: 19.67 | J205: 20.23 | K205: 19.1 | L205: 18.05 | M205: 20.93387
A206: 197 | B206: HIMATSEIDE | C206: 218.55 | D206: 217.13 | E206: 213.42 | F206: 208.28 | G206: 204.57 | H206: 222.27 | I206: 225.98 | J206: 231.12 | K206: 220.85 | L206: 212 | M206: 0.77377
... 304 more rows

Sheet Bulk Deals
E6: Back To Main Page
A7: Subject : | B7: BULK DEAL | D7: =Main!B10 -> 2018-12-04
A9: Date | B9: Scrip code | C9: Scrip Name | D9: Client Name | E9: Buy / Sell | F9: Quantity Traded | G9: Trade Price / Wt.Avg.trade price | H9: Exchange
A10: 2018-12-03 | B10: 538778 | C10: AKASHDEEP | D10: SKYVEIL TRADE SOLUTIONS LLP | E10: BUY | F10: 569,000 | G10: 43.5 | H10: BSE
A11: 2018-12-03 | B11: 538778 | C11: AKASHDEEP | D11: SANGEETA PAREEKH | E11: SELL | F11: 569,000 | G11: 43.5 | H11: BSE
A12: 2018-12-03 | B12: 504340 | C12: CONFINT | D12: VIJAYKANT DEVIPRASAD MISHRA | E12: SELL | F12: 113,300 | G12: 0.88 | H12: BSE
A13: 2018-12-03 | B13: 504340 | C13: CONFINT | D13: PINKY SURANA | E13: BUY | F13: 113,300 | G13: 0.88 | H13: BSE
A14: 2018-12-03 | B14: 539770 | C14: DARJEELING | D14: BHARATI ARVIND SHAH | E14: SELL | F14: 16,530 | G14: 103.77 | H14: BSE
A15: 2018-12-03 | B15: 539009 | C15: GBLIL | D15: HIGHGROWTH VINCOM PRIVATE LIMITED | E15: SELL | F15: 40,000 | G15: 63 | H15: BSE
A16: 2018-12-03 | B16: 539009 | C16: GBLIL | D16: BUDDHADEB LAHA | E16: BUY | F16: 40,000 | G16: 63 | H16: BSE
A17: 2018-12-03 | B17: 539009 | C17: GBLIL | D17: VAGHELA PRAKASH KANTILAL | E17: SELL | F17: 39,500 | G17: 63 | H17: BSE
A18: 2018-12-03 | B18: 539009 | C18: GBLIL | D18: ARUN LAHA | E18: BUY | F18: 39,500 | G18: 63 | H18: BSE
A19: 2018-12-03 | B19: 540938 | C19: GUJHYSPIN | D19: NIKESH D PANCHAL | E19: SELL | F19: 100,000 | G19: 6.35 | H19: BSE
A20: 2018-12-03 | B20: 532334 | C20: HBESD | D20: ASHARI AGENCIES LIMITED | E20: BUY | F20: 100,000 | G20: 14.63 | H20: BSE
A21: 2018-12-03 | B21: 532334 | C21: HBESD | D21: DELHI IRON AND STEEL COMPANY PRIVATE LIMITED | E21: SELL | F21: 99,618 | G21: 14.64 | H21: BSE
A22: 2018-12-03 | B22: 532333 | C22: HBPOR | D22: AMRIT STEELS PRIVATE LIMITED | E22: BUY | F22: 55,000 | G22: 26.65 | H22: BSE
A23: 2018-12-03 | B23: 536709 | C23: INDRENEW | D23: RUSHABH DILIP VARIYA | E23: BUY | F23: 25,000 | G23: 18 | H23: BSE
A24: 2018-12-03 | B24: 536709 | C24: INDRENEW | D24: JITENDRA KANTILAL VAKHARIA | E24: SELL | F24: 165,000 | G24: 18 | H24: BSE
A25: 2018-12-03 | B25: 536709 | C25: INDRENEW | D25: KRUPA CHIRAG MEHTA | E25: BUY | F25: 25,000 | G25: 18 | H25: BSE
A26: 2018-12-03 | B26: 536709 | C26: INDRENEW | D26: SHALAKA SANTOSH GURAV | E26: SELL | F26: 15,239 | G26: 18.25 | H26: BSE
A27: 2018-12-03 | B27: 536709 | C27: INDRENEW | D27: SHALAKA SANTOSH GURAV | E27: BUY | F27: 75 | G27: 18.07 | H27: BSE
A28: 2018-12-03 | B28: 536709 | C28: INDRENEW | D28: GANGARAM GOVIND WAINGANKAR | E28: BUY | F28: 86,589 | G28: 18 | H28: BSE
A29: 2018-12-03 | B29: 540756 | C29: KAARYAFSL | D29: VIKRMABAHI JAMNADAS SHAH | E29: SELL | F29: 30,000 | G29: 34 | H29: BSE
A30: 2018-12-03 | B30: 540756 | C30: KAARYAFSL | D30: NISHIL SURENDRABHAI MARFATIA | E30: BUY | F30: 33,000 | G30: 33.99 | H30: BSE
A31: 2018-12-03 | B31: 537800 | C31: MANGIND | D31: SARVOTTAM SECURITIES PRIVATE LIMITED | E31: BUY | F31: 6,000,000 | G31: 0.49 | H31: BSE
A32: 2018-12-03 | B32: 540405 | C32: OCEANIC | D32: KHYATITULAN PATEL | E32: BUY | F32: 20,000 | G32: 85.12 | H32: BSE
A33: 2018-12-03 | B33: 540405 | C33: OCEANIC | D33: NEHA MEHTA | E33: SELL | F33: 20,000 | G33: 85.12 | H33: BSE
A34: 2018-12-03 | B34: 531512 | C34: ORIENTTR | D34: DAVINDER SINGH BEDI | E34: BUY | F34: 57,041 | G34: 11.97 | H34: BSE
A35: 2018-12-03 | B35: 540125 | C35: RADHIKAJWE | D35: ARVIND CHHAGANLAL PATEL | E35: BUY | F35: 200,000 | G35: 19.15 | H35: BSE
A36: 2018-12-03 | B36: 540125 | C36: RADHIKAJWE | D36: SWORD EDGE COMMERCIALS LTD | E36: SELL | F36: 198,400 | G36: 19.15 | H36: BSE
A37: 2018-12-03 | B37: 531412 | C37: RADIXIND | D37: NAGESWARA RAO KOMMULA | E37: SELL | F37: 100,000 | G37: 38.5 | H37: BSE
A38: 2018-12-03 | B38: 531412 | C38: RADIXIND | D38: RAGHU RAMA RAJU GOKARAJU | E38: BUY | F38: 265,000 | G38: 38.5 | H38: BSE
A39: 2018-12-03 | B39: 534734 | C39: RMCHEM | D39: SATISH ARVIND PATEL | E39: BUY | F39: 1,111,000 | G39: 1.47 | H39: BSE
A40: 2018-12-03 | B40: 534734 | C40: RMCHEM | D40: RAM ALLOY CASTINGS PRIVATE LIMITED | E40: SELL | F40: 2,500,000 | G40: 1.47 | H40: BSE
A41: 2018-12-03 | B41: 538557 | C41: SAIBABA | D41: MAYUR MAHESHKUMAR PANCHAL | E41: BUY | F41: 1,140,000 | G41: 1.8 | H41: BSE
A42: 2018-12-03 | B42: 538557 | C42: SAIBABA | D42: JAYSHREE BHARAT BORSE | E42: SELL | F42: 660,000 | G42: 1.8 | H42: BSE
A43: 2018-12-03 | B43: 539520 | C43: SHAILJA | D43: SIMTABEN RAKESHBHAI CHRISTIAN | E43: BUY | F43: 25,000 | G43: 13.07 | H43: BSE
A44: 2018-12-03 | B44: 542025 | C44: SUNRETAIL | D44: VISHWAMURTE TRAD INVEST PE LTD | E44: SELL | F44: 42,000 | G44: 45.05 | H44: BSE
A45: 2018-12-03 | B45: 542025 | C45: SUNRETAIL | D45: VISHWAMURTE TRAD INVEST PE LTD | E45: BUY | F45: 72,000 | G45: 45 | H45: BSE
A46: 2018-12-03 | B46: 542025 | C46: SUNRETAIL | D46: JITENDRAKUMAR GHEVARCHAND JAIN | E46: SELL | F46: 60,000 | G46: 45 | H46: BSE
A47: 2018-12-03 | B47: 542025 | C47: SUNRETAIL | D47: SANGITABEN JITENDRAKUMAR JAIN | E47: SELL | F47: 60,000 | G47: 45 | H47: BSE
A48: 2018-12-03 | B48: 511764 | C48: UPASAFN | D48: REKHA M JAIN* | E48: SELL | F48: 26,220 | G48: 37.34 | H48: BSE
A49: 2018-12-03 | B49: 531574 | C49: VASINFRA | D49: SIVANANADAN NANU | E49: SELL | F49: 200,000 | G49: 4 | H49: BSE
A50: 2018-12-03 | B50: 531574 | C50: VASINFRA | D50: DESAI NIRAL NEERAV | E50: BUY | F50: 183,000 | G50: 4 | H50: BSE
A51: 2018-12-03 | B51: 531518 | C51: VIKASPROP | D51: GOURAV | E51: SELL | F51: 6,495,000 | G51: 2.57 | H51: BSE
A52: 2018-12-03 | B52: 531518 | C52: VIKASPROP | D52: ARCADIA SHARE & STOCK BROKERS PVT. LTD | E52: SELL | F52: 500,000 | G52: 2.57 | H52: BSE
A53: 2018-12-03 | B53: 531518 | C53: VIKASPROP | D53: ARCADIA SHARE & STOCK BROKERS PVT. LTD | E53: BUY | F53: 1,010,000 | G53: 2.57 | H53: BSE
A54: 2018-12-03 | B54: 522108 | C54: YUKEN | D54: CHANDRAKANT SUNDER SHETTY | E54: SELL | F54: 245,000 | G54: 529.5 | H54: BSE
A55: 2018-12-03 | B55: 522108 | C55: YUKEN | D55: FAZAL NABI SHAIK | E55: BUY | F55: 245,000 | G55: 529.5 | H55: BSE
A56: 2018-12-03 | B56: BOHRA | C56: Bohra Industries Limited | D56: VARUN KRISHNAVTAR KABRA | E56: BUY | F56: 200,000 | G56: 31.12 | H56: NSE
A57: 2018-12-03 | B57: EXCEL | C57: Excel Realty N Infra Ltd | D57: VISHWAMURTE TRAD INVEST PE LTD | E57: BUY | F57: 512,000 | G57: 3.55 | H57: NSE
A58: 2018-12-03 | B58: GSS | C58: GSS Infotech Limited | D58: JATALIA FINANCE COMPANY LIMITED | E58: BUY | F58: 93,000 | G58: 130.91 | H58: NSE
A59: 2018-12-03 | B59: GSS | C59: GSS Infotech Limited | D59: MINESH JORMALBHAI MEHTA | E59: BUY | F59: 100,000 | G59: 128.63 | H59: NSE
A60: 2018-12-03 | B60: JETAIRWAYS | C60: Jet Airways (India) Ltd. | D60: SHAASTRA SECURITIES TRADING PRIVATE LIMITED | E60: BUY | F60: 615,422 | G60: 307.26 | H60: NSE
A61: 2018-12-03 | B61: KARDA | C61: Karda Constructions Ltd | D61: ASHIRWAD INVESTMENTS PRIVATE LIMITED | E61: BUY | F61: 100,000 | G61: 183.68 | H61: NSE
A62: 2018-12-03 | B62: MAHASTEEL | C62: Mahamaya Steel Inds Ltd | D62: MAYUR VASANTRAI SANGHANI | E62: BUY | F62: 68,746 | G62: 78.86 | H62: NSE
A63: 2018-12-03 | B63: MOHOTAIND | C63: Mohota Industries Ltd. | D63: KIRAN VYAPAR LIMITED | E63: BUY | F63: 153,076 | G63: 79.04 | H63: NSE
A64: 2018-12-03 | B64: RCOM | C64: Reliance Comm. Ltd. | D64: ADROIT SHARE & STOCK BROKER PVT. LTD. | E64: BUY | F64: 16,748,014 | G64: 16.03 | H64: NSE
A65: 2018-12-03 | B65: RCOM | C65: Reliance Comm. Ltd. | D65: SHAASTRA SECURITIES TRADING PRIVATE LIMITED | E65: BUY | F65: 33,887,081 | G65: 15.96 | H65: NSE
A66: 2018-12-03 | B66: RCOM | C66: Reliance Comm. Ltd. | D66: SKYVEIL TRADE SOLUTIONS LLP | E66: BUY | F66: 33,891,745 | G66: 16.03 | H66: NSE
A67: 2018-12-03 | B67: SILVERTUC | C67: Silver Touch Techno Ltd | D67: HARSH SHAILESH JHAVERI | E67: BUY | F67: 100,000 | G67: 125 | H67: NSE
A68: 2018-12-03 | B68: BBTCL | C68: B&B Triplewall Cont Ltd | D68: NNM SECURITIES PVT. LTD. | E68: SELL | F68: 105,000 | G68: 46.05 | H68: NSE
A69: 2018-12-03 | B69: BLS | C69: BLS Intl Servs Ltd | D69: TAIYO GREATER INDIA FUND LTD | E69: SELL | F69: 1,158,466 | G69: 109.24 | H69: NSE
A70: 2018-12-03 | B70: EXCEL | C70: Excel Realty N Infra Ltd | D70: SARVOTTAM SECURITIES PRIVATE LIMITED | E70: SELL | F70: 540000 | G70: 3.55 | H70: NSE
A71: 2018-12-03 | B71: EXCEL | C71: Excel Realty N Infra Ltd | D71: VISHWAMURTE TRAD INVEST PE LTD | E71: SELL | F71: 110808 | G71: 3.35 | H71: NSE
A72: 2018-12-03 | B72: JETAIRWAYS | C72: Jet Airways (India) Ltd. | D72: SHAASTRA SECURITIES TRADING PRIVATE LIMITED | E72: SELL | F72: 615422 | G72: 307.26 | H72: NSE
A73: 2018-12-03 | B73: KARDA | C73: Karda Constructions Ltd | D73: ARCADIA SHARE & STOCK BROKERS PRIVATE LIMITED | E73: SELL | F73: 100000 | G73: 183.68 | H73: NSE
A74: 2018-12-03 | B74: MAHASTEEL | C74: Mahamaya Steel Inds Ltd | D74: MAYUR VASANTRAI SANGHANI | E74: SELL | F74: 58077 | G74: 80.19 | H74: NSE
A75: 2018-12-03 | B75: MOHOTAIND | C75: Mohota Industries Ltd. | D75: LAKSHMI NIWAS BANGUR (HUF) | E75: SELL | F75: 108774 | G75: 79.88 | H75: NSE
A76: 2018-12-03 | B76: RCOM | C76: Reliance Comm. Ltd. | D76: ADROIT SHARE & STOCK BROKER PVT. LTD. | E76: SELL | F76: 16523713 | G76: 16.02 | H76: NSE
A77: 2018-12-03 | B77: RCOM | C77: Reliance Comm. Ltd. | D77: SHAASTRA SECURITIES TRADING PRIVATE LIMITED | E77: SELL | F77: 33887081 | G77: 15.98 | H77: NSE
A78: 2018-12-03 | B78: RCOM | C78: Reliance Comm. Ltd. | D78: SKYVEIL TRADE SOLUTIONS LLP | E78: SELL | F78: 33555745 | G78: 16.08 | H78: NSE
A79: 2018-12-03 | B79: SILVERTUC | C79: Silver Touch Techno Ltd | D79: PARKER MULTI COMMODITIES (INDIA) PRIVATE LIMITED | E79: SELL | F79: 104000 | G79: 125 | H79: NSE

Sheet Call Tracker (Equity & F&O)
M5: Back To Main Page
A6: Retail Research Technical Calls & Fundamental Performance Report for the month of December -2018
M7: =Main!B10 -> 2018-12-04
B8: Positional Call
A9: Sr.no | B9: Date | D9: Company | E9: Rec | F9: Rec Price | G9: Stop Loss*** | H9: Call Closed At | I9: Target | J9: Remark | K9: Profit / Loss per Share | L9: Gain / Loss % | M9: Status | N9: Closed Date | O9: NSE Closed Price
A10: 1 | B10: 2018-11-14 | D10: ASHOKLEY | E10: Buy | F10: 108 | G10: 100.7 | H10: 111.25 | I10: 122-125 | J10: Part Profit of Rs.3.25/- | K10: =H10-F10 -> 3.25 | L10: =K10/F10 -> 3.01% | M10: Successful | N10: 2018-11-30 | R10: R
A11: 2 | B11: 2018-11-21 | D11: ADANIPORTS | E11: Sell | F11: 358-361 | G11: 377.7 | I11: 322-326 | J11: Open | O11: =VLOOKUP(D11,Sheet2!A11:M1647,6,0) -> 375.65 | R11: R
A12: 3 | B12: 2018-11-29 | D12: JSWSTEEL | E12: Buy | F12: 312 | G12: 297.7 | H12: 322 | I12: 344-350 | J12: Part Profit of Rs.10/- | K12: =H12-F12 -> 10 | L12: =K12/F12 -> 3.21% | M12: Successful | N12: 2018-11-30 | R12: R
A13: 4 | B13: 2018-11-30 | D13: RAYMOND | E13: Sell | F13: 820 | G13: 861.6 | H13: 793.5 | I13: 745-735 | J13: Part Profit of Rs.26.5/- | K13: =F13-H13 -> 26.5 | L13: 3.23% | M13: Successful | N13: 2018-12-03 | R13: R
A14: 5 | B14: 2018-11-30 | D14: INFY | E14: Buy | F14: 662-668 | G14: 628 | I14: 725 | J14: Open | O14: =VLOOKUP(D14,Sheet2!A14:M1650,6,0) -> 670.35 | R14: H
A34: CLBS = Closing Basis *** | F34: Reinitiated $
A35: Dividend adjusted <> | F35: Revised stoploss #
A36: Part book {}
A37: Master Trade High Risk
A38: Sr.no | B38: Date | D38: Company | E38: Rec | F38: Rec Price | G38: Stop Loss | H38: Call Closed At | I38: Target | J38: Remark | K38: Profit / Loss per share | L38: Gain / Loss per Lot | M38: Lot | N38: Status | O38: Closed Date
A39: 1 | B39: 2018-11-30 | D39: KOTAKBANK DEC FUT | E39: Buy | F39: 1228-1231 | G39: 1195 | I39: 1270-1290 | J39: Open | R39: H
D40: KOTAKBANK DEC 1260 CE | E40: Sell | F40: 23-24 | R40: H
A41: 2 | B41: 2018-12-03 | D41: ADANIPORTS DEC FUT | E41: Sell | F41: 372.50-373.50 | G41: 382.5 | I41: 360 | J41: Open | R41: H
D42: ADANIPORTS DEC 360 PE | E42: Sell | F42: 8.5-9.50 | R42: H
A50: Master Trade Medium Risk
A51: Sr.no | B51: Date | D51: Company | E51: Rec | F51: Rec Price | G51: Stop Loss | H51: Call Closed At | I51: Target | J51: Remark | K51: Profit/ Loss per lot | L51: Gain / Loss per Lot | M51: Lot | N51: Status | O51: Closed Date
A52: 1 | B52: 2018-12-03 | D52: Nifty DEC 10900 PE | E52: Buy | F52: 178-182 | J52: Open | R52: H
D53: Nifty DEC 10700 PE | E53: Sell | F53: 114-116 | R53: H
B68: Smart Delivery Trade
A69: Sr.no | B69: Date | D69: Company | E69: Rec | F69: Rec Price | G69: Stop Loss*** | H69: Call Closed At | I69: Target | J69: Remark | K69: Profit / Loss per Share | L69: Gain / Loss % | M69: Status | N69: Closed Date | O69: NSE Closed Price
A70: 1 | B70: 2018-11-27 | D70: MGL | E70: Buy | F70: 818.5 | G70: 793.7 | H70: 847.5 | I70: 860-870 | J70: Profit of Rs.29/- | K70: =H70-F70 -> 29 | L70: =K70/F70 -> 3.54% | M70: Successful | N70: 2018-12-03 | R70: R
A71: 2 | B71: 2018-11-28 | D71: ESCORTS | E71: Buy | F71: 691 | G71: 669 | H71: 716.5 | I71: 725-735 | J71: Profit of Rs.25.5/- | K71: =H71-F71 -> 25.5 | L71: =K71/F71 -> 3.69% | M71: Successful | N71: 2018-12-03 | R71: R
A72: 3 | B72: 2018-11-28 | D72: RELIANCE | E72: Sell | F72: 1150-1155 | G72: 1186 | I72: 1100-1090 | J72: Open | O72: =VLOOKUP(D72,Sheet2!A60:M1696,6,0) -> 1156.45 | R72: H
A73: 4 | B73: 2018-11-30 | D73: BAJAJ-AUTO | E73: Buy | F73: 2755-2765 | G73: 2680 | I73: 2870-2900 | J73: Open | O73: =VLOOKUP(D73,Sheet2!A64:M1700,6,0) -> 2736 | R73: H
A74: 5 | B74: 2018-12-03 | D74: PVR | E74: Sell | F74: 1454 | G74: 1505 | H74: 1505 | I74: 1370-1350 | J74: Loss of Rs.51/- | K74: =F74-H74 -> -51 | L74: =K74/F74 -> -3.51% | M74: Unsuccessful | N74: 2018-12-03 | R74: H
A89: CLBS = Closing Basis *** | F89: Reinitiated $
A90: Dividend adjusted <> | F90: Revised stoploss #
B93: Momentum Call
A94: Sr.no | B94: Date | D94: Company | E94: Rec | F94: Rec Price | G94: Stop Loss | H94: Call Closed At | I94: Target | J94: Remark | K94: Profit / Loss per Share/Lot | L94: Gain / Loss % | M94: Gain / Loss per Lot | N94: Lot | O94: Status | P94: Closed Date
A95: 1 | B95: 2018-11-29 | D95: AMARAJABAT DEC FUT | E95: Buy | F95: 722-725 | G95: 705 | I95: 750 | J95: Open | R95: N
A96: 2 | B96: 2018-11-30 | D96: TATASTEEL | E96: Buy | F96: 534 | G96: 517 | H96: 549.5 | I96: 555-560 | J96: Profit of Rs.15.5/- | K96: =H96-F96 -> 15.5 | L96: =K96/F96 -> 2.90% | O96: Successful | P96: 2018-12-03 | R96: H
A97: 3 | B97: 2018-11-30 | D97: PIDILITIND DEC FUT | E97: Sell | F97: 1171 | G97: 1195 | H97: 1156.5 | I97: 1140-1130 | J97: Profit of Rs.14.5/- | K97: =F97-H97 -> 14.5 | M97: =N97*K97 -> 7250 | N97: 500 | O97: Successful | P97: 2018-12-03 | R97: H
A98: 4 | B98: 2018-12-03 | D98: UPL | E98: Buy | F98: 749 | G98: 737 | H98: 739.5 | I98: 774 | J98: Loss of Rs.9.5/- | K98: =H98-F98 -> -9.5 | M98: -11400 | N98: 1200 | O98: Unsuccessful | P98: 2018-12-03 | R98: N
A99: 5 | B99: 2018-12-03 | D99: ICICIBANK DEC FUT | E99: Sell | F99: 357-357.5 | G99: 362 | I99: 348-346 | J99: Open | R99: H
A121: CLBS = Closing Basis ***
A122: Dividend adjusted <> | F122: Reinitiated $
F123: Revised stoploss #
B124: Quick Pick Intraday
A125: Sr.no | B125: Date | D125: Company | E125: Rec | F125: Rec Price | G125: Stop Loss*** | H125: Call Closed At | I125: Target | J125: Remark | K125: Profit / Loss per Share | L125: Status | M125: Closed Date
A139: Techno -Funda (positional)
A140: Sr.no | B140: Date | D140: Company | E140: Rec | F140: Rec Price | G140: Stop Loss*** | H140: Call Closed At | I140: Target | J140: Remark | K140: Profit / Loss per Share | L140: Gain / Loss % | M140: Status | N140: Closed Date | O140: NSE Closed Price
A143: CLBS = Closing Basis *** | F143: Reinitiated $
A144: Dividend adjusted <> | F144: Revised stoploss #
B149: Investment Idea
A150: Sr.no | B150: Date | D150: Company | E150: Rec | F150: Rec Price | G150: Point of Review | H150: Close Rate | I150: Target | J150: Remark | K150: Profit / Loss per Share | L150: Gain / Loss % | M150: Status | N150: Closed Date
A151: 1 | B151: 2013-11-01 | D151: L&T Finance Holding | E151: Accu | F151: 82.00 | G151: - | H151: 100 | I151: 100.00 | J151: Target Achieved | K151: =H151-F151 -> 18.00 | L151: =K151/F151 -> 21.95% | M151: Successful | N151: 2016-10-14
A152: 2 | B152: 2014-06-04 | D152: Finolex Inds | E152: Buy | F152: 257.00 | G152: - | H152: 300 | I152: 300.00 | J152: Target Achieved | K152: =H152-F152 -> 43.00 | L152: 16.73% | M152: Successful | N152: 2014-07-02
A153: =1+A152 -> 3 | B153: 2014-07-08 | D153: JK Cement | E153: Buy | F153: 393.00 | G153: - | H153: 468 | I153: 468.00 | J153: Target Achieved | K153: =H153-F153 -> 75.00 | L153: 19.08% | M153: Successful | N153: 2014-08-12
A154: 4 | B154: 2014-08-06 | D154: Finolex Cables | E154: Buy | F154: 205.00 | G154: - | H154: 275 | I154: 250.00 | J154: Target Achieved | K154: 70.00 | L154: 34.15% | M154: Successful | N154: 2014-11-19
A155: 5 | B155: 2014-09-04 | D155: Exide Inds | E155: Buy | F155: 162.00 | G155: - | H155: 190 | I155: 190.00 | J155: Target Achieved | K155: 28.00 | L155: 17.28% | M155: Successful | N155: 2015-01-02
A156: 6 | B156: 2014-09-04 | D156: Deepak Nitrite | E156: Buy | F156: 75.00 | G156: - | H156: 91.5 | I156: 95-100 | J156: Profit of Rs.16.50/- | K156: 16.50 | L156: 22.00% | M156: Successful | N156: 2014-11-11
A157: 7 | B157: 2014-10-01 | D157: Mercks | E157: Buy | F157: 850.00 | G157: - | H157: 982.5 | I157: 1050.00 | J157: Profit of Rs.132.50/- | K157: 132.50 | L157: 15.59% | M157: Successful | N157: 2015-02-04
A158: 8 | B158: 2014-10-01 | D158: Grindwell Norton | E158: Buy | F158: 475.00 | G158: - | H158: 515 | I158: 600.00 | J158: Profit of Rs.40/- | K158: 40.00 | L158: 8.42% | M158: Successful | N158: 2014-10-27
A159: 9 | B159: 2014-10-01 | D159: Snowman Logistics | E159: Buy | F159: 86.00 | G159: - | H159: 99 | I159: 140.00 | J159: Profit of Rs.13.00/- | K159: 13.00 | L159: 15.12% | M159: Successful | N159: 2014-10-27
A160: 10 | B160: 2014-10-14 | D160: Birla Corp | E160: Buy | F160: 496.60 | G160: - | H160: 621 | I160: 580.00 | J160: Target Achieved | K160: 124.40 | L160: 25.05% | M160: Successful | N160: 2016-08-23
A161: 11 | B161: 2014-10-14 | D161: Ultratech Cem | E161: Buy | F161: 2481.90 | G161: - | H161: 2840 | I161: 2870.00 | J161: Profit of Rs.358.10/- | K161: 358.10 | L161: 14.43% | M161: Successful | N161: 2015-01-13
A162: =1+A159 -> 10 | B162: 2014-10-16 | D162: Sintex Inds | E162: Buy | F162: 84.50 | G162: - | H162: 93 | I162: 110.00 | J162: Profit of Rs.8.50/- | K162: 8.50 | L162: 10.06% | M162: Successful | N162: 2014-10-27
A163: =1+A162 -> 11 | B163: 2014-10-16 | D163: HSIL | E163: Buy | F163: 401.00 | G163: - | H163: 428 | I163: 450.00 | J163: Profit of Rs.27.00/- | K163: 27.00 | L163: 6.73% | M163: Successful | N163: 2015-01-16
A164: 12 | B164: 2014-10-16 | D164: Eveready Inds | E164: Buy | F164: 101.00 | G164: - | H164: 112 | I164: 120.00 | J164: Profit of Rs.11.00/- | K164: 11.00 | L164: 10.89% | M164: Successful | N164: 2014-10-27
A165: 13 | B165: 2014-11-11 | D165: Pennar Inds | E165: Buy | F165: 59.00 | G165: - | H165: 76 | I165: 76.00 | J165: Target Achieved | K165: 17.00 | L165: 28.81% | M165: Successful | N165: 2017-10-24
A166: 14 | B166: 2014-11-11 | D166: Snowman Logistics | E166: Buy | F166: 99.00 | G166: - | H166: 120 | I166: 120.00 | J166: Profit of Rs.21/- | K166: 21.00 | L166: 21.21% | M166: Successful | N166: 2014-11-17
A167: 15 | B167: 2014-11-13 | D167: Dharamsi Morarji Chem | E167: Buy | F167: 22.00 | G167: - | H167: 33.55 | I167: 32.00 | J167: Profit of Rs 11.55/- | K167: 11.55 | L167: 52.50% | M167: Successful | N167: 2015-07-03
A168: 16 | B168: 2014-12-03 | D168: Tatachem | E168: Buy | F168: 440.00 | G168: - | H168: 520 | I168: 520.00 | J168: Profit of Rs 80.00/- | K168: 80.00 | L168: 18.18% | M168: Successful | N168: 2015-07-23
A169: 17 | B169: 2014-12-03 | D169: Advanta | E169: Buy | F169: 360.00 | G169: - | H169: 427 | I169: 425.00 | J169: Profit of Rs.67.00/- | K169: 67.00 | L169: 18.61% | M169: Successful | N169: 2015-02-23
A170: 18 | B170: 2015-01-08 | D170: GDL | E170: Buy | F170: 360.00 | G170: - | H170: 455 | I170: 420.00 | J170: Profit of Rs.95.00/- | K170: 95.00 | L170: 26.39% | M170: Successful | N170: 2015-01-20
A171: 19 | B171: 2015-01-08 | D171: NRB Bearing | E171: Buy | F171: 130.00 | H171: 175.5 | I171: 165.00 | J171: Profit of Rs 45.50/- | K171: 45.50 | L171: 35.00% | M171: Successful | N171: 2017-12-19
A172: 20 | B172: 2015-02-05 | D172: GSFC | E172: Accu | F172: 98.00 | H172: 120 | I172: 120.00 | J172: Target Achieved | K172: 22.00 | L172: 22.45% | M172: Successful | N172: 2017-01-18
A173: 21 | B173: 2015-02-05 | D173: Sundrmfast | E173: Accu | F173: 196.00 | H173: 262 | I173: 255.00 | J173: Target Achieved | K173: 66.00 | L173: 33.67% | M173: Successful | N173: 2016-08-17
A174: 22 | B174: 2015-03-04 | D174: GPPL | E174: Accu | F174: 230-240 | I174: 280-285 | J174: Open
A175: 23 | B175: 2015-03-04 | D175: ORIENTCEM | E175: Accu | F175: 185.00 | H175: 224 | I175: 220-225 | J175: Target Achieved | K175: 39.00 | L175: =K175/F175 -> 21.08% | M175: Successful | N175: 2016-10-04
A176: 24 | B176: 2015-03-27 | D176: PFS | E176: Accu | F176: 49-50 | I176: 67.00 | J176: Open
A177: 25 | B177: 2015-03-30 | D177: Walchandnagar Ind Ltd | E177: Accu | F177: 183.50 | H177: 219 | I177: 218.00 | J177: Profit of Rs.35.50/- | K177: 35.50 | L177: =K177/F177 -> 19.35% | M177: Successful | N177: 2015-04-09
A178: 26 | B178: 2015-04-20 | D178: Kalpataru Power Transmission Ltd | E178: Accu | F178: =(227+237)/2 -> 232.00 | H178: 298 | I178: 298.00 | J178: Target Achieved | K178: 66.00 | L178: 28.45% | M178: Successful | N178: 2017-03-29
A179: 27 | B179: 2015-05-04 | D179: Mastek Ltd | E179: Buy | F179: 385.00 | H179: =212.5+331 -> 543.5 | I179: 510.00 | J179: Profit of Rs 158.50/- | K179: 158.50 | L179: 41.17% | M179: Successful | N179: 2015-08-19
A180: 28 | B180: 2015-05-04 | D180: Suprajit Eng | E180: Buy | F180: 115.50 | H180: 146 | I180: 142.00 | J180: Profit of Rs 30.50/- | K180: 30.50 | L180: 26.41% | M180: Successful | N180: 2015-07-17
A181: 29 | B181: 2015-05-27 | D181: TCI | E181: Buy | F181: 237.50 | H181: 279.5 | I181: 278.00 | J181: Target Achieved | K181: 42.00 | L181: 17.68% | M181: Successful | N181: 2015-08-06
A182: 30 | B182: 2015-06-19 | D182: HSIL | E182: Accu | F182: 340.00 | H182: 448 | I182: 448.00 | J182: Target Achieved | K182: 108.00 | L182: 31.76% | M182: Successful | N182: 2017-10-10
A183: 31 | B183: 2015-07-06 | D183: Capital First | E183: Accu | F183: 390.00 | H183: 460 | I183: 460.00 | J183: Target Achieved | K183: 70.00 | L183: 17.95% | M183: Successful | N183: 2016-04-18
A184: 32 | B184: 2015-07-10 | D184: Dolphin OffShore | E184: Accu | F184: 122.5 | H184: 61.00 | I184: 172.00 | J184: Loss of Rs.61.50/- | K184: -61.50 | L184: -50.20% | M184: Unsuccessful | N184: 2018-08-21
A185: 33 | B185: 2015-08-03 | D185: Allcargo logistics | E185: Accu | F185: 297.50 | H185: 350 | I185: 360.00 | J185: Profit of Rs 52.50/- | K185: 52.50 | L185: =K185/F185 -> 17.65% | M185: Successful | N185: 2015-08-16
A186: 34 | B186: 2015-08-03 | D186: Camline Fine | E186: Accu | F186: 115.50 | H186: 149 | I186: 140.00 | J186: Profit of Rs 33.50/- | K186: 33.50 | L186: 29.00% | M186: Successful | N186: 2017-01-05
A187: 35 | B187: 2015-09-04 | D187: TCI | E187: Accu | F187: 226.00 | H187: 292 | I187: 292.00 | J187: Target Achieved | K187: 66.00 | L187: 29.20% | M187: Successful | N187: 2015-10-09
A188: 36 | B188: 2015-09-07 | D188: Kalpataru Power Transmission Ltd | E188: Accu | F188: 232.50 | H188: 312.5 | I188: 310.00 | J188: Target Achieved | K188: 80.00 | L188: 34.41% | M188: Successful | N188: 2017-03-29
A189: 37 | B189: 2015-09-21 | D189: LLOYD ELECTRIC & ENG LTD | E189: Accu | F189: 196.50 | H189: 238 | I189: 238.00 | J189: Target Achieved | K189: 41.50 | L189: 21.12% | M189: Successful | N189: 2015-10-14
A190: 38 | B190: 2015-09-24 | D190: L&T Finance Holding | E190: Accu | F190: 65.00 | H190: 82 | I190: 82.00 | J190: Target Achieved | K190: 17.00 | L190: 26.15% | M190: Successful | N190: 2016-07-27
A191: 39 | B191: 2015-10-14 | D191: KEC International ltd | E191: Accu | F191: 144.00 | H191: 182.5 | I191: 181.00 | J191: Target Achieved | K191: 38.50 | L191: 26.74% | M191: Successful | N191: 2017-03-23
A192: 40 | B192: 2015-10-14 | D192: Gruh Finance | E192: Accu | F192: 264.00 | H192: 311 | I192: 311.00 | J192: Target Achieved | K192: 47.00 | L192: 17.80% | M192: Successful | N192: 2016-08-22
A193: 41 | B193: 2015-11-10 | D193: Pidilitind | E193: Buy | F193: 549.50 | H193: 630 | I193: 630.00 | J193: Target Achieved | K193: 80.50 | L193: 14.65% | M193: Successful | N193: 2016-02-19
A194: 42 | B194: 2015-12-04 | D194: Zensar Technology | E194: Accu | F194: 1027.50 | H194: 1315 | I194: 1250.00 | J194: Target Achieved | K194: =H194-F194 -> 287.50 | L194: 27.98% | M194: Successful | N194: 2018-05-24
A195: 43 | B195: 2015-12-29 | D195: Vinati Organics Ltd | E195: Accu | F195: 465.00 | H195: 540 | I195: 540.00 | J195: Target Achieved | K195: 75.00 | L195: =K195/F195 -> 16.13% | M195: Successful | N195: 2016-06-09
A196: 44 | B196: 2016-01-11 | D196: GSFC | E196: Buy | F196: 81.00 | H196: 110 | I196: 110.00 | J196: Target Achieved | K196: 29.00 | L196: 35.80% | M196: Successful | N196: 2017-01-10
A197: 45 | B197: 2016-01-13 | D197: SSWL | E197: Buy | F197: 417.50 | H197: 547 | I197: 535.00 | J197: Target Achieved | K197: 129.50 | L197: 31.02% | M197: Successful | N197: 2016-07-27
A198: 46 | B198: 2016-02-08 | D198: Persistent System Ltd | E198: Accu | F198: 650.00 | H198: 800 | I198: 800.00 | J198: Target Achieved | K198: 150.00 | L198: 23.08% | M198: Successful | N198: 2018-02-23
A199: 47 | B199: 2016-03-04 | D199: UPL | E199: Accu | F199: 437.50 | H199: 504.5 | I199: 522.00 | J199: Profit of Rs.67/- | K199: 67.00 | L199: 15.31% | M199: Successful | N199: 2016-04-20
A200: 48 | B200: 2016-03-09 | D200: Ashoka Buildcon Ltd | E200: Accu | F200: 189.50 | H200: 218 | I200: 218.00 | J200: Target Achieved | K200: 28.50 | L200: 15.04% | M200: Successful | N200: 2017-10-26
A201: 49 | B201: 2016-04-11 | D201: PTC INDIA FIN SERV LTD | E201: Accu | F201: 36-37 | I201: 60.00 | J201: Open
A202: 50 | B202: 2016-04-12 | D202: CAMLINFINE $ | E202: Accu | F202: 93.00 | H202: 149 | I202: 140.00 | J202: Profit of Rs 56/- | K202: 56.00 | L202: =K202/F202 -> 60.22% | M202: Successful | N202: 2017-01-05
A203: 51 | B203: 2016-04-12 | D203: Greaves Cotton Ltd. | E203: Accu | F203: 130.00 | H203: 150 | I203: 150-155 | J203: Target Achieved | K203: 20.00 | L203: 15.38% | M203: Successful | N203: 2016-07-13
A204: 52 | B204: 2016-04-13 | D204: DHFL | E204: Accu | F204: 196.00 | H204: 299 | I204: 299.00 | J204: Target Achieved | K204: 103.00 | L204: 52.55% | M204: Successful | N204: 2016-09-07
A205: 53 | B205: 2016-04-13 | D205: Magma | E205: Accu | F205: 88.00 | H205: 103 | I205: 103.00 | J205: Target Achieved | K205: 15.00 | L205: 17.05% | M205: Successful | N205: 2016-06-09
A206: 54 | B206: 2016-05-02 | D206: KEC International ltd $ | E206: Accu | F206: 127.50 | H206: 148 | I206: 148-150 | J206: Target Achieved | K206: 20.50 | L206: 16.08% | M206: Successful | N206: 2016-07-13
A207: 55 | B207: 2016-05-03 | D207: Mindtree | E207: Accu | F207: 675.00 | H207: 815 | I207: 790-800 | J207: Target Achieved | K207: 140.00 | L207: 20.74% | M207: Successful | N207: 2018-02-23
A208: 56 | B208: 2016-06-01 | D208: Atulauto | E208: Accu | F208: 495-505 | I208: 565-570 | J208: Open
A209: 57 | B209: 2016-06-06 | D209: TRITURBINE | E209: Accu | F209: 110.00 | H209: 126.5 | I209: 125.00 | J209: Profit of Rs.16.50/- | K209: 16.50 | L209: =K209/F209 -> 15.00% | M209: Successful | N209: 2016-07-01
A210: 58 | B210: 2016-06-17 | D210: Pennar Industries Ltd | E210: Accu | F210: 44.00 | H210: 69.5 | I210: 69.50 | J210: Profit of Rs.25.50/- | K210: 25.50 | L210: =K210/F210 -> 57.95% | M210: Successful | N210: 2017-08-30
A211: 59 | B211: 2016-06-28 | D211: EVEREADY INDS. IND. LTD. | E211: Accu | F211: 262.50 | H211: 340 | I211: 333.00 | J211: Profit of Rs.77.50/- | K211: 77.50 | L211: =K211/F211 -> 29.52% | M211: Successful | N211: 2017-10-09
A212: 60 | B212: 2016-06-28 | D212: FIEM INDUSTRIES LIMITED | E212: Accu | F212: 840.00 | H212: 1230 | I212: 1230.00 | J212: Target Achieved | K212: 390.00 | L212: =K212/F212 -> 46.43% | M212: Successful | N212: 2016-10-06
A213: 61 | B213: 2016-07-05 | D213: Bajaj Corp Ltd | E213: Accu | F213: 395 | H213: 468.50 | I213: 510.00 | J213: Part profit of Rs.73.50/- | K213: 73.50 | L213: =K213/F213 -> 19% | M213: Successful | N213: 2017-08-30
A214: 62 | B214: 2016-08-02 | D214: GPPL $ | E214: Buy | F214: 167-172 | I214: 198-200 | J214: Open
A215: 63 | B215: 2016-08-04 | D215: WONDERLA HOLIDAYS LTD | E215: Accu | F215: 395-405 | I215: 475.00 | J215: Open
A216: 64 | B216: 2016-08-11 | D216: CAMLINFINE | E216: Accu | F216: 86.50 | H216: 130 | I216: 130.00 | J216: Profit of Rs.43.50/- | K216: =H216-F216 -> 43.50 | L216: =K216/F216 -> 50.29% | M216: Successful | N216: 2017-12-22
A217: 65 | B217: 2016-08-18 | D217: GRANULES | E217: Accu | F217: 133.5 | H217: 126.50 | I217: 178.00 | J217: Exit | K217: -7.00 | L217: -5.24% | M217: Unsuccessful | N217: 2016-09-02
A218: 66 | B218: 2016-08-31 | D218: VA TECH WABAG | E218: Accu | F218: 560.00 | H218: 725 | I218: 725.00 | J218: Target Achieved | K218: 165.00 | L218: 29.46% | M218: Successful | N218: 2016-03-27
A219: 67 | B219: 2016-09-01 | D219: SKIPPER LIMITED | E219: Accu | F219: 160.50 | H219: 210 | I219: 210.00 | J219: Target Achieved | K219: 49.50 | L219: 30.84% | M219: Successful | N219: 2017-05-16
A220: 68 | B220: 2016-10-03 | D220: IFB Industries | E220: Accu | F220: 430.00 | H220: 596 | I220: 575.00 | J220: Profit of Rs.166/- | K220: 166.00 | L220: 38.60% | M220: Successful | N220: 2017-02-03
A221: 69 | B221: 2016-10-14 | D221: ASIANTILES | E221: Accu | F221: 280.00 | H221: 345 | I221: 345.00 | J221: Target Achieved | K221: 65.00 | L221: 23.21% | M221: Successful | N221: 2017-03-20
A222: 70 | B222: 2016-10-14 | D222: DEEPIND | E222: Accu | F222: 245.00 | H222: 325.5 | I222: 330.00 | J222: Profit of Rs.80.5/- | K222: 80.50 | L222: 32.86% | M222: Successful | N222: 2017-02-03
A223: 71 | B223: 2016-10-17 | D223: DCBBANK | E223: Accu | F223: 125.00 | H223: 160 | I223: 160.00 | J223: Target Achieved | K223: 35.00 | L223: 28.00% | M223: Successful | N223: 2017-03-09
A224: 72 | B224: 2016-10-17 | D224: ORIENTREF | E224: Accu | F224: 114.00 | H224: 145 | I224: 145.00 | J224: Target Achieved | K224: 31.00 | L224: =K224/F224 -> 27.19% | M224: Successful | N224: 2017-05-04
A225: 73 | B225: 2016-10-17 | D225: GANECOS | E225: Accu | F225: 212.00 | H225: 280 | I225: 276.00 | J225: Profit of Rs.68/- | K225: 68.00 | L225: =K225/F225 -> 32.08% | M225: Successful | N225: 2017-05-03
A226: 74 | B226: 2016-11-04 | D226: NBCC | E226: Accu | F226: 155.00 | H226: 210 | I226: 210.00 | J226: Profit of Rs.55/- | K226: 55.00 | L226: =K226/F226 -> 35.48% | M226: Successful | N226: 2017-07-28
A227: 75 | B227: 2016-12-06 | D227: PRECAM | E227: Accu | F227: 150.5 | H227: 72.50 | I227: 174.00 | J227: Loss of Rs.78/- | K227: -78.00 | L227: =K227/F227 -> -51.83% | M227: Unsuccessful | N227: 2018-08-21
A228: 76 | B228: 2016-12-08 | D228: INFRATEL | E228: Accu | F228: 380.00 | H228: 478 | I228: 468.00 | J228: Target Achieved | K228: 98.00 | L228: =K228/F228 -> 25.79% | M228: Successful | N228: 2017-10-17
A229: 77 | B229: 2016-12-30 | D229: GODREJPROP | E229: Accu | F229: 305.00 | H229: 375 | I229: 375.00 | J229: Target Achieved | K229: 70.00 | L229: 22.95% | M229: Successful | N229: 2017-02-02
A230: 78 | B230: 2017-01-04 | D230: DEEPAKNTR | E230: Accu | F230: 99.50 | H230: 158 | I230: 158.00 | J230: Target Achieved | K230: 58.50 | L230: 58.79% | M230: Successful | N230: 2017-06-12
A231: 79 | B231: 2017-02-20 | D231: SUBROS | E231: Accu | F231: 202.50 | H231: 234 | I231: 234.00 | J231: Target Achieved | K231: 31.50 | L231: 15.56% | M231: Successful | N231: 2017-04-11
A232: 80 | B232: 2017-02-20 | D232: RECLTD | E232: Accu | F232: 140.50 | H232: 220 | I232: 220.00 | J232: Target Achieved | K232: 79.50 | L232: 56.58% | M232: Successful | N232: 2017-05-09
A233: 81 | B233: 2017-03-24 | D233: VRLLOG | E233: Accu | F233: 300.50 | H233: 417.5 | I233: 420.00 | J233: Profit of Rs.117/- | K233: 117.00 | L233: 38.94% | M233: Successful | N233: 2017-12-01
A234: 82 | B234: 2017-03-24 | D234: FIEMIND | E234: Accu | F234: 850.00 | H234: 1042.5 | I234: 1023.00 | J234: Profit of Rs 192.50/- | K234: 192.50 | L234: 22.65% | M234: Successful | N234: 2017-04-05
A235: 83 | B235: 2017-04-05 | D235: RATNAMANI | E235: Accu | F235: 785.00 | H235: 930 | I235: 920.00 | J235: Profit of Rs.145/- | K235: 145.00 | L235: 18.47% | M235: Successful | N235: 2017-08-29
A236: 84 | B236: 2017-04-06 | D236: ZEEMEDIA | E236: Accu | F236: 39-41 | I236: 60.00 | J236: Open
A237: 85 | B237: 2017-04-12 | D237: DABUR | E237: Accu | F237: 289.50 | H237: 354 | I237: 360.00 | J237: Profit of Rs.64.5/- | K237: 64.50 | L237: =K237/F237 -> 22.28% | M237: Successful | N237: 2017-11-01
A238: 86 | B238: 2017-04-20 | D238: KPRMILL | E238: Accu | F238: 700.00 | H238: 840 | I238: 840.00 | J238: Profit of Rs.140/- | K238: 140.00 | L238: =K238/F238 -> 20.00% | M238: Successful | N238: 2017-06-07
A239: 87 | B239: 2017-05-22 | D239: GREAVESCOT | E239: Accu | F239: 153-158 | I239: 190.00 | J239: Open
A240: 88 | B240: 2017-06-01 | D240: ESSELPACK | E240: Accu | F240: 260 | H240: 311.00 | I240: 340.00 | J240: Part profit of Rs.51/- | K240: =H240-F240 -> 51.00 | L240: =K240/F240 -> 20% | M240: Successful | N240: 2017-11-17
A241: 89 | B241: 2017-06-15 | D241: KEI | E241: Accu | F241: 214.50 | H241: 262 | I241: 262.00 | J241: Profit of Rs.47.5/- | K241: =H241-F241 -> 47.50 | L241: 22.14% | M241: Successful | N241: 2017-08-30
A242: 90 | B242: 2017-07-17 | D242: MAYURUNIQ | E242: Accu | F242: 370.00 | H242: 447.5 | I242: 450.00 | J242: Target Achieved | K242: 77.50 | L242: 20.95% | M242: Successful | N242: 2017-10-27
A243: 91 | B243: 2017-07-27 | D243: RAMCOCEM | E243: Accu | F243: 657.50 | H243: 825 | I243: 820.00 | J243: Target Achieved | K243: 167.50 | L243: 25.48% | M243: Successful | N243: 2017-12-21
A244: 92 | B244: 2017-08-17 | D244: FINPIPE | E244: Accu | F244: 605.00 | H244: 750 | I244: 750.00 | J244: Profit of Rs.145/- | K244: 145.00 | L244: 23.97% | M244: Successful | N244: 2017-10-19
A245: 93 | B245: 2017-09-01 | D245: SHK | E245: Accu | F245: 255 | H245: 307.50 | I245: 320.00 | J245: Part profit of Rs.52.5/- | K245: 52.50 | L245: 21% | M245: Successful | N245: 2017-12-29
A246: 94 | B246: 2017-09-19 | D246: SKIPPER | E246: Accu | F246: 215.00 | H246: 258 | I246: 258.00 | J246: Target Achieved | K246: 43.00 | L246: 20.00% | M246: Successful | N246: 2017-11-01
A247: 95 | B247: 2017-09-20 | D247: CAMLINFINE | E247: Accu | F247: 75.00 | H247: 90 | I247: 90.00 | J247: Profit of Rs.15.00/- | K247: 15.00 | L247: 20.00% | M247: Successful | N247: 2017-10-11
A248: 96 | B248: 2017-10-03 | D248: GNA | E248: Accu | F248: 315.00 | H248: 392 | I248: 384.00 | J248: Profit of Rs.77/- | K248: 77.00 | L248: 24.44% | M248: Successful | N248: 2017-10-09
A249: 97 | B249: 2017-10-05 | D249: NOCIL | E249: Accu | F249: 145.00 | H249: 179 | I249: 180.00 | J249: Profit of Rs.34/- | K249: 34.00 | L249: 23.45% | M249: Successful | N249: 2017-10-17
A250: 98 | B250: 2017-10-06 | D250: CENTURYPLY | E250: Accu | F250: 256.00 | H250: 323 | I250: 320.00 | J250: Target Achieved | K250: 67.00 | L250: 26.17% | M250: Successful | N250: 2017-11-28
A251: 99 | B251: 2017-10-09 | D251: RECLTD | E251: Accu | F251: 152.5 | H251: 183.50 | I251: 210.00 | J251: Part Profit of Rs.31/- | K251: 31.00 | L251: 20% | M251: Successful | N251: 2017-11-03
A252: 100 | B252: 2017-10-09 | D252: EIHOTEL | E252: Accu | F252: 137.50 | H252: 184 | I252: 183.00 | J252: Profit of Rs.46.5/- | K252: 46.50 | L252: 33.82% | M252: Successful | N252: 2018-01-08
A253: 101 | B253: 2017-10-10 | D253: BOROSIL | E253: Accu | F253: 895.00 | H253: 1122.5 | I253: 1078.00 | J253: Profit of Rs.227.5/- | K253: 227.50 | L253: 25.42% | M253: Successful | N253: 2018-01-17
A254: 102 | B254: 2017-10-10 | D254: NRBBEARING | E254: Accu | F254: 125.50 | H254: 158 | I254: 155.00 | J254: Profit of Rs.32.5/- | K254: 32.50 | L254: 25.90% | M254: Successful | N254: 2017-11-28
A255: 103 | B255: 2017-10-12 | D255: CYIENT | E255: Accu | F255: 525.00 | H255: 629 | I255: 629.00 | J255: Target Achieved | K255: 104.00 | L255: 19.81% | M255: Successful | N255: 2018-01-19
A256: 104 | B256: 2017-11-07 | D256: HATSUN | E256: Accu | F256: 740.00 | H256: 892.5 | I256: 900.00 | J256: Profit of Rs.152.5/- | K256: 152.50 | L256: 20.61% | M256: Successful | N256: 2017-11-13
A257: 105 | B257: 2017-12-04 | D257: SANGHIIND | E257: Accu | F257: 118.50 | H257: 143.5 | I257: 145.00 | J257: Profit of Rs.25/- | K257: 25.00 | L257: 21.10% | M257: Successful | N257: 2017-12-28
A258: 106 | B258: 2017-12-05 | D258: ALLCARGO | E258: Accu | F258: 177.5 | H258: 215.00 | I258: 230.00 | J258: Part Profit of Rs.37.5/- | K258: 37.50 | L258: 21% | M258: Successful | N258: 2017-12-27
A259: 107 | B259: 2017-12-21 | D259: KAJARIACER | E259: Accu | F259: 710-720 | I259: 872.00 | J259: Open
A260: 108 | B260: 2017-12-29 | D260: GNA | E260: Accu | F260: 435.00 | H260: 542.5 | I260: 539.00 | J260: Target Achieved | K260: =H260-F260 -> 107.50 | L260: =K260/F260 -> 24.71% | M260: Successful | N260: 2018-04-16
A261: 109 | B261: 2017-12-29 | D261: ZENSARTECH | E261: Accu | F261: 885.00 | H261: 1090 | I261: 1084.00 | J261: Target Achieved | K261: 205.00 | L261: =K261/F261 -> 23.16% | M261: Successful | N261: 2018-04-23
A262: 110 | B262: 2018-02-07 | D262: GREAVESCOT | E262: Accu | F262: 130-132 | I262: 190.00 | J262: Open
A263: 111 | B263: 2018-02-27 | D263: MOLDTKPAC | E263: Accu | F263: 320-330 | I263: 398.00 | J263: Open
A264: 112 | B264: 2018-03-05 | D264: LICHSGFIN | E264: Accu | F264: 505-515 | I264: 672.00 | J264: Open
A265: 113 | B265: 2018-04-02 | D265: EVERESTIND | E265: Accu | F265: 492.5 | H265: 589.00 | I265: 613.00 | J265: Part Profit of Rs.37.5/- | K265: =H265-F265 -> 96.50 | L265: =K265/F265 -> 20% | M265: Successful | N265: 2018-08-21
A266: 114 | B266: 2018-04-04 | D266: GPPL | E266: Accu | F266: 140-143 | I266: 180.00 | J266: Open
A267: 115 | B267: 2018-04-19 | D267: MANPASAND | E267: Accu | F267: 430 | H267: 220.00 | I267: 537.00 | J267: Loss of Rs.210/- | K267: =H267-F267 -> -210.00 | L267: =K267/F267 -> -48.84% | M267: Unsuccessful | N267: 2018-06-01
A268: 116 | B268: 2018-04-30 | D268: HEIDELBERG | E268: Accu | F268: 154-158 | I268: 196.00 | J268: Open
A269: 117 | B269: 2018-05-17 | D269: PHILIPCARB | E269: Accu | F269: 230-240 | I269: 348.00 | J269: Open
A270: 118 | B270: 2018-06-07 | D270: KEC | E270: Accu | F270: 340-345 | I270: 439.00 | J270: Open
A271: 119 | B271: 2018-07-04 | D271: ASHOKLEY | E271: Accu | F271: 125-130 | I271: 170.00 | J271: Open
A272: 120 | B272: 2018-07-13 | D272: FCONSUMER | E272: Accu | F272: 46-47 | I272: 59.00 | J272: Open
A273: 121 | B273: 2018-07-25 | D273: ZEEMEDIA | E273: Accu | F273: 27-28 | I273: 44.00 | J273: Open
A274: 122 | B274: 2018-08-06 | D274: GABRIEL | E274: Accu | F274: 148-152 | I274: 182.00 | J274: Open
A275: 123 | B275: 2018-08-23 | D275: INDIANHUME | E275: Accu | F275: 280-290 | I275: 364.00 | J275: Open
A276: 124 | B276: 2018-08-29 | D276: GRINDWELL | E276: Accu | F276: 520-530 | I276: 635.00 | J276: Open
A277: 125 | B277: 2018-10-22 | D277: FINPIPE | E277: Accu | F277: 475.00 | H277: 574 | I277: 570.00 | J277: Target Achieved | K277: =H277-F277 -> 99.00 | L277: =K277/F277 -> 20.84% | M277: Successful | N277: 2018-10-30
A278: 126 | B278: 2018-10-23 | D278: JKPAPER | E278: Accu | F278: 158-162 | I278: 191.00 | J278: Open
A279: 127 | B279: 2018-10-24 | D279: GULFOILLUB | E279: Accu | F279: 700-715 | I279: 872.00 | J279: Open
A280: 128 | B280: 2018-10-25 | D280: GODREJCP | E280: Accu | F280: 700-715 | I280: 890.00 | J280: Open
A281: 129 | B281: 2018-10-25 | D281: DBCORP | E281: Accu | F281: 161-167 | I281: 209.00 | J281: Open
A282: 130 | B282: 2018-10-26 | D282: RITES | E282: Accu | F282: 240.00 | H282: 297 | I282: 297.00 | J282: Target Achieved | K282: =H282-F282 -> 57.00 | L282: =K282/F282 -> 23.75% | M282: Successful | N282: 2018-11-13
F285: Reinitiated $
A287: Disclaimer:
A288: This document has been prepared by the Retail Research Desk of Asit C Mehta
A289: Investment Intermediates Ltd. and is meant for use of the recipient only
A290: and is not for circulation. This document is not to be reported or
A291: copied or made available to others. It should not be considered to be
A292: taken as an offer to sell or a solicitation to buy any security. The
A293: information contained herein is from sources believed reliable. We do
A294: not represent that it is accurate or complete and it should not be
A295: relied upon as such. We may from time to time have positions in and buy
A296: and sell securities referred to herein

Sheet Sheet2 (hidden)
A1: SYMBOL | B1: SERIES | C1: OPEN | D1: HIGH | E1: LOW | F1: CLOSE | G1: LAST | H1: PREVCLOSE | I1: TOTTRDQTY | J1: TOTTRDVAL | K1: TIMESTAMP | L1: TOTALTRADES | M1: ISIN | N1: ISIN
A2: 20MICRONS | B2: EQ | C2: 43 | D2: 43.6 | E2: 42.7 | F2: 42.9 | G2: 43 | H2: 42.8 | I2: 13265 | J2: 570535 | K2: 2018-12-03 | L2: 266 | M2: INE144J01027
A3: 21STCENMGM | B3: EQ | C3: 22.4 | D3: 22.8 | E3: 22.4 | F3: 22.8 | G3: 22.8 | H3: 22.4 | I3: 201 | J3: 4582.4 | K3: 2018-12-03 | L3: 2 | M3: INE253B01015
A4: 3IINFOTECH | B4: EQ | C4: 3.9 | D4: 3.9 | E4: 3.75 | F4: 3.8 | G4: 3.8 | H4: 3.75 | I4: 2182085 | J4: 8356859.75 | K4: 2018-12-03 | L4: 807 | M4: INE748C01020
A5: 3MINDIA | B5: EQ | C5: 21680 | D5: 22290 | E5: 21630 | F5: 21902.15 | G5: 21999.9 | H5: 21634 | I5: 1536 | J5: 33835099.7 | K5: 2018-12-03 | L5: 1020 | M5: INE470A01017
A6: 5PAISA | B6: EQ | C6: 195.05 | D6: 198.8 | E6: 190 | F6: 191.4 | G6: 190.05 | H6: 194.95 | I6: 1728 | J6: 332093.2 | K6: 2018-12-03 | L6: 101 | M6: INE618L01018
A7: 63MOONS | B7: EQ | C7: 99.95 | D7: 104.3 | E7: 99 | F7: 100.15 | G7: 99.2 | H7: 100.05 | I7: 491446 | J7: 49818564.55 | K7: 2018-12-03 | L7: 8168 | M7: INE111B01023
A8: 8KMILES | B8: EQ | C8: 193 | D8: 193 | E8: 193 | F8: 193 | G8: 193 | H8: 183.85 | I8: 26096 | J8: 5036528 | K8: 2018-12-03 | L8: 337 | M8: INE650K01021
A9: A2ZINFRA | B9: EQ | C9: 12.65 | D9: 13.95 | E9: 12.65 | F9: 12.95 | G9: 12.95 | H9: 13.7 | I9: 378858 | J9: 4953515.65 | K9: 2018-12-03 | L9: 865 | M9: INE619I01012
A10: AARTIDRUGS | B10: EQ | C10: 551.6 | D10: 566.75 | E10: 549.5 | F10: 564.9 | G10: 565 | H10: 552.95 | I10: 10509 | J10: 5827229.55 | K10: 2018-12-03 | L10: 488 | M10: INE767A01016
A11: AARTIIND | B11: EQ | C11: 1435 | D11: 1462 | E11: 1405.1 | F11: 1456.6 | G11: 1452 | H11: 1435.9 | I11: 82083 | J11: 118635256.9 | K11: 2018-12-03 | L11: 9986 | M11: INE769A01020
A12: AARVEEDEN | B12: EQ | C12: 25 | D12: 25.45 | E12: 24.55 | F12: 24.95 | G12: 24.55 | H12: 24.95 | I12: 3205 | J12: 80082.15 | K12: 2018-12-03 | L12: 33 | M12: INE273D01019
A13: AAVAS | B13: EQ | C13: 770.5 | D13: 785 | E13: 760.1 | F13: 779.15 | G13: 778.1 | H13: 769.35 | I13: 111929 | J13: 86099847.05 | K13: 2018-12-03 | L13: 3676 | M13: INE216P01012
A14: ABAN | B14: EQ | C14: 75.3 | D14: 77.4 | E14: 74.2 | F14: 75.6 | G14: 75.3 | H14: 75 | I14: 474329 | J14: 35779379.15 | K14: 2018-12-03 | L14: 4668 | M14: INE421A01028
A15: ABB | B15: EQ | C15: 1410 | D15: 1419 | E15: 1380 | F15: 1389.2 | G15: 1384 | H15: 1408.7 | I15: 34631 | J15: 48397307.9 | K15: 2018-12-03 | L15: 2718 | M15: INE117A01022
A16: ABBOTINDIA | B16: EQ | C16: 7453.95 | D16: 7839.7 | E16: 7355 | F16: 7775.55 | G16: 7809 | H16: 7420.15 | I16: 8024 | J16: 61261985 | K16: 2018-12-03 | L16: 1824 | M16: INE358A01014
A17: ABCAPITAL | B17: EQ | C17: 105.5 | D17: 105.9 | E17: 101.3 | F17: 101.9 | G17: 102 | H17: 105.05 | I17: 1444966 | J17: 148607665.9 | K17: 2018-12-03 | L17: 23656 | M17: INE674K01013
A18: ABFRL | B18: EQ | C18: 182.25 | D18: 186.4 | E18: 178.1 | F18: 185.4 | G18: 185.25 | H18: 181.05 | I18: 467426 | J18: 84960002.15 | K18: 2018-12-03 | L18: 5790 | M18: INE647O01011
A19: ABMINTLTD | B19: BE | C19: 15.7 | D19: 15.7 | E19: 15.7 | F19: 15.7 | G19: 15.7 | H19: 16.5 | I19: 80 | J19: 1256 | K19: 2018-12-03 | L19: 1 | M19: INE251C01017
A20: ACC | B20: EQ | C20: 1497 | D20: 1530 | E20: 1484.1 | F20: 1516.8 | G20: 1514.9 | H20: 1485.5 | I20: 720915 | J20: 1093976765 | K20: 2018-12-03 | L20: 40027 | M20: INE012A01025
A21: ACCELYA | B21: EQ | C21: 981 | D21: 994.85 | E21: 975 | F21: 986.3 | G21: 983.4 | H21: 973.2 | I21: 12440 | J21: 12187463.45 | K21: 2018-12-03 | L21: 457 | M21: INE793A01012
A22: ACE | B22: EQ | C22: 92 | D22: 95.3 | E22: 91.75 | F22: 94 | G22: 94.5 | H22: 92.1 | I22: 72596 | J22: 6793011.15 | K22: 2018-12-03 | L22: 1411 | M22: INE731H01025
A23: ADANIENT | B23: EQ | C23: 166.05 | D23: 168.5 | E23: 163.5 | F23: 166.7 | G23: 166 | H23: 165 | I23: 3213684 | J23: 534854149.8 | K23: 2018-12-03 | L23: 20011 | M23: INE423A01024
A24: ADANIGAS | B24: EQ | C24: 99 | D24: 99.75 | E24: 96.3 | F24: 97.5 | G24: 97.3 | H24: 98.75 | I24: 1065560 | J24: 103831084.7 | K24: 2018-12-03 | L24: 7332 | M24: INE399L01023
A25: ADANIGREEN | B25: EQ | C25: 47 | D25: 47.5 | E25: 45.3 | F25: 46.05 | G25: 45.7 | H25: 46.75 | I25: 317022 | J25: 14738474.75 | K25: 2018-12-03 | L25: 1897 | M25: INE364U01010
A26: ADANIPORTS | B26: EQ | C26: 367.45 | D26: 379.9 | E26: 365 | F26: 375.65 | G26: 374.5 | H26: 365.65 | I26: 4303979 | J26: 1601425117 | K26: 2018-12-03 | L26: 49206 | M26: INE742F01042
A27: ADANIPOWER | B27: EQ | C27: 56.35 | D27: 58.35 | E27: 55.7 | F27: 57.85 | G27: 57.8 | H27: 55.5 | I27: 29914058 | J27: 1713315315 | K27: 2018-12-03 | L27: 55341 | M27: INE814H01011
A28: ADANITRANS | B28: EQ | C28: 226.8 | D28: 228 | E28: 216.1 | F28: 218.45 | G28: 218.3 | H28: 225.1 | I28: 441042 | J28: 97537873.35 | K28: 2018-12-03 | L28: 11656 | M28: INE931S01010
A29: ADFFOODS | B29: EQ | C29: 270 | D29: 273 | E29: 263 | F29: 266.7 | G29: 269 | H29: 269.55 | I29: 69126 | J29: 18444426.7 | K29: 2018-12-03 | L29: 2001 | M29: INE982B01019
A30: ADHUNIK | B30: EQ | C30: 2.75 | D30: 2.75 | E30: 2.6 | F30: 2.65 | G30: 2.65 | H30: 2.65 | I30: 65358 | J30: 176838.25 | K30: 2018-12-03 | L30: 49 | M30: INE400H01019
A31: ADHUNIKIND | B31: EQ | C31: 53.7 | D31: 54.45 | E31: 50.7 | F31: 51.85 | G31: 52 | H31: 51.35 | I31: 33797 | J31: 1748467.75 | K31: 2018-12-03 | L31: 129 | M31: INE452L01012
A32: ADLABS | B32: EQ | C32: 10.6 | D32: 10.75 | E32: 9.75 | F32: 10.2 | G32: 10.25 | H32: 10.25 | I32: 591278 | J32: 6018447.45 | K32: 2018-12-03 | L32: 998 | M32: INE172N01012
A33: ADORWELD | B33: EQ | C33: 370 | D33: 374.8 | E33: 366 | F33: 370.45 | G33: 367.2 | H33: 366.15 | I33: 4957 | J33: 1832004.2 | K33: 2018-12-03 | L33: 272 | M33: INE045A01017
A34: ADROITINFO | B34: EQ | C34: 19.85 | D34: 19.85 | E34: 19 | F34: 19.85 | G34: 19.85 | H34: 19.45 | I34: 55 | J34: 1087.5 | K34: 2018-12-03 | L34: 3 | M34: INE737B01033
A35: ADSL | B35: EQ | C35: 13.2 | D35: 13.9 | E35: 13.15 | F35: 13.2 | G35: 13.2 | H35: 13.1 | I35: 6406 | J35: 85116.2 | K35: 2018-12-03 | L35: 48 | M35: INE102I01027
A36: ADVANIHOTR | B36: EQ | C36: 60.95 | D36: 61 | E36: 59.35 | F36: 59.9 | G36: 59.4 | H36: 60.9 | I36: 9497 | J36: 570174.3 | K36: 2018-12-03 | L36: 85 | M36: INE199C01026
A37: ADVENZYMES | B37: EQ | C37: 186.2 | D37: 186.8 | E37: 183.05 | F37: 183.95 | G37: 183.6 | H37: 184.8 | I37: 23637 | J37: 4371889.1 | K37: 2018-12-03 | L37: 1114 | M37: INE837H01020
A38: AEGISCHEM | B38: EQ | C38: 212 | D38: 213 | E38: 207.45 | F38: 209.8 | G38: 210.8 | H38: 210.5 | I38: 87568 | J38: 18427012.45 | K38: 2018-12-03 | L38: 3335 | M38: INE208C01025
A39: AGARIND | B39: EQ | C39: 181.9 | D39: 181.9 | E39: 179.7 | F39: 179.95 | G39: 180 | H39: 176.45 | I39: 748 | J39: 134873.65 | K39: 2018-12-03 | L39: 12 | M39: INE204E01012
A40: AGCNET | B40: EQ | C40: 68.75 | D40: 70.25 | E40: 66 | F40: 68.3 | G40: 68.9 | H40: 68.75 | I40: 5718 | J40: 385718.25 | K40: 2018-12-03 | L40: 252 | M40: INE676A01019
A41: AGLSL | B41: EQ | C41: 71.7 | D41: 72.9 | E41: 69.2 | F41: 70.25 | G41: 71 | H41: 71.75 | I41: 2994 | J41: 212331.35 | K41: 2018-12-03 | L41: 106 | M41: INE517U01013
A42: AGRITECH | B42: EQ | C42: 75.95 | D42: 75.95 | E42: 71 | F42: 72.95 | G42: 72.75 | H42: 73.4 | I42: 26945 | J42: 1959006.8 | K42: 2018-12-03 | L42: 539 | M42: INE449G01018
A43: AHLEAST | B43: EQ | C43: 249.4 | D43: 256 | E43: 246.8 | F43: 252.7 | G43: 256 | H43: 251.05 | I43: 334 | J43: 83670.15 | K43: 2018-12-03 | L43: 66 | M43: INE926K01017
A44: AHLUCONT | B44: EQ | C44: 284.1 | D44: 302 | E44: 280 | F44: 298 | G44: 300.4 | H44: 284.8 | I44: 2591 | J44: 753109.1 | K44: 2018-12-03 | L44: 258 | M44: INE758C01029
A45: AHLWEST | B45: EQ | C45: 285.2 | D45: 304.95 | E45: 285.2 | F45: 304.1 | G45: 304.95 | H45: 292.2 | I45: 170 | J45: 50252.6 | K45: 2018-12-03 | L45: 17 | M45: INE915K01010
A46: AIAENG | B46: EQ | C46: 1699.85 | D46: 1775 | E46: 1683.4 | F46: 1724.45 | G46: 1725 | H46: 1699.85 | I46: 43685 | J46: 75744546.05 | K46: 2018-12-03 | L46: 7890 | M46: INE212H01026
A47: AIFL | B47: EQ | C47: 28.8 | D47: 28.8 | E47: 28.8 | F47: 28.8 | G47: 28.8 | H47: 30.3 | I47: 19158 | J47: 551750.4 | K47: 2018-12-03 | L47: 95 | M47: INE428O01016
A48: AIONJSW | B48: EQ | C48: 35.25 | D48: 36.25 | E48: 35.1 | F48: 35.8 | G48: 35.1 | H48: 35.4 | I48: 40231 | J48: 1444034 | K48: 2018-12-03 | L48: 261 | M48: INE743C01021
A49: AJANTPHARM | B49: EQ | C49: 1175.85 | D49: 1185 | E49: 1150 | F49: 1155.6 | G49: 1152.25 | H49: 1168.55 | I49: 317230 | J49: 370654027.6 | K49: 2018-12-03 | L49: 12008 | M49: INE031B01049
A50: AJMERA | B50: EQ | C50: 151.3 | D50: 152.9 | E50: 149.5 | F50: 150.9 | G50: 151.2 | H50: 149.3 | I50: 20998 | J50: 3179055.45 | K50: 2018-12-03 | L50: 1069 | M50: INE298G01027
A51: AKSHARCHEM | B51: EQ | C51: 450.7 | D51: 454 | E51: 441.4 | F51: 450 | G51: 450 | H51: 443.4 | I51: 724 | J51: 325890.7 | K51: 2018-12-03 | L51: 57 | M51: INE542B01011
A52: AKSHOPTFBR | B52: EQ | C52: 25.75 | D52: 25.85 | E52: 25.25 | F52: 25.35 | G52: 25.4 | H52: 25.45 | I52: 454767 | J52: 11588723.35 | K52: 2018-12-03 | L52: 1547 | M52: INE523B01011
A53: AKZOINDIA | B53: EQ | C53: 1590 | D53: 1595 | E53: 1573.05 | F53: 1589.6 | G53: 1590 | H53: 1579.35 | I53: 18307 | J53: 29017848.7 | K53: 2018-12-03 | L53: 943 | M53: INE133A01011
A54: ALANKIT | B54: EQ | C54: 19.2 | D54: 19.65 | E54: 19 | F54: 19.2 | G54: 19.2 | H54: 19.3 | I54: 43563 | J54: 838197.6 | K54: 2018-12-03 | L54: 346 | M54: INE914E01040
A55: ALBERTDAVD | B55: EQ | C55: 416 | D55: 416.85 | E55: 400 | F55: 402.45 | G55: 402.55 | H55: 415.9 | I55: 8903 | J55: 3607650.05 | K55: 2018-12-03 | L55: 351 | M55: INE155C01010
A56: ALBK | B56: EQ | C56: 48.55 | D56: 49.3 | E56: 47.75 | F56: 48.85 | G56: 48.6 | H56: 48.55 | I56: 4625400 | J56: 225214818.6 | K56: 2018-12-03 | L56: 10524 | M56: INE428A01015
A57: ALCHEM | B57: BE | C57: 2.1 | D57: 2.15 | E57: 2 | F57: 2 | G57: 2 | H57: 2.1 | I57: 48648 | J57: 98424.45 | K57: 2018-12-03 | L57: 81 | M57: INE964B01033
A58: ALEMBICLTD | B58: EQ | C58: 43.75 | D58: 44.2 | E58: 42.9 | F58: 43.45 | G58: 43.45 | H58: 43.35 | I58: 283620 | J58: 12376939.5 | K58: 2018-12-03 | L58: 1623 | M58: INE426A01027
A59: ALICON | B59: EQ | C59: 662.45 | D59: 662.45 | E59: 640 | F59: 648 | G59: 652.8 | H59: 666.4 | I59: 1181 | J59: 772331.35 | K59: 2018-12-03 | L59: 241 | M59: INE062D01024
A60: ALKALI | B60: EQ | C60: 58.8 | D60: 59.45 | E60: 56.55 | F60: 58.05 | G60: 57.5 | H60: 56.6 | I60: 2147 | J60: 123488.5 | K60: 2018-12-03 | L60: 57 | M60: INE773I01017
A61: ALKEM | B61: EQ | C61: 1912 | D61: 1920 | E61: 1872 | F61: 1902.65 | G61: 1900 | H61: 1912.65 | I61: 59256 | J61: 112599290.5 | K61: 2018-12-03 | L61: 5508 | M61: INE540L01014
A62: ALKYLAMINE | B62: EQ | C62: 777 | D62: 781 | E62: 756 | F62: 758.15 | G62: 758 | H62: 765.2 | I62: 2218 | J62: 1711532.05 | K62: 2018-12-03 | L62: 218 | M62: INE150B01021
A63: ALLCARGO | B63: EQ | C63: 105.2 | D63: 106.7 | E63: 105 | F63: 106.25 | G63: 106.7 | H63: 105 | I63: 121083 | J63: 12826266.85 | K63: 2018-12-03 | L63: 1732 | M63: INE418H01029
A64: ALLSEC | B64: EQ | C64: 217.9 | D64: 217.95 | E64: 209.05 | F64: 210.2 | G64: 211.9 | H64: 218.45 | I64: 11563 | J64: 2442834.45 | K64: 2018-12-03 | L64: 340 | M64: INE835G01018
A65: ALMONDZ | B65: EQ | C65: 23.15 | D65: 23.85 | E65: 22.7 | F65: 22.75 | G65: 22.75 | H65: 23.85 | I65: 7185 | J65: 164656.7 | K65: 2018-12-03 | L65: 41 | M65: INE326B01027
A66: ALOKTEXT | B66: EQ | C66: 3.5 | D66: 3.5 | E66: 3.5 | F66: 3.5 | G66: 3.5 | H66: 3.35 | I66: 324948 | J66: 1137318 | K66: 2018-12-03 | L66: 248 | M66: INE270A01011
A67: ALPA | B67: EQ | C67: 24.05 | D67: 24.8 | E67: 24 | F67: 24.7 | G67: 24.8 | H67: 23.8 | I67: 8816 | J67: 214781.05 | K67: 2018-12-03 | L67: 68 | M67: INE385I01010
A68: ALPHAGEO | B68: EQ | C68: 485 | D68: 485 | E68: 465 | F68: 474.05 | G68: 472 | H68: 464.95 | I68: 2167 | J68: 1022365.5 | K68: 2018-12-03 | L68: 316 | M68: INE137C01018
A69: ALPSINDUS | B69: BE | C69: 3.5 | D69: 3.65 | E69: 3.5 | F69: 3.65 | G69: 3.65 | H69: 3.5 | I69: 13392 | J69: 48880.65 | K69: 2018-12-03 | L69: 17 | M69: INE093B01015
A70: AMARAJABAT | B70: EQ | C70: 711.15 | D70: 721 | E70: 709.75 | F70: 715.45 | G70: 716 | H70: 709.25 | I70: 524249 | J70: 375289217.8 | K70: 2018-12-03 | L70: 20441 | M70: INE885A01032
A71: AMBER | B71: EQ | C71: 919.5 | D71: 950.95 | E71: 914.5 | F71: 928.15 | G71: 930 | H71: 919.5 | I71: 6666 | J71: 6237999.05 | K71: 2018-12-03 | L71: 770 | M71: INE371P01015
A72: AMBIKCO | B72: EQ | C72: 1190.05 | D72: 1216.45 | E72: 1149.95 | F72: 1166.15 | G72: 1162.05 | H72: 1190 | I72: 3133 | J72: 3671111.95 | K72: 2018-12-03 | L72: 602 | M72: INE540G01014
A73: AMBUJACEM | B73: EQ | C73: 218.6 | D73: 222.8 | E73: 217.6 | F73: 220 | G73: 219.9 | H73: 217.45 | I73: 2823065 | J73: 623517136.5 | K73: 2018-12-03 | L73: 38947 | M73: INE079A01024
A74: AMDIND | B74: EQ | C74: 18.4 | D74: 19.6 | E74: 18.3 | F74: 18.95 | G74: 18.95 | H74: 19.6 | I74: 428 | J74: 8004.05 | K74: 2018-12-03 | L74: 17 | M74: INE005I01014
A75: AMJLAND | B75: EQ | C75: 21.6 | D75: 22.5 | E75: 21.55 | F75: 21.75 | G75: 21.6 | H75: 22 | I75: 3810 | J75: 83307.75 | K75: 2018-12-03 | L75: 35 | M75: INE606A01024
A76: AMRUTANJAN | B76: EQ | C76: 252.2 | D76: 257 | E76: 251.15 | F76: 252.3 | G76: 251.35 | H76: 253.95 | I76: 9105 | J76: 2307433.45 | K76: 2018-12-03 | L76: 566 | M76: INE098F01031
A77: ANANTRAJ | B77: EQ | C77: 34.1 | D77: 38.2 | E77: 33.6 | F77: 36.9 | G77: 36.7 | H77: 33.8 | I77: 993038 | J77: 35871589.15 | K77: 2018-12-03 | L77: 3477 | M77: INE242C01024
A78: ANDHRABANK | B78: EQ | C78: 28.8 | D78: 28.8 | E78: 28.35 | F78: 28.45 | G78: 28.4 | H78: 28.45 | I78: 490118 | J78: 13968243.15 | K78: 2018-12-03 | L78: 1493 | M78: INE434A01013
A79: ANDHRACEMT | B79: EQ | C79: 6 | D79: 6.05 | E79: 5.85 | F79: 5.95 | G79: 6 | H79: 5.85 | I79: 32289 | J79: 192244.35 | K79: 2018-12-03 | L79: 136 | M79: INE666E01012
A80: ANDHRSUGAR | B80: EQ | C80: 332.2 | D80: 337.25 | E80: 332 | F80: 335.4 | G80: 336.7 | H80: 332.05 | I80: 16378 | J80: 5497788.7 | K80: 2018-12-03 | L80: 606 | M80: INE715B01013
A81: ANGIND | B81: BE | C81: 1.5 | D81: 1.55 | E81: 1.45 | F81: 1.5 | G81: 1.5 | H81: 1.5 | I81: 879 | J81: 1333.3 | K81: 2018-12-03 | L81: 13 | M81: INE017D01010
A82: ANIKINDS | B82: EQ | C82: 25.15 | D82: 25.45 | E82: 25.1 | F82: 25.2 | G82: 25.4 | H82: 25.15 | I82: 765 | J82: 19394.95 | K82: 2018-12-03 | L82: 19 | M82: INE087B01017
A83: ANKITMETAL | B83: BE | C83: 0.45 | D83: 0.5 | E83: 0.45 | F83: 0.45 | G83: 0.45 | H83: 0.5 | I83: 6236 | J83: 2984.15 | K83: 2018-12-03 | L83: 11 | M83: INE106I01010
A84: ANSALAPI | B84: EQ | C84: 10.45 | D84: 10.7 | E84: 10.35 | F84: 10.4 | G84: 10.6 | H84: 10.45 | I84: 6659 | J84: 69944.5 | K84: 2018-12-03 | L84: 49 | M84: INE436A01026
A85: ANSALHSG | B85: EQ | C85: 9.7 | D85: 10.2 | E85: 9.7 | F85: 10.1 | G85: 10.05 | H85: 9.85 | I85: 20180 | J85: 200015.4 | K85: 2018-12-03 | L85: 105 | M85: INE880B01015
A86: ANTGRAPHIC | B86: BE | C86: 0.5 | D86: 0.5 | E86: 0.45 | F86: 0.5 | G86: 0.5 | H86: 0.5 | I86: 47597 | J86: 22233.9 | K86: 2018-12-03 | L86: 20 | M86: INE414B01021
A87: APARINDS | B87: EQ | C87: 615.7 | D87: 620.55 | E87: 615 | F87: 618 | G87: 619.55 | H87: 615.75 | I87: 6825 | J87: 4209392.3 | K87: 2018-12-03 | L87: 397 | M87: INE372A01015
A88: APCL | B88: EQ | C88: 127.4 | D88: 127.4 | E88: 125.1 | F88: 125.5 | G88: 125.5 | H88: 125 | I88: 100 | J88: 12549.05 | K88: 2018-12-03 | L88: 8 | M88: INE071F01012
A89: APCOTEXIND | B89: EQ | C89: 538.95 | D89: 545 | E89: 534 | F89: 541.45 | G89: 543 | H89: 536.3 | I89: 2607 | J89: 1411427.55 | K89: 2018-12-03 | L89: 150 | M89: INE116A01024
A90: APEX | B90: EQ | C90: 355.2 | D90: 391.85 | E90: 355.2 | F90: 365.75 | G90: 365.05 | H90: 356.25 | I90: 159770 | J90: 59985042.2 | K90: 2018-12-03 | L90: 4440 | M90: INE346W01013
A91: APLAPOLLO | B91: EQ | C91: 1291.05 | D91: 1310 | E91: 1287 | F91: 1300.15 | G91: 1305.95 | H91: 1291.4 | I91: 45928 | J91: 59710421.25 | K91: 2018-12-03 | L91: 515 | M91: INE702C01019
A92: APLLTD | B92: EQ | C92: 631 | D92: 638 | E92: 614.5 | F92: 616.2 | G92: 615 | H92: 617.45 | I92: 79701 | J92: 49758606.1 | K92: 2018-12-03 | L92: 5438 | M92: INE901L01018
A93: APOLLO | B93: EQ | C93: 127.9 | D93: 128.4 | E93: 124.35 | F93: 125.25 | G93: 125 | H93: 125.55 | I93: 9032 | J93: 1137796.6 | K93: 2018-12-03 | L93: 342 | M93: INE713T01010
A94: APOLLOHOSP | B94: EQ | C94: 1265 | D94: 1329.85 | E94: 1261.45 | F94: 1292.2 | G94: 1288.45 | H94: 1264.8 | I94: 1475095 | J94: 1925109421 | K94: 2018-12-03 | L94: 75384 | M94: INE437A01024
A95: APOLLOTYRE | B95: EQ | C95: 242.35 | D95: 242.35 | E95: 233.5 | F95: 234.95 | G95: 234.55 | H95: 239.05 | I95: 2285274 | J95: 539327669.3 | K95: 2018-12-03 | L95: 37422 | M95: INE438A01022
A96: APOLSINHOT | B96: EQ | C96: 824.95 | D96: 824.95 | E96: 795 | F96: 799.1 | G96: 795 | H96: 814.4 | I96: 112 | J96: 90446.15 | K96: 2018-12-03 | L96: 29 | M96: INE451F01024
A97: APTECHT | B97: EQ | C97: 174 | D97: 177.75 | E97: 170 | F97: 171.9 | G97: 171.45 | H97: 174.8 | I97: 88748 | J97: 15337395.55 | K97: 2018-12-03 | L97: 2800 | M97: INE266F01018
A98: ARCHIDPLY | B98: EQ | C98: 38 | D98: 39.9 | E98: 38 | F98: 39.2 | G98: 38.8 | H98: 39.1 | I98: 13329 | J98: 522191.25 | K98: 2018-12-03 | L98: 192 | M98: INE877I01016
A99: ARCHIES | B99: EQ | C99: 28.4 | D99: 29.05 | E99: 28 | F99: 28.25 | G99: 28.05 | H99: 28.1 | I99: 80465 | J99: 2283226.3 | K99: 2018-12-03 | L99: 414 | M99: INE731A01020
A100: ARCOTECH | B100: EQ | C100: 7.75 | D100: 8 | E100: 7.6 | F100: 8 | G100: 7.95 | H100: 7.65 | I100: 146757 | J100: 1164240.1 | K100: 2018-12-03 | L100: 254 | M100: INE574I01035
A101: ARENTERP | B101: BE | C101: 13.05 | D101: 13.05 | E101: 13.05 | F101: 13.05 | G101: 13.05 | H101: 12.45 | I101: 140 | J101: 1827 | K101: 2018-12-03 | L101: 1 | M101: INE610C01014
A102: ARIES | B102: EQ | C102: 99.2 | D102: 99.2 | E102: 97 | F102: 97.6 | G102: 97.05 | H102: 97.25 | I102: 8002 | J102: 783531.9 | K102: 2018-12-03 | L102: 190 | M102: INE298I01015
A103: ARIHANT | B103: EQ | C103: 28.15 | D103: 31.65 | E103: 28.15 | F103: 31.05 | G103: 31.05 | H103: 31.05 | I103: 1202 | J103: 36398.85 | K103: 2018-12-03 | L103: 17 | M103: INE413D01011
A104: ARIHANTSUP | B104: EQ | C104: 47.15 | D104: 53.25 | E104: 47.15 | F104: 52.45 | G104: 52.65 | H104: 51.95 | I104: 55111 | J104: 2852154.65 | K104: 2018-12-03 | L104: 2339 | M104: INE643K01018
A105: ARMANFIN | B105: EQ | C105: 382.3 | D105: 398.9 | E105: 382.3 | F105: 396.25 | G105: 398.9 | H105: 392.5 | I105: 1445 | J105: 567459.7 | K105: 2018-12-03 | L105: 57 | M105: INE109C01017
A106: AROGRANITE | B106: EQ | C106: 51.95 | D106: 53 | E106: 51 | F106: 51.25 | G106: 51.1 | H106: 51.4 | I106: 3233 | J106: 166390.6 | K106: 2018-12-03 | L106: 128 | M106: INE210C01013
A107: ARROWGREEN | B107: EQ | C107: 86.55 | D107: 89 | E107: 86.55 | F107: 88.1 | G107: 88 | H107: 88.7 | I107: 9079 | J107: 802187.55 | K107: 2018-12-03 | L107: 157 | M107: INE570D01018
A108: ARROWTEX | B108: EQ | C108: 26.6 | D108: 26.6 | E108: 24.05 | F108: 24.2 | G108: 24.2 | H108: 24.9 | I108: 3156 | J108: 76986.65 | K108: 2018-12-03 | L108: 55 | M108: INE933J01015
A109: ARSHIYA | B109: EQ | C109: 34.5 | D109: 36.7 | E109: 34 | F109: 35.1 | G109: 35 | H109: 35.4 | I109: 4813 | J109: 169240.3 | K109: 2018-12-03 | L109: 53 | M109: INE968D01022
A110: ARSSINFRA | B110: EQ | C110: 31 | D110: 31.65 | E110: 29 | F110: 29.85 | G110: 29.5 | H110: 30.2 | I110: 23001 | J110: 687105.85 | K110: 2018-12-03 | L110: 186 | M110: INE267I01010
A111: ARVIND | B111: EQ | C111: 103.2 | D111: 105 | E111: 101.5 | F111: 102.1 | G111: 102.1 | H111: 102.9 | I111: 6408976 | J111: 660032245.1 | K111: 2018-12-03 | L111: 38609 | M111: INE034A01011
A112: ARVSMART | B112: EQ | C112: 109.5 | D112: 112 | E112: 108.5 | F112: 109.25 | G112: 108.55 | H112: 110.9 | I112: 8641 | J112: 949167.2 | K112: 2018-12-03 | L112: 190 | M112: INE034S01021
A113: ASAHIINDIA | B113: EQ | C113: 267.55 | D113: 267.55 | E113: 259.05 | F113: 261.95 | G113: 259.5 | H113: 263.6 | I113: 5660 | J113: 1488632.15 | K113: 2018-12-03 | L113: 436 | M113: INE439A01020
A114: ASAHISONG | B114: EQ | C114: 219 | D114: 220.45 | E114: 213 | F114: 219 | G114: 219.55 | H114: 215.25 | I114: 2451 | J114: 535873.95 | K114: 2018-12-03 | L114: 75 | M114: INE228I01012
A115: ASAL | B115: EQ | C115: 56.75 | D115: 57.5 | E115: 56.1 | F115: 56.9 | G115: 56.2 | H115: 57.2 | I115: 4798 | J115: 272897.4 | K115: 2018-12-03 | L115: 40 | M115: INE900C01027
A116: ASHAPURMIN | B116: EQ | C116: 29 | D116: 29.45 | E116: 28.1 | F116: 28.65 | G116: 28.6 | H116: 28.8 | I116: 62727 | J116: 1799034.35 | K116: 2018-12-03 | L116: 331 | M116: INE348A01023
A117: ASHIANA | B117: EQ | C117: 121.35 | D117: 125 | E117: 121.35 | F117: 123.55 | G117: 124 | H117: 124.35 | I117: 34817 | J117: 4316336.8 | K117: 2018-12-03 | L117: 441 | M117: INE365D01021
A118: ASHIMASYN | B118: EQ | C118: 12.95 | D118: 13.7 | E118: 12.8 | F118: 13.05 | G118: 13.35 | H118: 12.75 | I118: 212594 | J118: 2803975.35 | K118: 2018-12-03 | L118: 269 | M118: INE440A01010
A119: ASHOKA | B119: EQ | C119: 129.05 | D119: 132.35 | E119: 128.05 | F119: 128.65 | G119: 128.3 | H119: 130.6 | I119: 44303 | J119: 5784117.15 | K119: 2018-12-03 | L119: 1442 | M119: INE442H01029
A120: ASHOKLEY | B120: EQ | C120: 112.45 | D120: 112.45 | E120: 106 | F120: 107.15 | G120: 107.25 | H120: 112.35 | I120: 38877711 | J120: 4181223281 | K120: 2018-12-03 | L120: 149588 | M120: INE208A01029
A121: ASIANHOTNR | B121: EQ | C121: 150.05 | D121: 152.8 | E121: 147 | F121: 152.8 | G121: 152.8 | H121: 149.95 | I121: 42 | J121: 6251.7 | K121: 2018-12-03 | L121: 6 | M121: INE363A01022
A122: ASIANPAINT | B122: EQ | C122: 1345 | D122: 1359 | E122: 1335.05 | F122: 1338.7 | G122: 1344.65 | H122: 1345.95 | I122: 710748 | J122: 954698796.2 | K122: 2018-12-03 | L122: 45014 | M122: INE021A01026
A123: ASIANTILES | B123: EQ | C123: 204.4 | D123: 205.05 | E123: 195.35 | F123: 197.3 | G123: 196.95 | H123: 203.95 | I123: 42886 | J123: 8575953.25 | K123: 2018-12-03 | L123: 3366 | M123: INE022I01019
A124: ASPINWALL | B124: EQ | C124: 182 | D124: 182 | E124: 177.1 | F124: 177.15 | G124: 177.1 | H124: 177.1 | I124: 40 | J124: 7207.5 | K124: 2018-12-03 | L124: 6 | M124: INE991I01015
A125: ASSAMCO | B125: EQ | C125: 2.5 | D125: 2.5 | E125: 2.5 | F125: 2.5 | G125: 2.5 | H125: 2.4 | I125: 519356 | J125: 1298390 | K125: 2018-12-03 | L125: 82 | M125: INE442A01024
A126: ASTEC | B126: EQ | C126: 512.05 | D126: 520 | E126: 508.05 | F126: 519.6 | G126: 519.95 | H126: 504.95 | I126: 11566 | J126: 5987234.05 | K126: 2018-12-03 | L126: 446 | M126: INE563J01010
A127: ASTERDM | B127: EQ | C127: 155.7 | D127: 155.85 | E127: 149.65 | F127: 150.8 | G127: 150.45 | H127: 153 | I127: 41070 | J127: 6196444 | K127: 2018-12-03 | L127: 668 | M127: INE914M01019
A128: ASTRAL | B128: EQ | C128: 1036.95 | D128: 1049 | E128: 1024.85 | F128: 1039.7 | G128: 1032 | H128: 1038.35 | I128: 20074 | J128: 20782076.85 | K128: 2018-12-03 | L128: 3682 | M128: INE006I01046
A129: ASTRAMICRO | B129: EQ | C129: 79.55 | D129: 80.9 | E129: 78.1 | F129: 79.35 | G129: 79.5 | H129: 79.85 | I129: 588959 | J129: 46905003.8 | K129: 2018-12-03 | L129: 3271 | M129: INE386C01029
A130: ASTRAZEN | B130: EQ | C130: 1400 | D130: 1414 | E130: 1355 | F130: 1363.3 | G130: 1359 | H130: 1392.7 | I130: 8841 | J130: 12207652.6 | K130: 2018-12-03 | L130: 1274 | M130: INE203A01020
A131: ASTRON | B131: EQ | C131: 128.4 | D131: 128.4 | E131: 110.7 | F131: 111.5 | G131: 112 | H131: 127.1 | I131: 1009152 | J131: 116581577.8 | K131: 2018-12-03 | L131: 6976 | M131: INE646X01014
A132: ATFL | B132: EQ | C132: 563.95 | D132: 590 | E132: 563.95 | F132: 580.95 | G132: 577 | H132: 560.35 | I132: 12068 | J132: 6968189.9 | K132: 2018-12-03 | L132: 827 | M132: INE209A01019
A133: ATLANTA | B133: EQ | C133: 22.5 | D133: 23.55 | E133: 21.75 | F133: 23.45 | G133: 23.55 | H133: 22.45 | I133: 44756 | J133: 1017372.65 | K133: 2018-12-03 | L133: 392 | M133: INE285H01022
A134: ATUL | B134: EQ | C134: 3422 | D134: 3486.15 | E134: 3422 | F134: 3448.2 | G134: 3445 | H134: 3469.35 | I134: 7254 | J134: 25091674.6 | K134: 2018-12-03 | L134: 1507 | M134: INE100A01010
A135: ATULAUTO | B135: EQ | C135: 334.95 | D135: 334.95 | E135: 321 | F135: 326.45 | G135: 323.95 | H135: 324.2 | I135: 43058 | J135: 14093111 | K135: 2018-12-03 | L135: 1661 | M135: INE951D01028
A136: AUBANK | B136: EQ | C136: 583.85 | D136: 598 | E136: 578 | F136: 591.6 | G136: 590 | H136: 568.25 | I136: 516498 | J136: 304595033.8 | K136: 2018-12-03 | L136: 36633 | M136: INE949L01017
A137: AURIONPRO | B137: EQ | C137: 146 | D137: 149.9 | E137: 144.95 | F137: 146.55 | G137: 147 | H137: 146.3 | I137: 3965 | J137: 584554.6 | K137: 2018-12-03 | L137: 238 | M137: INE132H01018
A138: AUROPHARMA | B138: EQ | C138: 812 | D138: 816 | E138: 799.4 | F138: 804.85 | G138: 800.85 | H138: 810.7 | I138: 2534907 | J138: 2048955021 | K138: 2018-12-03 | L138: 59318 | M138: INE406A01037
A139: AUSOMENT | B139: EQ | C139: 51.45 | D139: 51.7 | E139: 48.7 | F139: 49.5 | G139: 50 | H139: 50.6 | I139: 2889 | J139: 144085.05 | K139: 2018-12-03 | L139: 51 | M139: INE218C01016
A140: AUTOAXLES | B140: EQ | C140: 1391 | D140: 1402.8 | E140: 1361 | F140: 1364.55 | G140: 1361 | H140: 1405.6 | I140: 15825 | J140: 21776053.25 | K140: 2018-12-03 | L140: 1470 | M140: INE449A01011
A141: AUTOIND | B141: EQ | C141: 57.55 | D141: 57.55 | E141: 55.8 | F141: 56.05 | G141: 56 | H141: 56.6 | I141: 12612 | J141: 708968.1 | K141: 2018-12-03 | L141: 124 | M141: INE718H01014
A142: AUTOLITIND | B142: EQ | C142: 41.85 | D142: 48.7 | E142: 40.8 | F142: 43.15 | G142: 43.2 | H142: 40.9 | I142: 18383 | J142: 810893.8 | K142: 2018-12-03 | L142: 230 | M142: INE448A01013
A143: AVADHSUGAR | B143: EQ | C143: 387.05 | D143: 393 | E143: 380 | F143: 381.25 | G143: 380 | H143: 386.85 | I143: 14658 | J143: 5659519.8 | K143: 2018-12-03 | L143: 761 | M143: INE349W01017
A144: AVANTIFEED | B144: EQ | C144: 344.4 | D144: 350.9 | E144: 340.7 | F144: 342.6 | G144: 341.95 | H144: 341.65 | I144: 194605 | J144: 67089390.55 | K144: 2018-12-03 | L144: 6695 | M144: INE871C01038
A145: AVTNPL | B145: EQ | C145: 27.35 | D145: 27.35 | E145: 26.5 | F145: 27.1 | G145: 27.25 | H145: 27 | I145: 27728 | J145: 747058.65 | K145: 2018-12-03 | L145: 219 | M145: INE488D01021
A146: AXISBANK | B146: EQ | C146: 632 | D146: 633 | E146: 621.6 | F146: 624.8 | G146: 625 | H146: 625.75 | I146: 5914250 | J146: 3699308298 | K146: 2018-12-03 | L146: 79187 | M146: INE238A01034
A147: AXISCADES | B147: EQ | C147: 90 | D147: 91.9 | E147: 87.65 | F147: 90.75 | G147: 91.25 | H147: 90.65 | I147: 51673 | J147: 4671168.35 | K147: 2018-12-03 | L147: 1903 | M147: INE555B01013
A148: AXISGOLD | B148: EQ | C148: 2733 | D148: 2788 | E148: 2700 | F148: 2705.65 | G148: 2700.4 | H148: 2682.15 | I148: 222 | J148: 605671.85 | K148: 2018-12-03 | L148: 53 | M148: INF846K01347
A149: AXISNIFTY | B149: EQ | C149: 1115.73 | D149: 1115.73 | E149: 1101.76 | F149: 1103.87 | G149: 1103.87 | H149: 1098.96 | I149: 32 | J149: 35597.7 | K149: 2018-12-03 | L149: 8 | M149: INF846K01ZL0
A150: AYMSYNTEX | B150: EQ | C150: 42.45 | D150: 44 | E150: 41.6 | F150: 42.05 | G150: 42.8 | H150: 42.45 | I150: 6416 | J150: 270801.35 | K150: 2018-12-03 | L150: 84 | M150: INE193B01039
A151: BAFNAPHARM | B151: EQ | C151: 12.55 | D151: 13.3 | E151: 12.35 | F151: 12.95 | G151: 13 | H151: 12.75 | I151: 3038 | J151: 38826.65 | K151: 2018-12-03 | L151: 45 | M151: INE878I01014
A152: BAGFILMS | B152: EQ | C152: 5.15 | D152: 5.15 | E152: 4.85 | F152: 4.85 | G152: 4.9 | H152: 5.05 | I152: 205104 | J152: 1006776.85 | K152: 2018-12-03 | L152: 252 | M152: INE116D01028
A153: BAJAJ-AUTO | B153: EQ | C153: 2760 | D153: 2764.95 | E153: 2714 | F153: 2736 | G153: 2734.5 | H153: 2745.7 | I153: 386060 | J153: 1057816324 | K153: 2018-12-03 | L153: 25101 | M153: INE917I01010
A154: BAJAJCORP | B154: EQ | C154: 365.95 | D154: 365.95 | E154: 352 | F154: 357.35 | G154: 357.95 | H154: 359.6 | I154: 24710 | J154: 8827501.85 | K154: 2018-12-03 | L154: 1203 | M154: INE933K01021
A155: BAJAJELEC | B155: EQ | C155: 474 | D155: 478.7 | E155: 472 | F155: 473.4 | G155: 474 | H155: 472.85 | I155: 92007 | J155: 43642686.3 | K155: 2018-12-03 | L155: 3824 | M155: INE193E01025
A156: BAJAJFINSV | B156: EQ | C156: 6060 | D156: 6088.35 | E156: 5975.05 | F156: 5999.3 | G156: 6029.6 | H156: 5994.35 | I156: 159769 | J156: 960969447.5 | K156: 2018-12-03 | L156: 20954 | M156: INE918I01018
A157: BAJAJHIND | B157: EQ | C157: 9.7 | D157: 9.85 | E157: 9.6 | F157: 9.6 | G157: 9.6 | H157: 9.6 | I157: 1412760 | J157: 13726311.2 | K157: 2018-12-03 | L157: 1780 | M157: INE306A01021
A158: BAJAJHLDNG | B158: EQ | C158: 3034 | D158: 3034 | E158: 2976 | F158: 2992.8 | G158: 2997 | H158: 3000.8 | I158: 8007 | J158: 23992274.8 | K158: 2018-12-03 | L158: 3570 | M158: INE118A01012
A159: BAJFINANCE | B159: EQ | C159: 2548 | D159: 2555.55 | E159: 2490.75 | F159: 2508.65 | G159: 2509.1 | H159: 2537.7 | I159: 1115592 | J159: 2807514670 | K159: 2018-12-03 | L159: 61285 | M159: INE296A01024
A160: BALAJITELE | B160: EQ | C160: 97.9 | D160: 97.9 | E160: 95 | F160: 95.5 | G160: 96 | H160: 95.05 | I160: 10596 | J160: 1011445.3 | K160: 2018-12-03 | L160: 226 | M160: INE794B01026
A161: BALAMINES | B161: EQ | C161: 455.15 | D161: 462.95 | E161: 450.05 | F161: 453.75 | G161: 451.8 | H161: 461.05 | I161: 6908 | J161: 3155414.45 | K161: 2018-12-03 | L161: 578 | M161: INE050E01027
A162: BALKRISHNA | B162: EQ | C162: 51.25 | D162: 52.35 | E162: 50 | F162: 50.45 | G162: 50.25 | H162: 51.1 | I162: 6849 | J162: 344887.4 | K162: 2018-12-03 | L162: 161 | M162: INE875R01011
A163: BALKRISIND | B163: EQ | C163: 965.75 | D163: 1010.95 | E163: 937 | F163: 943.7 | G163: 943.5 | H163: 960.4 | I163: 799882 | J163: 759788576.6 | K163: 2018-12-03 | L163: 42229 | M163: INE787D01026
A164: BALLARPUR | B164: EQ | C164: 5.8 | D164: 5.85 | E164: 5.6 | F164: 5.65 | G164: 5.7 | H164: 5.8 | I164: 489705 | J164: 2808004.1 | K164: 2018-12-03 | L164: 840 | M164: INE294A01037
A165: BALMLAWRIE | B165: EQ | C165: 190.15 | D165: 190.15 | E165: 186 | F165: 186.85 | G165: 186.5 | H165: 188.45 | I165: 23236 | J165: 4355334 | K165: 2018-12-03 | L165: 1023 | M165: INE164A01016
A166: BALPHARMA | B166: EQ | C166: 82 | D166: 84.9 | E166: 80 | F166: 80.7 | G166: 80.5 | H166: 80.65 | I166: 32382 | J166: 2662179.1 | K166: 2018-12-03 | L166: 663 | M166: INE083D01012
A167: BALRAMCHIN | B167: EQ | C167: 101.75 | D167: 103.55 | E167: 100.2 | F167: 101.65 | G167: 101.5 | H167: 101.15 | I167: 2407625 | J167: 245108912.2 | K167: 2018-12-03 | L167: 12971 | M167: INE119A01028
A168: BANARBEADS | B168: EQ | C168: 47.85 | D168: 51.95 | E168: 45.2 | F168: 47.15 | G168: 47.1 | H168: 47.35 | I168: 803 | J168: 38921.15 | K168: 2018-12-03 | L168: 40 | M168: INE655B01011
A169: BANARISUG | B169: EQ | C169: 1581.1 | D169: 1605 | E169: 1563.7 | F169: 1583.95 | G169: 1563.7 | H169: 1579.2 | I169: 205 | J169: 327179.75 | K169: 2018-12-03 | L169: 22 | M169: INE459A01010
A170: BANCOINDIA | B170: EQ | C170: 171.85 | D170: 171.85 | E170: 165.55 | F170: 169.5 | G170: 170 | H170: 167.3 | I170: 21595 | J170: 3640556.6 | K170: 2018-12-03 | L170: 587 | M170: INE213C01025
A171: BANDHANBNK | B171: EQ | C171: 487.95 | D171: 493.9 | E171: 483.1 | F171: 491.45 | G171: 493.3 | H171: 483.65 | I171: 762010 | J171: 373112299.1 | K171: 2018-12-03 | L171: 28887 | M171: INE545U01014
A172: BANG | B172: EQ | C172: 53.55 | D172: 55.25 | E172: 53.55 | F172: 54.5 | G172: 53.6 | H172: 55.1 | I172: 9684 | J172: 530153.35 | K172: 2018-12-03 | L172: 113 | M172: INE863I01016
A173: BANKBARODA | B173: EQ | C173: 106.25 | D173: 108.2 | E173: 104.9 | F173: 106.95 | G173: 106.85 | H173: 105.05 | I173: 14092602 | J173: 1500194467 | K173: 2018-12-03 | L173: 42855 | M173: INE028A01039
A174: BANKBEES | B174: EQ | C174: 2750 | D174: 2752.23 | E174: 2734.1 | F174: 2739.7 | G174: 2740.5 | H174: 2736.81 | I174: 6121 | J174: 16770217.22 | K174: 2018-12-03 | L174: 255 | M174: INF732E01078
A175: BANKINDIA | B175: EQ | C175: 84.55 | D175: 89.3 | E175: 84.55 | F175: 88.65 | G175: 89.15 | H175: 84.85 | I175: 9515981 | J175: 830464246.2 | K175: 2018-12-03 | L175: 25181 | M175: INE084A01016
A176: BANSWRAS | B176: EQ | C176: 80 | D176: 83.5 | E176: 80 | F176: 82.3 | G176: 82.5 | H176: 81.2 | I176: 5185 | J176: 425478.55 | K176: 2018-12-03 | L176: 114 | M176: INE629D01012
A177: BARTRONICS | B177: EQ | C177: 7.35 | D177: 7.35 | E177: 7.25 | F177: 7.3 | G177: 7.25 | H177: 7.25 | I177: 7121 | J177: 51969.3 | K177: 2018-12-03 | L177: 30 | M177: INE855F01034
A178: BASF | B178: EQ | C178: 1593.45 | D178: 1611.15 | E178: 1553 | F178: 1578.75 | G178: 1576 | H178: 1588.4 | I178: 4060 | J178: 6401735.05 | K178: 2018-12-03 | L178: 747 | M178: INE373A01013
A179: BASML | B179: EQ | C179: 213.4 | D179: 213.4 | E179: 207 | F179: 210.6 | G179: 212.95 | H179: 204 | I179: 117 | J179: 24645.45 | K179: 2018-12-03 | L179: 10 | M179: INE186H01014
A180: BATAINDIA | B180: EQ | C180: 1046.3 | D180: 1069.5 | E180: 1046.3 | F180: 1063.8 | G180: 1062 | H180: 1043.3 | I180: 1716616 | J180: 1822587215 | K180: 2018-12-03 | L180: 46228 | M180: INE176A01028
A181: BAYERCROP | B181: EQ | C181: 4295.45 | D181: 4390 | E181: 4265.95 | F181: 4311.65 | G181: 4268 | H181: 4300.15 | I181: 3877 | J181: 16789413.7 | K181: 2018-12-03 | L181: 1448 | M181: INE462A01022
A182: BBL | B182: EQ | C182: 1110.4 | D182: 1124.5 | E182: 1108.15 | F182: 1114.6 | G182: 1117 | H182: 1113.5 | I182: 1882 | J182: 2099716.4 | K182: 2018-12-03 | L182: 281 | M182: INE464A01028
A183: BBTC | B183: EQ | C183: 1382 | D183: 1404.9 | E183: 1362 | F183: 1373.25 | G183: 1365.3 | H183: 1380.25 | I183: 113726 | J183: 157370465.2 | K183: 2018-12-03 | L183: 4570 | M183: INE050A01025
A184: BCG | B184: EQ | C184: 2.95 | D184: 3 | E184: 2.65 | F184: 2.8 | G184: 2.9 | H184: 2.9 | I184: 1585689 | J184: 4491239.2 | K184: 2018-12-03 | L184: 944 | M184: INE425B01027
A185: BDL | B185: EQ | C185: 282 | D185: 282.1 | E185: 275.55 | F185: 278.05 | G185: 277.15 | H185: 281.3 | I185: 16185 | J185: 4521930.4 | K185: 2018-12-03 | L185: 2021 | M185: INE171Z01018
A186: BEARDSELL | B186: EQ | C186: 25.8 | D186: 25.8 | E186: 25 | F186: 25 | G186: 25 | H186: 26.4 | I186: 427 | J186: 10802.2 | K186: 2018-12-03 | L186: 18 | M186: INE520H01022
A187: BEDMUTHA | B187: BE | C187: 22.75 | D187: 22.8 | E187: 21.85 | F187: 22.2 | G187: 22.2 | H187: 22.8 | I187: 11275 | J187: 250704 | K187: 2018-12-03 | L187: 19 | M187: INE844K01012
A188: BEL | B188: EQ | C188: 84.15 | D188: 86.45 | E188: 82.4 | F188: 85.2 | G188: 85.25 | H188: 83.25 | I188: 10241635 | J188: 866684287.4 | K188: 2018-12-03 | L188: 42656 | M188: INE263A01024
A189: BEML | B189: EQ | C189: 760.4 | D189: 761.35 | E189: 742.3 | F189: 747.6 | G189: 745.6 | H189: 752.85 | I189: 619904 | J189: 464517447.6 | K189: 2018-12-03 | L189: 16288 | M189: INE258A01016
A190: BEPL | B190: EQ | C190: 75.4 | D190: 75.4 | E190: 71.6 | F190: 72.9 | G190: 73.05 | H190: 74.2 | I190: 183300 | J190: 13362386.55 | K190: 2018-12-03 | L190: 1622 | M190: INE922A01025
A191: BERGEPAINT | B191: EQ | C191: 319 | D191: 324.9 | E191: 319 | F191: 322.85 | G191: 322.5 | H191: 319.8 | I191: 969815 | J191: 312724099.9 | K191: 2018-12-03 | L191: 9600 | M191: INE463A01038
A192: BFINVEST | B192: EQ | C192: 265 | D192: 266.9 | E192: 256.05 | F192: 257.15 | G192: 256.05 | H192: 263.85 | I192: 125151 | J192: 32562417.15 | K192: 2018-12-03 | L192: 2639 | M192: INE878K01010
A193: BFUTILITIE | B193: EQ | C193: 215.65 | D193: 219 | E193: 213.05 | F193: 214.75 | G193: 214.45 | H193: 213.85 | I193: 268461 | J193: 57960001.9 | K193: 2018-12-03 | L193: 6726 | M193: INE243D01012
A194: BGLOBAL | B194: BE | C194: 2.4 | D194: 2.5 | E194: 2.4 | F194: 2.5 | G194: 2.5 | H194: 2.5 | I194: 1009 | J194: 2422.5 | K194: 2018-12-03 | L194: 3 | M194: INE224M01013
A195: BGRENERGY | B195: EQ | C195: 61 | D195: 63.1 | E195: 60.5 | F195: 62.15 | G195: 61.95 | H195: 60.65 | I195: 107295 | J195: 6651004.4 | K195: 2018-12-03 | L195: 1507 | M195: INE661I01014
A196: BHAGERIA | B196: EQ | C196: 292.25 | D196: 292.25 | E196: 261 | F196: 271.2 | G196: 268 | H196: 285.85 | I196: 9465 | J196: 2604651.5 | K196: 2018-12-03 | L196: 311 | M196: INE354C01027
A197: BHAGYANGR | B197: EQ | C197: 29.95 | D197: 30.5 | E197: 29.15 | F197: 29.7 | G197: 29.7 | H197: 29.3 | I197: 4670 | J197: 139743.55 | K197: 2018-12-03 | L197: 114 | M197: INE458B01036
A198: BHAGYAPROP | B198: EQ | C198: 25.3 | D198: 29 | E198: 25.3 | F198: 26.45 | G198: 26.45 | H198: 26.05 | I198: 4021 | J198: 104823.35 | K198: 2018-12-03 | L198: 28 | M198: INE363W01018
A199: BHANDARI | B199: EQ | C199: 2 | D199: 2 | E199: 1.95 | F199: 2 | G199: 1.95 | H199: 1.95 | I199: 35970 | J199: 70690.2 | K199: 2018-12-03 | L199: 63 | M199: INE474E01029
A200: BHARATFIN | B200: EQ | C200: 1033 | D200: 1046 | E200: 1026.85 | F200: 1042.15 | G200: 1040.6 | H200: 1023.05 | I200: 2074127 | J200: 2152872168 | K200: 2018-12-03 | L200: 42222 | M200: INE180K01011
... 1439 more rows
